Workbook

Sheet Cantidad de Acciones
M4: 1
B5: Seleccione la Cantidad de Acciones de su Cartera | D5: Liste las Acciones | M5: 2
D6: Tenaris | M6: 3
D7: Galicia | M7: 4
B8: 5 | D8: YPF | M8: 5
D9: Edenor | M9: 6
D10: PESA | M10: 7
D11: 6 | M11: 8
D12: 7 | M12: 9
D13: 8 | M13: 10
D14: 9
D15: 10

Sheet Cotizaciones
E6: ='Cantidad de Acciones'!D6 -> Tenaris | J6: ='Cantidad de Acciones'!D7 -> Galicia | O6: ='Cantidad de Acciones'!D8 -> YPF | T6: ='Cantidad de Acciones'!D9 -> Edenor | Y6: ='Cantidad de Acciones'!D10 -> PESA | AD6: ='Cantidad de Acciones'!D11 -> 6 | AI6: ='Cantidad de Acciones'!D12 -> 7 | AN6: ='Cantidad de Acciones'!D13 -> 8 | AS6: ='Cantidad de Acciones'!D14 -> 9 | AX6: ='Cantidad de Acciones'!D15 -> 10
E7: Cotización | F7: Rendimiento | G7: Rendimiento | H7: Riesgo | J7: Cotización | K7: Rendimiento | L7: Rendimiento | M7: Riesgo | O7: Cotización | P7: Rendimiento | Q7: Rendimiento | R7: Riesgo | T7: Cotización | U7: Rendimiento | V7: Rendimiento | W7: Riesgo | Y7: Cotización | Z7: Rendimiento | AA7: Rendimiento | AB7: Riesgo | AD7: Cotización | AE7: Rendimiento | AF7: Rendimiento | AG7: Riesgo | AI7: Cotización | AJ7: Rendimiento | AK7: Rendimiento | AL7: Riesgo | AN7: Cotización | AO7: Rendimiento | AP7: Rendimiento | AQ7: Riesgo | AS7: Cotización | AT7: Rendimiento | AU7: Rendimiento | AV7: Riesgo | AX7: Cotización | AY7: Rendimiento | AZ7: Rendimiento | BA7: Riesgo
C8: Fecha | G8: Promedio | L8: Promedio | Q8: Promedio | V8: Promedio | AA8: Promedio | AF8: Promedio | AK8: Promedio | AP8: Promedio | AU8: Promedio | AZ8: Promedio
C9: 2015-11-13 | E9: 101 | J9: 50
C10: 2015-11-14 | E10: 102 | F10: =IF(E10="","",+(E10-E9)/E9) -> 0.009900990099 | G10: =+F10 -> 0.009900990099 | J10: 51 | K10: =IF(J10="","",+(J10-J9)/J9) -> 0.02 | L10: =+K10 -> 0.02 | P10: =IF(O10="","",+(O10-O9)/O9) ->  | Q10: =+P10 ->  | U10: =IF(T10="","",+(T10-T9)/T9) ->  | V10: =+U10 ->  | Z10: =IF(Y10="","",+(Y10-Y9)/Y9) ->  | AA10: =+Z10 ->  | AE10: =IF(AD10="","",+(AD10-AD9)/AD9) ->  | AF10: =+AE10 ->  | AJ10: =IF(AI10="","",+(AI10-AI9)/AI9) ->  | AK10: =+AJ10 ->  | AO10: =IF(AN10="","",+(AN10-AN9)/AN9) ->  | AP10: =+AO10 ->  | AT10: =IF(AS10="","",+(AS10-AS9)/AS9) ->  | AU10: =+AT10 ->  | AY10: =IF(AX10="","",+(AX10-AX9)/AX9) ->  | AZ10: =+AY10 -> 
C11: 2015-11-15 | E11: 103 | F11: =IF(E11="","",+(E11-E10)/E10) -> 0.009803921569 | G11: =IF(F11="",0,AVERAGE($F$10:F11)) -> 0.009852455834 | H11: =IF(F10="",0,VAR($F$10:F11)) -> 4.711149795e-09 | J11: 53 | K11: =IF(J11="","",+(J11-J10)/J10) -> 0.03921568627 | L11: =IF(K11="",0,AVERAGE($K$10:K11)) -> 0.02960784314 | M11: =IF(K10="",0,VAR($K$10:K11)) -> 0.0001846212995 | P11: =IF(O11="","",+(O11-O10)/O10) ->  | Q11: =IF(P11="",0,AVERAGE(P$10:P11)) -> 0 | R11: =IF(P10="",0,VAR(P$10:P11)) -> 0 | U11: =IF(T11="","",+(T11-T10)/T10) ->  | V11: =IF(U11="",0,AVERAGE(U$10:U11)) -> 0 | W11: =IF(U10="",0,VAR(U$10:U11)) -> 0 | Z11: =IF(Y11="","",+(Y11-Y10)/Y10) ->  | AA11: =IF(Z11="",0,AVERAGE(Z$10:Z11)) -> 0 | AB11: =IF(Z10="",0,VAR(Z$10:Z11)) -> 0 | AE11: =IF(AD11="","",+(AD11-AD10)/AD10) ->  | AF11: =IF(AE11="",0,AVERAGE(AE$10:AE11)) -> 0 | AG11: =IF(AE10="",0,VAR(AE$10:AE11)) -> 0 | AJ11: =IF(AI11="","",+(AI11-AI10)/AI10) ->  | AK11: =IF(AJ11="",0,AVERAGE(AJ$10:AJ11)) -> 0 | AL11: =IF(AJ10="",0,VAR(AJ$10:AJ11)) -> 0 | AO11: =IF(AN11="","",+(AN11-AN10)/AN10) ->  | AP11: =IF(AO11="",0,AVERAGE(AO$10:AO11)) -> 0 | AQ11: =IF(AO10="",0,VAR(AO$10:AO11)) -> 0 | AT11: =IF(AS11="","",+(AS11-AS10)/AS10) ->  | AU11: =IF(AT11="",0,AVERAGE(AT$10:AT11)) -> 0 | AV11: =IF(AT10="",0,VAR(AT$10:AT11)) -> 0 | AY11: =IF(AX11="","",+(AX11-AX10)/AX10) ->  | AZ11: =IF(AY11="",0,AVERAGE(AY$10:AY11)) -> 0 | BA11: =IF(AY10="",0,VAR(AY$10:AY11)) -> 0
C12: 2015-11-16 | E12: 104 | F12: 0.009708737864 | G12: =IF(F12="",0,AVERAGE($F$10:F12)) -> 0.009804549844 | H12: =IF(F11="",0,VAR($F$10:F12)) -> 9.240526506e-09 | J12: 48 | K12: =IF(J12="","",+(J12-J11)/J11) -> -0.09433962264 | L12: =IF(K12="",0,AVERAGE($K$10:K12)) -> -0.01170797879 | M12: =IF(K11="",0,VAR($K$10:K12)) -> 0.005213302074 | P12: =IF(O12="","",+(O12-O11)/O11) ->  | Q12: =IF(P12="",0,AVERAGE(P$10:P12)) -> 0 | R12: =IF(P11="",0,VAR(P$10:P12)) -> 0 | U12: =IF(T12="","",+(T12-T11)/T11) ->  | V12: =IF(U12="",0,AVERAGE(U$10:U12)) -> 0 | W12: =IF(U11="",0,VAR(U$10:U12)) -> 0 | Z12: =IF(Y12="","",+(Y12-Y11)/Y11) ->  | AA12: =IF(Z12="",0,AVERAGE(Z$10:Z12)) -> 0 | AB12: =IF(Z11="",0,VAR(Z$10:Z12)) -> 0 | AF12: =IF(AE12="",0,AVERAGE(AE$10:AE12)) -> 0 | AG12: =IF(AE11="",0,VAR(AE$10:AE12)) -> 0 | AK12: =IF(AJ12="",0,AVERAGE(AJ$10:AJ12)) -> 0 | AL12: =IF(AJ11="",0,VAR(AJ$10:AJ12)) -> 0 | AP12: =IF(AO12="",0,AVERAGE(AO$10:AO12)) -> 0 | AQ12: =IF(AO11="",0,VAR(AO$10:AO12)) -> 0 | AU12: =IF(AT12="",0,AVERAGE(AT$10:AT12)) -> 0 | AV12: =IF(AT11="",0,VAR(AT$10:AT12)) -> 0 | AZ12: =IF(AY12="",0,AVERAGE(AY$10:AY12)) -> 0 | BA12: =IF(AY11="",0,VAR(AY$10:AY12)) -> 0
C13: 2015-11-17 | E13: 105 | F13: =IF(E13="","",+(E13-E12)/E12) -> 0.009615384615 | G13: =IF(F13="",0,AVERAGE($F$10:F13)) -> 0.009757258537 | H13: =IF(F12="",0,VAR($F$10:F13)) -> 1.510622192e-08 | J13: 80 | K13: 0.6666666667 | L13: =IF(K13="",0,AVERAGE($K$10:K13)) -> 0.1578856826 | M13: =IF(K12="",0,VAR($K$10:K13)) -> 0.1185235746 | Q13: =IF(P13="",0,AVERAGE(P$10:P13)) -> 0 | R13: =IF(P12="",0,VAR(P$10:P13)) -> 0 | V13: =IF(U13="",0,AVERAGE(U$10:U13)) -> 0 | W13: =IF(U12="",0,VAR(U$10:U13)) -> 0 | AA13: =IF(Z13="",0,AVERAGE(Z$10:Z13)) -> 0 | AB13: =IF(Z12="",0,VAR(Z$10:Z13)) -> 0 | AF13: =IF(AE13="",0,AVERAGE(AE$10:AE13)) -> 0 | AG13: =IF(AE12="",0,VAR(AE$10:AE13)) -> 0 | AJ13: =IF(AI13="","",+(AI13-AI12)/AI12) ->  | AK13: =IF(AJ13="",0,AVERAGE(AJ$10:AJ13)) -> 0 | AL13: =IF(AJ12="",0,VAR(AJ$10:AJ13)) -> 0 | AO13: =IF(AN13="","",+(AN13-AN12)/AN12) ->  | AP13: =IF(AO13="",0,AVERAGE(AO$10:AO13)) -> 0 | AQ13: =IF(AO12="",0,VAR(AO$10:AO13)) -> 0 | AT13: =IF(AS13="","",+(AS13-AS12)/AS12) ->  | AU13: =IF(AT13="",0,AVERAGE(AT$10:AT13)) -> 0 | AV13: =IF(AT12="",0,VAR(AT$10:AT13)) -> 0 | AY13: =IF(AX13="","",+(AX13-AX12)/AX12) ->  | AZ13: =IF(AY13="",0,AVERAGE(AY$10:AY13)) -> 0 | BA13: =IF(AY12="",0,VAR(AY$10:AY13)) -> 0
G14: =IF(F14="",0,AVERAGE($F$10:F14)) -> 0 | H14: =IF(F13="",0,VAR($F$10:F14)) -> 1.510622192e-08 | L14: =IF(K14="",0,AVERAGE($K$10:K14)) -> 0 | M14: =IF(K13="",0,VAR($K$10:K14)) -> 0.1185235746 | Q14: =IF(P14="",0,AVERAGE(P$10:P14)) -> 0 | R14: =IF(P13="",0,VAR(P$10:P14)) -> 0 | U14: =IF(T14="","",+(T14-T13)/T13) ->  | V14: =IF(U14="",0,AVERAGE(U$10:U14)) -> 0 | W14: =IF(U13="",0,VAR(U$10:U14)) -> 0 | AA14: =IF(Z14="",0,AVERAGE(Z$10:Z14)) -> 0 | AB14: =IF(Z13="",0,VAR(Z$10:Z14)) -> 0 | AE14: =IF(AD14="","",+(AD14-AD13)/AD13) ->  | AF14: =IF(AE14="",0,AVERAGE(AE$10:AE14)) -> 0 | AG14: =IF(AE13="",0,VAR(AE$10:AE14)) -> 0 | AK14: =IF(AJ14="",0,AVERAGE(AJ$10:AJ14)) -> 0 | AL14: =IF(AJ13="",0,VAR(AJ$10:AJ14)) -> 0 | AP14: =IF(AO14="",0,AVERAGE(AO$10:AO14)) -> 0 | AQ14: =IF(AO13="",0,VAR(AO$10:AO14)) -> 0 | AU14: =IF(AT14="",0,AVERAGE(AT$10:AT14)) -> 0 | AV14: =IF(AT13="",0,VAR(AT$10:AT14)) -> 0 | AZ14: =IF(AY14="",0,AVERAGE(AY$10:AY14)) -> 0 | BA14: =IF(AY13="",0,VAR(AY$10:AY14)) -> 0
G15: =IF(F15="",0,AVERAGE($F$10:F15)) -> 0 | H15: =IF(F14="",0,VAR($F$10:F15)) -> 0 | L15: =IF(K15="",0,AVERAGE($K$10:K15)) -> 0 | M15: =IF(K14="",0,VAR($K$10:K15)) -> 0 | Q15: =IF(P15="",0,AVERAGE(P$10:P15)) -> 0 | R15: =IF(P14="",0,VAR(P$10:P15)) -> 0 | V15: =IF(U15="",0,AVERAGE(U$10:U15)) -> 0 | W15: =IF(U14="",0,VAR(U$10:U15)) -> 0 | AA15: =IF(Z15="",0,AVERAGE(Z$10:Z15)) -> 0 | AB15: =IF(Z14="",0,VAR(Z$10:Z15)) -> 0 | AF15: =IF(AE15="",0,AVERAGE(AE$10:AE15)) -> 0 | AG15: =IF(AE14="",0,VAR(AE$10:AE15)) -> 0 | AK15: =IF(AJ15="",0,AVERAGE(AJ$10:AJ15)) -> 0 | AL15: =IF(AJ14="",0,VAR(AJ$10:AJ15)) -> 0 | AP15: =IF(AO15="",0,AVERAGE(AO$10:AO15)) -> 0 | AQ15: =IF(AO14="",0,VAR(AO$10:AO15)) -> 0 | AU15: =IF(AT15="",0,AVERAGE(AT$10:AT15)) -> 0 | AV15: =IF(AT14="",0,VAR(AT$10:AT15)) -> 0 | AZ15: =IF(AY15="",0,AVERAGE(AY$10:AY15)) -> 0 | BA15: =IF(AY14="",0,VAR(AY$10:AY15)) -> 0
F16: =IF(E16="","",+(E16-E15)/E15) ->  | G16: =IF(F16="",0,AVERAGE($F$10:F16)) -> 0 | H16: =IF(F15="",0,VAR($F$10:F16)) -> 0 | L16: =IF(K16="",0,AVERAGE($K$10:K16)) -> 0 | M16: =IF(K15="",0,VAR($K$10:K16)) -> 0 | Q16: =IF(P16="",0,AVERAGE(P$10:P16)) -> 0 | R16: =IF(P15="",0,VAR(P$10:P16)) -> 0 | V16: =IF(U16="",0,AVERAGE(U$10:U16)) -> 0 | W16: =IF(U15="",0,VAR(U$10:U16)) -> 0 | AA16: =IF(Z16="",0,AVERAGE(Z$10:Z16)) -> 0 | AB16: =IF(Z15="",0,VAR(Z$10:Z16)) -> 0 | AF16: =IF(AE16="",0,AVERAGE(AE$10:AE16)) -> 0 | AG16: =IF(AE15="",0,VAR(AE$10:AE16)) -> 0 | AK16: =IF(AJ16="",0,AVERAGE(AJ$10:AJ16)) -> 0 | AL16: =IF(AJ15="",0,VAR(AJ$10:AJ16)) -> 0 | AP16: =IF(AO16="",0,AVERAGE(AO$10:AO16)) -> 0 | AQ16: =IF(AO15="",0,VAR(AO$10:AO16)) -> 0 | AU16: =IF(AT16="",0,AVERAGE(AT$10:AT16)) -> 0 | AV16: =IF(AT15="",0,VAR(AT$10:AT16)) -> 0 | AZ16: =IF(AY16="",0,AVERAGE(AY$10:AY16)) -> 0 | BA16: =IF(AY15="",0,VAR(AY$10:AY16)) -> 0
G17: =IF(F17="",0,AVERAGE($F$10:F17)) -> 0 | H17: =IF(F16="",0,VAR($F$10:F17)) -> 0 | L17: =IF(K17="",0,AVERAGE($K$10:K17)) -> 0 | M17: =IF(K16="",0,VAR($K$10:K17)) -> 0 | Q17: =IF(P17="",0,AVERAGE(P$10:P17)) -> 0 | R17: =IF(P16="",0,VAR(P$10:P17)) -> 0 | V17: =IF(U17="",0,AVERAGE(U$10:U17)) -> 0 | W17: =IF(U16="",0,VAR(U$10:U17)) -> 0 | AA17: =IF(Z17="",0,AVERAGE(Z$10:Z17)) -> 0 | AB17: =IF(Z16="",0,VAR(Z$10:Z17)) -> 0 | AF17: =IF(AE17="",0,AVERAGE(AE$10:AE17)) -> 0 | AG17: =IF(AE16="",0,VAR(AE$10:AE17)) -> 0 | AK17: =IF(AJ17="",0,AVERAGE(AJ$10:AJ17)) -> 0 | AL17: =IF(AJ16="",0,VAR(AJ$10:AJ17)) -> 0 | AP17: =IF(AO17="",0,AVERAGE(AO$10:AO17)) -> 0 | AQ17: =IF(AO16="",0,VAR(AO$10:AO17)) -> 0 | AU17: =IF(AT17="",0,AVERAGE(AT$10:AT17)) -> 0 | AV17: =IF(AT16="",0,VAR(AT$10:AT17)) -> 0 | AZ17: =IF(AY17="",0,AVERAGE(AY$10:AY17)) -> 0 | BA17: =IF(AY16="",0,VAR(AY$10:AY17)) -> 0
G18: =IF(F18="",0,AVERAGE($F$10:F18)) -> 0 | H18: =IF(F17="",0,VAR($F$10:F18)) -> 0 | L18: =IF(K18="",0,AVERAGE($K$10:K18)) -> 0 | M18: =IF(K17="",0,VAR($K$10:K18)) -> 0 | Q18: =IF(P18="",0,AVERAGE(P$10:P18)) -> 0 | R18: =IF(P17="",0,VAR(P$10:P18)) -> 0 | V18: =IF(U18="",0,AVERAGE(U$10:U18)) -> 0 | W18: =IF(U17="",0,VAR(U$10:U18)) -> 0 | AA18: =IF(Z18="",0,AVERAGE(Z$10:Z18)) -> 0 | AB18: =IF(Z17="",0,VAR(Z$10:Z18)) -> 0 | AF18: =IF(AE18="",0,AVERAGE(AE$10:AE18)) -> 0 | AG18: =IF(AE17="",0,VAR(AE$10:AE18)) -> 0 | AK18: =IF(AJ18="",0,AVERAGE(AJ$10:AJ18)) -> 0 | AL18: =IF(AJ17="",0,VAR(AJ$10:AJ18)) -> 0 | AP18: =IF(AO18="",0,AVERAGE(AO$10:AO18)) -> 0 | AQ18: =IF(AO17="",0,VAR(AO$10:AO18)) -> 0 | AU18: =IF(AT18="",0,AVERAGE(AT$10:AT18)) -> 0 | AV18: =IF(AT17="",0,VAR(AT$10:AT18)) -> 0 | AZ18: =IF(AY18="",0,AVERAGE(AY$10:AY18)) -> 0 | BA18: =IF(AY17="",0,VAR(AY$10:AY18)) -> 0
F19: =IF(E19="","",+(E19-E18)/E18) ->  | G19: =IF(F19="",0,AVERAGE($F$10:F19)) -> 0 | H19: =IF(F18="",0,VAR($F$10:F19)) -> 0 | L19: =IF(K19="",0,AVERAGE($K$10:K19)) -> 0 | M19: =IF(K18="",0,VAR($K$10:K19)) -> 0 | Q19: =IF(P19="",0,AVERAGE(P$10:P19)) -> 0 | R19: =IF(P18="",0,VAR(P$10:P19)) -> 0 | V19: =IF(U19="",0,AVERAGE(U$10:U19)) -> 0 | W19: =IF(U18="",0,VAR(U$10:U19)) -> 0 | AA19: =IF(Z19="",0,AVERAGE(Z$10:Z19)) -> 0 | AB19: =IF(Z18="",0,VAR(Z$10:Z19)) -> 0 | AF19: =IF(AE19="",0,AVERAGE(AE$10:AE19)) -> 0 | AG19: =IF(AE18="",0,VAR(AE$10:AE19)) -> 0 | AK19: =IF(AJ19="",0,AVERAGE(AJ$10:AJ19)) -> 0 | AL19: =IF(AJ18="",0,VAR(AJ$10:AJ19)) -> 0 | AP19: =IF(AO19="",0,AVERAGE(AO$10:AO19)) -> 0 | AQ19: =IF(AO18="",0,VAR(AO$10:AO19)) -> 0 | AU19: =IF(AT19="",0,AVERAGE(AT$10:AT19)) -> 0 | AV19: =IF(AT18="",0,VAR(AT$10:AT19)) -> 0 | AZ19: =IF(AY19="",0,AVERAGE(AY$10:AY19)) -> 0 | BA19: =IF(AY18="",0,VAR(AY$10:AY19)) -> 0
G20: =IF(F20="",0,AVERAGE($F$10:F20)) -> 0 | H20: =IF(F19="",0,VAR($F$10:F20)) -> 0 | L20: =IF(K20="",0,AVERAGE($K$10:K20)) -> 0 | M20: =IF(K19="",0,VAR($K$10:K20)) -> 0 | Q20: =IF(P20="",0,AVERAGE(P$10:P20)) -> 0 | R20: =IF(P19="",0,VAR(P$10:P20)) -> 0 | V20: =IF(U20="",0,AVERAGE(U$10:U20)) -> 0 | W20: =IF(U19="",0,VAR(U$10:U20)) -> 0 | AA20: =IF(Z20="",0,AVERAGE(Z$10:Z20)) -> 0 | AB20: =IF(Z19="",0,VAR(Z$10:Z20)) -> 0 | AF20: =IF(AE20="",0,AVERAGE(AE$10:AE20)) -> 0 | AG20: =IF(AE19="",0,VAR(AE$10:AE20)) -> 0 | AK20: =IF(AJ20="",0,AVERAGE(AJ$10:AJ20)) -> 0 | AL20: =IF(AJ19="",0,VAR(AJ$10:AJ20)) -> 0 | AP20: =IF(AO20="",0,AVERAGE(AO$10:AO20)) -> 0 | AQ20: =IF(AO19="",0,VAR(AO$10:AO20)) -> 0 | AU20: =IF(AT20="",0,AVERAGE(AT$10:AT20)) -> 0 | AV20: =IF(AT19="",0,VAR(AT$10:AT20)) -> 0 | AZ20: =IF(AY20="",0,AVERAGE(AY$10:AY20)) -> 0 | BA20: =IF(AY19="",0,VAR(AY$10:AY20)) -> 0
G21: =IF(F21="",0,AVERAGE($F$10:F21)) -> 0 | H21: =IF(F20="",0,VAR($F$10:F21)) -> 0 | L21: =IF(K21="",0,AVERAGE($K$10:K21)) -> 0 | M21: =IF(K20="",0,VAR($K$10:K21)) -> 0 | Q21: =IF(P21="",0,AVERAGE(P$10:P21)) -> 0 | R21: =IF(P20="",0,VAR(P$10:P21)) -> 0 | V21: =IF(U21="",0,AVERAGE(U$10:U21)) -> 0 | W21: =IF(U20="",0,VAR(U$10:U21)) -> 0 | AA21: =IF(Z21="",0,AVERAGE(Z$10:Z21)) -> 0 | AB21: =IF(Z20="",0,VAR(Z$10:Z21)) -> 0 | AF21: =IF(AE21="",0,AVERAGE(AE$10:AE21)) -> 0 | AG21: =IF(AE20="",0,VAR(AE$10:AE21)) -> 0 | AK21: =IF(AJ21="",0,AVERAGE(AJ$10:AJ21)) -> 0 | AL21: =IF(AJ20="",0,VAR(AJ$10:AJ21)) -> 0 | AP21: =IF(AO21="",0,AVERAGE(AO$10:AO21)) -> 0 | AQ21: =IF(AO20="",0,VAR(AO$10:AO21)) -> 0 | AU21: =IF(AT21="",0,AVERAGE(AT$10:AT21)) -> 0 | AV21: =IF(AT20="",0,VAR(AT$10:AT21)) -> 0 | AZ21: =IF(AY21="",0,AVERAGE(AY$10:AY21)) -> 0 | BA21: =IF(AY20="",0,VAR(AY$10:AY21)) -> 0
F22: =IF(E22="","",+(E22-E21)/E21) ->  | G22: =IF(F22="",0,AVERAGE($F$10:F22)) -> 0 | H22: =IF(F21="",0,VAR($F$10:F22)) -> 0 | L22: =IF(K22="",0,AVERAGE($K$10:K22)) -> 0 | M22: =IF(K21="",0,VAR($K$10:K22)) -> 0 | Q22: =IF(P22="",0,AVERAGE(P$10:P22)) -> 0 | R22: =IF(P21="",0,VAR(P$10:P22)) -> 0 | V22: =IF(U22="",0,AVERAGE(U$10:U22)) -> 0 | W22: =IF(U21="",0,VAR(U$10:U22)) -> 0 | AA22: =IF(Z22="",0,AVERAGE(Z$10:Z22)) -> 0 | AB22: =IF(Z21="",0,VAR(Z$10:Z22)) -> 0 | AF22: =IF(AE22="",0,AVERAGE(AE$10:AE22)) -> 0 | AG22: =IF(AE21="",0,VAR(AE$10:AE22)) -> 0 | AK22: =IF(AJ22="",0,AVERAGE(AJ$10:AJ22)) -> 0 | AL22: =IF(AJ21="",0,VAR(AJ$10:AJ22)) -> 0 | AP22: =IF(AO22="",0,AVERAGE(AO$10:AO22)) -> 0 | AQ22: =IF(AO21="",0,VAR(AO$10:AO22)) -> 0 | AU22: =IF(AT22="",0,AVERAGE(AT$10:AT22)) -> 0 | AV22: =IF(AT21="",0,VAR(AT$10:AT22)) -> 0 | AZ22: =IF(AY22="",0,AVERAGE(AY$10:AY22)) -> 0 | BA22: =IF(AY21="",0,VAR(AY$10:AY22)) -> 0
G23: =IF(F23="",0,AVERAGE($F$10:F23)) -> 0 | H23: =IF(F22="",0,VAR($F$10:F23)) -> 0 | L23: =IF(K23="",0,AVERAGE($K$10:K23)) -> 0 | M23: =IF(K22="",0,VAR($K$10:K23)) -> 0 | Q23: =IF(P23="",0,AVERAGE(P$10:P23)) -> 0 | R23: =IF(P22="",0,VAR(P$10:P23)) -> 0 | V23: =IF(U23="",0,AVERAGE(U$10:U23)) -> 0 | W23: =IF(U22="",0,VAR(U$10:U23)) -> 0 | AA23: =IF(Z23="",0,AVERAGE(Z$10:Z23)) -> 0 | AB23: =IF(Z22="",0,VAR(Z$10:Z23)) -> 0 | AF23: =IF(AE23="",0,AVERAGE(AE$10:AE23)) -> 0 | AG23: =IF(AE22="",0,VAR(AE$10:AE23)) -> 0 | AK23: =IF(AJ23="",0,AVERAGE(AJ$10:AJ23)) -> 0 | AL23: =IF(AJ22="",0,VAR(AJ$10:AJ23)) -> 0 | AP23: =IF(AO23="",0,AVERAGE(AO$10:AO23)) -> 0 | AQ23: =IF(AO22="",0,VAR(AO$10:AO23)) -> 0 | AU23: =IF(AT23="",0,AVERAGE(AT$10:AT23)) -> 0 | AV23: =IF(AT22="",0,VAR(AT$10:AT23)) -> 0 | AZ23: =IF(AY23="",0,AVERAGE(AY$10:AY23)) -> 0 | BA23: =IF(AY22="",0,VAR(AY$10:AY23)) -> 0
G24: =IF(F24="",0,AVERAGE($F$10:F24)) -> 0 | H24: =IF(F23="",0,VAR($F$10:F24)) -> 0 | L24: =IF(K24="",0,AVERAGE($K$10:K24)) -> 0 | M24: =IF(K23="",0,VAR($K$10:K24)) -> 0 | Q24: =IF(P24="",0,AVERAGE(P$10:P24)) -> 0 | R24: =IF(P23="",0,VAR(P$10:P24)) -> 0 | V24: =IF(U24="",0,AVERAGE(U$10:U24)) -> 0 | W24: =IF(U23="",0,VAR(U$10:U24)) -> 0 | AA24: =IF(Z24="",0,AVERAGE(Z$10:Z24)) -> 0 | AB24: =IF(Z23="",0,VAR(Z$10:Z24)) -> 0 | AF24: =IF(AE24="",0,AVERAGE(AE$10:AE24)) -> 0 | AG24: =IF(AE23="",0,VAR(AE$10:AE24)) -> 0 | AK24: =IF(AJ24="",0,AVERAGE(AJ$10:AJ24)) -> 0 | AL24: =IF(AJ23="",0,VAR(AJ$10:AJ24)) -> 0 | AP24: =IF(AO24="",0,AVERAGE(AO$10:AO24)) -> 0 | AQ24: =IF(AO23="",0,VAR(AO$10:AO24)) -> 0 | AU24: =IF(AT24="",0,AVERAGE(AT$10:AT24)) -> 0 | AV24: =IF(AT23="",0,VAR(AT$10:AT24)) -> 0 | AZ24: =IF(AY24="",0,AVERAGE(AY$10:AY24)) -> 0 | BA24: =IF(AY23="",0,VAR(AY$10:AY24)) -> 0
F25: =IF(E25="","",+(E25-E24)/E24) ->  | G25: =IF(F25="",0,AVERAGE($F$10:F25)) -> 0 | H25: =IF(F24="",0,VAR($F$10:F25)) -> 0 | L25: =IF(K25="",0,AVERAGE($K$10:K25)) -> 0 | M25: =IF(K24="",0,VAR($K$10:K25)) -> 0 | Q25: =IF(P25="",0,AVERAGE(P$10:P25)) -> 0 | R25: =IF(P24="",0,VAR(P$10:P25)) -> 0 | V25: =IF(U25="",0,AVERAGE(U$10:U25)) -> 0 | W25: =IF(U24="",0,VAR(U$10:U25)) -> 0 | AA25: =IF(Z25="",0,AVERAGE(Z$10:Z25)) -> 0 | AB25: =IF(Z24="",0,VAR(Z$10:Z25)) -> 0 | AF25: =IF(AE25="",0,AVERAGE(AE$10:AE25)) -> 0 | AG25: =IF(AE24="",0,VAR(AE$10:AE25)) -> 0 | AK25: =IF(AJ25="",0,AVERAGE(AJ$10:AJ25)) -> 0 | AL25: =IF(AJ24="",0,VAR(AJ$10:AJ25)) -> 0 | AP25: =IF(AO25="",0,AVERAGE(AO$10:AO25)) -> 0 | AQ25: =IF(AO24="",0,VAR(AO$10:AO25)) -> 0 | AU25: =IF(AT25="",0,AVERAGE(AT$10:AT25)) -> 0 | AV25: =IF(AT24="",0,VAR(AT$10:AT25)) -> 0 | AZ25: =IF(AY25="",0,AVERAGE(AY$10:AY25)) -> 0 | BA25: =IF(AY24="",0,VAR(AY$10:AY25)) -> 0
G26: =IF(F26="",0,AVERAGE($F$10:F26)) -> 0 | H26: =IF(F25="",0,VAR($F$10:F26)) -> 0 | L26: =IF(K26="",0,AVERAGE($K$10:K26)) -> 0 | M26: =IF(K25="",0,VAR($K$10:K26)) -> 0 | Q26: =IF(P26="",0,AVERAGE(P$10:P26)) -> 0 | R26: =IF(P25="",0,VAR(P$10:P26)) -> 0 | V26: =IF(U26="",0,AVERAGE(U$10:U26)) -> 0 | W26: =IF(U25="",0,VAR(U$10:U26)) -> 0 | AA26: =IF(Z26="",0,AVERAGE(Z$10:Z26)) -> 0 | AB26: =IF(Z25="",0,VAR(Z$10:Z26)) -> 0 | AF26: =IF(AE26="",0,AVERAGE(AE$10:AE26)) -> 0 | AG26: =IF(AE25="",0,VAR(AE$10:AE26)) -> 0 | AK26: =IF(AJ26="",0,AVERAGE(AJ$10:AJ26)) -> 0 | AL26: =IF(AJ25="",0,VAR(AJ$10:AJ26)) -> 0 | AP26: =IF(AO26="",0,AVERAGE(AO$10:AO26)) -> 0 | AQ26: =IF(AO25="",0,VAR(AO$10:AO26)) -> 0 | AU26: =IF(AT26="",0,AVERAGE(AT$10:AT26)) -> 0 | AV26: =IF(AT25="",0,VAR(AT$10:AT26)) -> 0 | AZ26: =IF(AY26="",0,AVERAGE(AY$10:AY26)) -> 0 | BA26: =IF(AY25="",0,VAR(AY$10:AY26)) -> 0
G27: =IF(F27="",0,AVERAGE($F$10:F27)) -> 0 | H27: =IF(F26="",0,VAR($F$10:F27)) -> 0 | L27: =IF(K27="",0,AVERAGE($K$10:K27)) -> 0 | M27: =IF(K26="",0,VAR($K$10:K27)) -> 0 | Q27: =IF(P27="",0,AVERAGE(P$10:P27)) -> 0 | R27: =IF(P26="",0,VAR(P$10:P27)) -> 0 | V27: =IF(U27="",0,AVERAGE(U$10:U27)) -> 0 | W27: =IF(U26="",0,VAR(U$10:U27)) -> 0 | AA27: =IF(Z27="",0,AVERAGE(Z$10:Z27)) -> 0 | AB27: =IF(Z26="",0,VAR(Z$10:Z27)) -> 0 | AF27: =IF(AE27="",0,AVERAGE(AE$10:AE27)) -> 0 | AG27: =IF(AE26="",0,VAR(AE$10:AE27)) -> 0 | AK27: =IF(AJ27="",0,AVERAGE(AJ$10:AJ27)) -> 0 | AL27: =IF(AJ26="",0,VAR(AJ$10:AJ27)) -> 0 | AP27: =IF(AO27="",0,AVERAGE(AO$10:AO27)) -> 0 | AQ27: =IF(AO26="",0,VAR(AO$10:AO27)) -> 0 | AU27: =IF(AT27="",0,AVERAGE(AT$10:AT27)) -> 0 | AV27: =IF(AT26="",0,VAR(AT$10:AT27)) -> 0 | AZ27: =IF(AY27="",0,AVERAGE(AY$10:AY27)) -> 0 | BA27: =IF(AY26="",0,VAR(AY$10:AY27)) -> 0
F28: =IF(E28="","",+(E28-E27)/E27) ->  | G28: =IF(F28="",0,AVERAGE($F$10:F28)) -> 0 | H28: =IF(F27="",0,VAR($F$10:F28)) -> 0 | L28: =IF(K28="",0,AVERAGE($K$10:K28)) -> 0 | M28: =IF(K27="",0,VAR($K$10:K28)) -> 0 | Q28: =IF(P28="",0,AVERAGE(P$10:P28)) -> 0 | R28: =IF(P27="",0,VAR(P$10:P28)) -> 0 | V28: =IF(U28="",0,AVERAGE(U$10:U28)) -> 0 | W28: =IF(U27="",0,VAR(U$10:U28)) -> 0 | AA28: =IF(Z28="",0,AVERAGE(Z$10:Z28)) -> 0 | AB28: =IF(Z27="",0,VAR(Z$10:Z28)) -> 0 | AF28: =IF(AE28="",0,AVERAGE(AE$10:AE28)) -> 0 | AG28: =IF(AE27="",0,VAR(AE$10:AE28)) -> 0 | AK28: =IF(AJ28="",0,AVERAGE(AJ$10:AJ28)) -> 0 | AL28: =IF(AJ27="",0,VAR(AJ$10:AJ28)) -> 0 | AP28: =IF(AO28="",0,AVERAGE(AO$10:AO28)) -> 0 | AQ28: =IF(AO27="",0,VAR(AO$10:AO28)) -> 0 | AU28: =IF(AT28="",0,AVERAGE(AT$10:AT28)) -> 0 | AV28: =IF(AT27="",0,VAR(AT$10:AT28)) -> 0 | AZ28: =IF(AY28="",0,AVERAGE(AY$10:AY28)) -> 0 | BA28: =IF(AY27="",0,VAR(AY$10:AY28)) -> 0
G29: =IF(F29="",0,AVERAGE($F$10:F29)) -> 0 | H29: =IF(F28="",0,VAR($F$10:F29)) -> 0 | L29: =IF(K29="",0,AVERAGE($K$10:K29)) -> 0 | M29: =IF(K28="",0,VAR($K$10:K29)) -> 0 | Q29: =IF(P29="",0,AVERAGE(P$10:P29)) -> 0 | R29: =IF(P28="",0,VAR(P$10:P29)) -> 0 | V29: =IF(U29="",0,AVERAGE(U$10:U29)) -> 0 | W29: =IF(U28="",0,VAR(U$10:U29)) -> 0 | AA29: =IF(Z29="",0,AVERAGE(Z$10:Z29)) -> 0 | AB29: =IF(Z28="",0,VAR(Z$10:Z29)) -> 0 | AF29: =IF(AE29="",0,AVERAGE(AE$10:AE29)) -> 0 | AG29: =IF(AE28="",0,VAR(AE$10:AE29)) -> 0 | AK29: =IF(AJ29="",0,AVERAGE(AJ$10:AJ29)) -> 0 | AL29: =IF(AJ28="",0,VAR(AJ$10:AJ29)) -> 0 | AP29: =IF(AO29="",0,AVERAGE(AO$10:AO29)) -> 0 | AQ29: =IF(AO28="",0,VAR(AO$10:AO29)) -> 0 | AU29: =IF(AT29="",0,AVERAGE(AT$10:AT29)) -> 0 | AV29: =IF(AT28="",0,VAR(AT$10:AT29)) -> 0 | AZ29: =IF(AY29="",0,AVERAGE(AY$10:AY29)) -> 0 | BA29: =IF(AY28="",0,VAR(AY$10:AY29)) -> 0
G30: =IF(F30="",0,AVERAGE($F$10:F30)) -> 0 | H30: =IF(F29="",0,VAR($F$10:F30)) -> 0 | L30: =IF(K30="",0,AVERAGE($K$10:K30)) -> 0 | M30: =IF(K29="",0,VAR($K$10:K30)) -> 0 | Q30: =IF(P30="",0,AVERAGE(P$10:P30)) -> 0 | R30: =IF(P29="",0,VAR(P$10:P30)) -> 0 | V30: =IF(U30="",0,AVERAGE(U$10:U30)) -> 0 | W30: =IF(U29="",0,VAR(U$10:U30)) -> 0 | AA30: =IF(Z30="",0,AVERAGE(Z$10:Z30)) -> 0 | AB30: =IF(Z29="",0,VAR(Z$10:Z30)) -> 0 | AF30: =IF(AE30="",0,AVERAGE(AE$10:AE30)) -> 0 | AG30: =IF(AE29="",0,VAR(AE$10:AE30)) -> 0 | AK30: =IF(AJ30="",0,AVERAGE(AJ$10:AJ30)) -> 0 | AL30: =IF(AJ29="",0,VAR(AJ$10:AJ30)) -> 0 | AP30: =IF(AO30="",0,AVERAGE(AO$10:AO30)) -> 0 | AQ30: =IF(AO29="",0,VAR(AO$10:AO30)) -> 0 | AU30: =IF(AT30="",0,AVERAGE(AT$10:AT30)) -> 0 | AV30: =IF(AT29="",0,VAR(AT$10:AT30)) -> 0 | AZ30: =IF(AY30="",0,AVERAGE(AY$10:AY30)) -> 0 | BA30: =IF(AY29="",0,VAR(AY$10:AY30)) -> 0
F31: =IF(E31="","",+(E31-E30)/E30) ->  | G31: =IF(F31="",0,AVERAGE($F$10:F31)) -> 0 | H31: =IF(F30="",0,VAR($F$10:F31)) -> 0 | L31: =IF(K31="",0,AVERAGE($K$10:K31)) -> 0 | M31: =IF(K30="",0,VAR($K$10:K31)) -> 0 | Q31: =IF(P31="",0,AVERAGE(P$10:P31)) -> 0 | R31: =IF(P30="",0,VAR(P$10:P31)) -> 0 | V31: =IF(U31="",0,AVERAGE(U$10:U31)) -> 0 | W31: =IF(U30="",0,VAR(U$10:U31)) -> 0 | AA31: =IF(Z31="",0,AVERAGE(Z$10:Z31)) -> 0 | AB31: =IF(Z30="",0,VAR(Z$10:Z31)) -> 0 | AF31: =IF(AE31="",0,AVERAGE(AE$10:AE31)) -> 0 | AG31: =IF(AE30="",0,VAR(AE$10:AE31)) -> 0 | AK31: =IF(AJ31="",0,AVERAGE(AJ$10:AJ31)) -> 0 | AL31: =IF(AJ30="",0,VAR(AJ$10:AJ31)) -> 0 | AP31: =IF(AO31="",0,AVERAGE(AO$10:AO31)) -> 0 | AQ31: =IF(AO30="",0,VAR(AO$10:AO31)) -> 0 | AU31: =IF(AT31="",0,AVERAGE(AT$10:AT31)) -> 0 | AV31: =IF(AT30="",0,VAR(AT$10:AT31)) -> 0 | AZ31: =IF(AY31="",0,AVERAGE(AY$10:AY31)) -> 0 | BA31: =IF(AY30="",0,VAR(AY$10:AY31)) -> 0
G32: =IF(F32="",0,AVERAGE($F$10:F32)) -> 0 | H32: =IF(F31="",0,VAR($F$10:F32)) -> 0 | L32: =IF(K32="",0,AVERAGE($K$10:K32)) -> 0 | M32: =IF(K31="",0,VAR($K$10:K32)) -> 0 | Q32: =IF(P32="",0,AVERAGE(P$10:P32)) -> 0 | R32: =IF(P31="",0,VAR(P$10:P32)) -> 0 | V32: =IF(U32="",0,AVERAGE(U$10:U32)) -> 0 | W32: =IF(U31="",0,VAR(U$10:U32)) -> 0 | AA32: =IF(Z32="",0,AVERAGE(Z$10:Z32)) -> 0 | AB32: =IF(Z31="",0,VAR(Z$10:Z32)) -> 0 | AF32: =IF(AE32="",0,AVERAGE(AE$10:AE32)) -> 0 | AG32: =IF(AE31="",0,VAR(AE$10:AE32)) -> 0 | AK32: =IF(AJ32="",0,AVERAGE(AJ$10:AJ32)) -> 0 | AL32: =IF(AJ31="",0,VAR(AJ$10:AJ32)) -> 0 | AP32: =IF(AO32="",0,AVERAGE(AO$10:AO32)) -> 0 | AQ32: =IF(AO31="",0,VAR(AO$10:AO32)) -> 0 | AU32: =IF(AT32="",0,AVERAGE(AT$10:AT32)) -> 0 | AV32: =IF(AT31="",0,VAR(AT$10:AT32)) -> 0 | AZ32: =IF(AY32="",0,AVERAGE(AY$10:AY32)) -> 0 | BA32: =IF(AY31="",0,VAR(AY$10:AY32)) -> 0
G33: =IF(F33="",0,AVERAGE($F$10:F33)) -> 0 | H33: =IF(F32="",0,VAR($F$10:F33)) -> 0 | L33: =IF(K33="",0,AVERAGE($K$10:K33)) -> 0 | M33: =IF(K32="",0,VAR($K$10:K33)) -> 0 | Q33: =IF(P33="",0,AVERAGE(P$10:P33)) -> 0 | R33: =IF(P32="",0,VAR(P$10:P33)) -> 0 | V33: =IF(U33="",0,AVERAGE(U$10:U33)) -> 0 | W33: =IF(U32="",0,VAR(U$10:U33)) -> 0 | AA33: =IF(Z33="",0,AVERAGE(Z$10:Z33)) -> 0 | AB33: =IF(Z32="",0,VAR(Z$10:Z33)) -> 0 | AF33: =IF(AE33="",0,AVERAGE(AE$10:AE33)) -> 0 | AG33: =IF(AE32="",0,VAR(AE$10:AE33)) -> 0 | AK33: =IF(AJ33="",0,AVERAGE(AJ$10:AJ33)) -> 0 | AL33: =IF(AJ32="",0,VAR(AJ$10:AJ33)) -> 0 | AP33: =IF(AO33="",0,AVERAGE(AO$10:AO33)) -> 0 | AQ33: =IF(AO32="",0,VAR(AO$10:AO33)) -> 0 | AU33: =IF(AT33="",0,AVERAGE(AT$10:AT33)) -> 0 | AV33: =IF(AT32="",0,VAR(AT$10:AT33)) -> 0 | AZ33: =IF(AY33="",0,AVERAGE(AY$10:AY33)) -> 0 | BA33: =IF(AY32="",0,VAR(AY$10:AY33)) -> 0
F34: =IF(E34="","",+(E34-E33)/E33) ->  | G34: =IF(F34="",0,AVERAGE($F$10:F34)) -> 0 | H34: =IF(F33="",0,VAR($F$10:F34)) -> 0 | L34: =IF(K34="",0,AVERAGE($K$10:K34)) -> 0 | M34: =IF(K33="",0,VAR($K$10:K34)) -> 0 | Q34: =IF(P34="",0,AVERAGE(P$10:P34)) -> 0 | R34: =IF(P33="",0,VAR(P$10:P34)) -> 0 | V34: =IF(U34="",0,AVERAGE(U$10:U34)) -> 0 | W34: =IF(U33="",0,VAR(U$10:U34)) -> 0 | AA34: =IF(Z34="",0,AVERAGE(Z$10:Z34)) -> 0 | AB34: =IF(Z33="",0,VAR(Z$10:Z34)) -> 0 | AF34: =IF(AE34="",0,AVERAGE(AE$10:AE34)) -> 0 | AG34: =IF(AE33="",0,VAR(AE$10:AE34)) -> 0 | AK34: =IF(AJ34="",0,AVERAGE(AJ$10:AJ34)) -> 0 | AL34: =IF(AJ33="",0,VAR(AJ$10:AJ34)) -> 0 | AP34: =IF(AO34="",0,AVERAGE(AO$10:AO34)) -> 0 | AQ34: =IF(AO33="",0,VAR(AO$10:AO34)) -> 0 | AU34: =IF(AT34="",0,AVERAGE(AT$10:AT34)) -> 0 | AV34: =IF(AT33="",0,VAR(AT$10:AT34)) -> 0 | AZ34: =IF(AY34="",0,AVERAGE(AY$10:AY34)) -> 0 | BA34: =IF(AY33="",0,VAR(AY$10:AY34)) -> 0
G35: =IF(F35="",0,AVERAGE($F$10:F35)) -> 0 | H35: =IF(F34="",0,VAR($F$10:F35)) -> 0 | L35: =IF(K35="",0,AVERAGE($K$10:K35)) -> 0 | M35: =IF(K34="",0,VAR($K$10:K35)) -> 0 | Q35: =IF(P35="",0,AVERAGE(P$10:P35)) -> 0 | R35: =IF(P34="",0,VAR(P$10:P35)) -> 0 | V35: =IF(U35="",0,AVERAGE(U$10:U35)) -> 0 | W35: =IF(U34="",0,VAR(U$10:U35)) -> 0 | AA35: =IF(Z35="",0,AVERAGE(Z$10:Z35)) -> 0 | AB35: =IF(Z34="",0,VAR(Z$10:Z35)) -> 0 | AF35: =IF(AE35="",0,AVERAGE(AE$10:AE35)) -> 0 | AG35: =IF(AE34="",0,VAR(AE$10:AE35)) -> 0 | AK35: =IF(AJ35="",0,AVERAGE(AJ$10:AJ35)) -> 0 | AL35: =IF(AJ34="",0,VAR(AJ$10:AJ35)) -> 0 | AP35: =IF(AO35="",0,AVERAGE(AO$10:AO35)) -> 0 | AQ35: =IF(AO34="",0,VAR(AO$10:AO35)) -> 0 | AU35: =IF(AT35="",0,AVERAGE(AT$10:AT35)) -> 0 | AV35: =IF(AT34="",0,VAR(AT$10:AT35)) -> 0 | AZ35: =IF(AY35="",0,AVERAGE(AY$10:AY35)) -> 0 | BA35: =IF(AY34="",0,VAR(AY$10:AY35)) -> 0
G36: =IF(F36="",0,AVERAGE($F$10:F36)) -> 0 | H36: =IF(F35="",0,VAR($F$10:F36)) -> 0 | L36: =IF(K36="",0,AVERAGE($K$10:K36)) -> 0 | M36: =IF(K35="",0,VAR($K$10:K36)) -> 0 | Q36: =IF(P36="",0,AVERAGE(P$10:P36)) -> 0 | R36: =IF(P35="",0,VAR(P$10:P36)) -> 0 | V36: =IF(U36="",0,AVERAGE(U$10:U36)) -> 0 | W36: =IF(U35="",0,VAR(U$10:U36)) -> 0 | AA36: =IF(Z36="",0,AVERAGE(Z$10:Z36)) -> 0 | AB36: =IF(Z35="",0,VAR(Z$10:Z36)) -> 0 | AF36: =IF(AE36="",0,AVERAGE(AE$10:AE36)) -> 0 | AG36: =IF(AE35="",0,VAR(AE$10:AE36)) -> 0 | AK36: =IF(AJ36="",0,AVERAGE(AJ$10:AJ36)) -> 0 | AL36: =IF(AJ35="",0,VAR(AJ$10:AJ36)) -> 0 | AP36: =IF(AO36="",0,AVERAGE(AO$10:AO36)) -> 0 | AQ36: =IF(AO35="",0,VAR(AO$10:AO36)) -> 0 | AU36: =IF(AT36="",0,AVERAGE(AT$10:AT36)) -> 0 | AV36: =IF(AT35="",0,VAR(AT$10:AT36)) -> 0 | AZ36: =IF(AY36="",0,AVERAGE(AY$10:AY36)) -> 0 | BA36: =IF(AY35="",0,VAR(AY$10:AY36)) -> 0
F37: =IF(E37="","",+(E37-E36)/E36) ->  | G37: =IF(F37="",0,AVERAGE($F$10:F37)) -> 0 | H37: =IF(F36="",0,VAR($F$10:F37)) -> 0 | L37: =IF(K37="",0,AVERAGE($K$10:K37)) -> 0 | M37: =IF(K36="",0,VAR($K$10:K37)) -> 0 | Q37: =IF(P37="",0,AVERAGE(P$10:P37)) -> 0 | R37: =IF(P36="",0,VAR(P$10:P37)) -> 0 | V37: =IF(U37="",0,AVERAGE(U$10:U37)) -> 0 | W37: =IF(U36="",0,VAR(U$10:U37)) -> 0 | AA37: =IF(Z37="",0,AVERAGE(Z$10:Z37)) -> 0 | AB37: =IF(Z36="",0,VAR(Z$10:Z37)) -> 0 | AF37: =IF(AE37="",0,AVERAGE(AE$10:AE37)) -> 0 | AG37: =IF(AE36="",0,VAR(AE$10:AE37)) -> 0 | AK37: =IF(AJ37="",0,AVERAGE(AJ$10:AJ37)) -> 0 | AL37: =IF(AJ36="",0,VAR(AJ$10:AJ37)) -> 0 | AP37: =IF(AO37="",0,AVERAGE(AO$10:AO37)) -> 0 | AQ37: =IF(AO36="",0,VAR(AO$10:AO37)) -> 0 | AU37: =IF(AT37="",0,AVERAGE(AT$10:AT37)) -> 0 | AV37: =IF(AT36="",0,VAR(AT$10:AT37)) -> 0 | AZ37: =IF(AY37="",0,AVERAGE(AY$10:AY37)) -> 0 | BA37: =IF(AY36="",0,VAR(AY$10:AY37)) -> 0
G38: =IF(F38="",0,AVERAGE($F$10:F38)) -> 0 | H38: =IF(F37="",0,VAR($F$10:F38)) -> 0 | L38: =IF(K38="",0,AVERAGE($K$10:K38)) -> 0 | M38: =IF(K37="",0,VAR($K$10:K38)) -> 0 | Q38: =IF(P38="",0,AVERAGE(P$10:P38)) -> 0 | R38: =IF(P37="",0,VAR(P$10:P38)) -> 0 | V38: =IF(U38="",0,AVERAGE(U$10:U38)) -> 0 | W38: =IF(U37="",0,VAR(U$10:U38)) -> 0 | AA38: =IF(Z38="",0,AVERAGE(Z$10:Z38)) -> 0 | AB38: =IF(Z37="",0,VAR(Z$10:Z38)) -> 0 | AF38: =IF(AE38="",0,AVERAGE(AE$10:AE38)) -> 0 | AG38: =IF(AE37="",0,VAR(AE$10:AE38)) -> 0 | AK38: =IF(AJ38="",0,AVERAGE(AJ$10:AJ38)) -> 0 | AL38: =IF(AJ37="",0,VAR(AJ$10:AJ38)) -> 0 | AP38: =IF(AO38="",0,AVERAGE(AO$10:AO38)) -> 0 | AQ38: =IF(AO37="",0,VAR(AO$10:AO38)) -> 0 | AU38: =IF(AT38="",0,AVERAGE(AT$10:AT38)) -> 0 | AV38: =IF(AT37="",0,VAR(AT$10:AT38)) -> 0 | AZ38: =IF(AY38="",0,AVERAGE(AY$10:AY38)) -> 0 | BA38: =IF(AY37="",0,VAR(AY$10:AY38)) -> 0
G39: =IF(F39="",0,AVERAGE($F$10:F39)) -> 0 | H39: =IF(F38="",0,VAR($F$10:F39)) -> 0 | L39: =IF(K39="",0,AVERAGE($K$10:K39)) -> 0 | M39: =IF(K38="",0,VAR($K$10:K39)) -> 0 | Q39: =IF(P39="",0,AVERAGE(P$10:P39)) -> 0 | R39: =IF(P38="",0,VAR(P$10:P39)) -> 0 | V39: =IF(U39="",0,AVERAGE(U$10:U39)) -> 0 | W39: =IF(U38="",0,VAR(U$10:U39)) -> 0 | AA39: =IF(Z39="",0,AVERAGE(Z$10:Z39)) -> 0 | AB39: =IF(Z38="",0,VAR(Z$10:Z39)) -> 0 | AF39: =IF(AE39="",0,AVERAGE(AE$10:AE39)) -> 0 | AG39: =IF(AE38="",0,VAR(AE$10:AE39)) -> 0 | AK39: =IF(AJ39="",0,AVERAGE(AJ$10:AJ39)) -> 0 | AL39: =IF(AJ38="",0,VAR(AJ$10:AJ39)) -> 0 | AP39: =IF(AO39="",0,AVERAGE(AO$10:AO39)) -> 0 | AQ39: =IF(AO38="",0,VAR(AO$10:AO39)) -> 0 | AU39: =IF(AT39="",0,AVERAGE(AT$10:AT39)) -> 0 | AV39: =IF(AT38="",0,VAR(AT$10:AT39)) -> 0 | AZ39: =IF(AY39="",0,AVERAGE(AY$10:AY39)) -> 0 | BA39: =IF(AY38="",0,VAR(AY$10:AY39)) -> 0
F40: =IF(E40="","",+(E40-E39)/E39) ->  | G40: =IF(F40="",0,AVERAGE($F$10:F40)) -> 0 | H40: =IF(F39="",0,VAR($F$10:F40)) -> 0 | L40: =IF(K40="",0,AVERAGE($K$10:K40)) -> 0 | M40: =IF(K39="",0,VAR($K$10:K40)) -> 0 | Q40: =IF(P40="",0,AVERAGE(P$10:P40)) -> 0 | R40: =IF(P39="",0,VAR(P$10:P40)) -> 0 | V40: =IF(U40="",0,AVERAGE(U$10:U40)) -> 0 | W40: =IF(U39="",0,VAR(U$10:U40)) -> 0 | AA40: =IF(Z40="",0,AVERAGE(Z$10:Z40)) -> 0 | AB40: =IF(Z39="",0,VAR(Z$10:Z40)) -> 0 | AF40: =IF(AE40="",0,AVERAGE(AE$10:AE40)) -> 0 | AG40: =IF(AE39="",0,VAR(AE$10:AE40)) -> 0 | AK40: =IF(AJ40="",0,AVERAGE(AJ$10:AJ40)) -> 0 | AL40: =IF(AJ39="",0,VAR(AJ$10:AJ40)) -> 0 | AP40: =IF(AO40="",0,AVERAGE(AO$10:AO40)) -> 0 | AQ40: =IF(AO39="",0,VAR(AO$10:AO40)) -> 0 | AU40: =IF(AT40="",0,AVERAGE(AT$10:AT40)) -> 0 | AV40: =IF(AT39="",0,VAR(AT$10:AT40)) -> 0 | AZ40: =IF(AY40="",0,AVERAGE(AY$10:AY40)) -> 0 | BA40: =IF(AY39="",0,VAR(AY$10:AY40)) -> 0
G41: =IF(F41="",0,AVERAGE($F$10:F41)) -> 0 | H41: =IF(F40="",0,VAR($F$10:F41)) -> 0 | L41: =IF(K41="",0,AVERAGE($K$10:K41)) -> 0 | M41: =IF(K40="",0,VAR($K$10:K41)) -> 0 | Q41: =IF(P41="",0,AVERAGE(P$10:P41)) -> 0 | R41: =IF(P40="",0,VAR(P$10:P41)) -> 0 | V41: =IF(U41="",0,AVERAGE(U$10:U41)) -> 0 | W41: =IF(U40="",0,VAR(U$10:U41)) -> 0 | AA41: =IF(Z41="",0,AVERAGE(Z$10:Z41)) -> 0 | AB41: =IF(Z40="",0,VAR(Z$10:Z41)) -> 0 | AF41: =IF(AE41="",0,AVERAGE(AE$10:AE41)) -> 0 | AG41: =IF(AE40="",0,VAR(AE$10:AE41)) -> 0 | AK41: =IF(AJ41="",0,AVERAGE(AJ$10:AJ41)) -> 0 | AL41: =IF(AJ40="",0,VAR(AJ$10:AJ41)) -> 0 | AP41: =IF(AO41="",0,AVERAGE(AO$10:AO41)) -> 0 | AQ41: =IF(AO40="",0,VAR(AO$10:AO41)) -> 0 | AU41: =IF(AT41="",0,AVERAGE(AT$10:AT41)) -> 0 | AV41: =IF(AT40="",0,VAR(AT$10:AT41)) -> 0 | AZ41: =IF(AY41="",0,AVERAGE(AY$10:AY41)) -> 0 | BA41: =IF(AY40="",0,VAR(AY$10:AY41)) -> 0
G42: =IF(F42="",0,AVERAGE($F$10:F42)) -> 0 | H42: =IF(F41="",0,VAR($F$10:F42)) -> 0 | L42: =IF(K42="",0,AVERAGE($K$10:K42)) -> 0 | M42: =IF(K41="",0,VAR($K$10:K42)) -> 0 | Q42: =IF(P42="",0,AVERAGE(P$10:P42)) -> 0 | R42: =IF(P41="",0,VAR(P$10:P42)) -> 0 | V42: =IF(U42="",0,AVERAGE(U$10:U42)) -> 0 | W42: =IF(U41="",0,VAR(U$10:U42)) -> 0 | AA42: =IF(Z42="",0,AVERAGE(Z$10:Z42)) -> 0 | AB42: =IF(Z41="",0,VAR(Z$10:Z42)) -> 0 | AF42: =IF(AE42="",0,AVERAGE(AE$10:AE42)) -> 0 | AG42: =IF(AE41="",0,VAR(AE$10:AE42)) -> 0 | AK42: =IF(AJ42="",0,AVERAGE(AJ$10:AJ42)) -> 0 | AL42: =IF(AJ41="",0,VAR(AJ$10:AJ42)) -> 0 | AP42: =IF(AO42="",0,AVERAGE(AO$10:AO42)) -> 0 | AQ42: =IF(AO41="",0,VAR(AO$10:AO42)) -> 0 | AU42: =IF(AT42="",0,AVERAGE(AT$10:AT42)) -> 0 | AV42: =IF(AT41="",0,VAR(AT$10:AT42)) -> 0 | AZ42: =IF(AY42="",0,AVERAGE(AY$10:AY42)) -> 0 | BA42: =IF(AY41="",0,VAR(AY$10:AY42)) -> 0
F43: =IF(E43="","",+(E43-E42)/E42) ->  | G43: =IF(F43="",0,AVERAGE($F$10:F43)) -> 0 | H43: =IF(F42="",0,VAR($F$10:F43)) -> 0 | L43: =IF(K43="",0,AVERAGE($K$10:K43)) -> 0 | M43: =IF(K42="",0,VAR($K$10:K43)) -> 0 | Q43: =IF(P43="",0,AVERAGE(P$10:P43)) -> 0 | R43: =IF(P42="",0,VAR(P$10:P43)) -> 0 | V43: =IF(U43="",0,AVERAGE(U$10:U43)) -> 0 | W43: =IF(U42="",0,VAR(U$10:U43)) -> 0 | AA43: =IF(Z43="",0,AVERAGE(Z$10:Z43)) -> 0 | AB43: =IF(Z42="",0,VAR(Z$10:Z43)) -> 0 | AF43: =IF(AE43="",0,AVERAGE(AE$10:AE43)) -> 0 | AG43: =IF(AE42="",0,VAR(AE$10:AE43)) -> 0 | AK43: =IF(AJ43="",0,AVERAGE(AJ$10:AJ43)) -> 0 | AL43: =IF(AJ42="",0,VAR(AJ$10:AJ43)) -> 0 | AP43: =IF(AO43="",0,AVERAGE(AO$10:AO43)) -> 0 | AQ43: =IF(AO42="",0,VAR(AO$10:AO43)) -> 0 | AU43: =IF(AT43="",0,AVERAGE(AT$10:AT43)) -> 0 | AV43: =IF(AT42="",0,VAR(AT$10:AT43)) -> 0 | AZ43: =IF(AY43="",0,AVERAGE(AY$10:AY43)) -> 0 | BA43: =IF(AY42="",0,VAR(AY$10:AY43)) -> 0
G44: =IF(F44="",0,AVERAGE($F$10:F44)) -> 0 | H44: =IF(F43="",0,VAR($F$10:F44)) -> 0 | L44: =IF(K44="",0,AVERAGE($K$10:K44)) -> 0 | M44: =IF(K43="",0,VAR($K$10:K44)) -> 0 | Q44: =IF(P44="",0,AVERAGE(P$10:P44)) -> 0 | R44: =IF(P43="",0,VAR(P$10:P44)) -> 0 | V44: =IF(U44="",0,AVERAGE(U$10:U44)) -> 0 | W44: =IF(U43="",0,VAR(U$10:U44)) -> 0 | AA44: =IF(Z44="",0,AVERAGE(Z$10:Z44)) -> 0 | AB44: =IF(Z43="",0,VAR(Z$10:Z44)) -> 0 | AF44: =IF(AE44="",0,AVERAGE(AE$10:AE44)) -> 0 | AG44: =IF(AE43="",0,VAR(AE$10:AE44)) -> 0 | AK44: =IF(AJ44="",0,AVERAGE(AJ$10:AJ44)) -> 0 | AL44: =IF(AJ43="",0,VAR(AJ$10:AJ44)) -> 0 | AP44: =IF(AO44="",0,AVERAGE(AO$10:AO44)) -> 0 | AQ44: =IF(AO43="",0,VAR(AO$10:AO44)) -> 0 | AU44: =IF(AT44="",0,AVERAGE(AT$10:AT44)) -> 0 | AV44: =IF(AT43="",0,VAR(AT$10:AT44)) -> 0 | AZ44: =IF(AY44="",0,AVERAGE(AY$10:AY44)) -> 0 | BA44: =IF(AY43="",0,VAR(AY$10:AY44)) -> 0
G45: =IF(F45="",0,AVERAGE($F$10:F45)) -> 0 | H45: =IF(F44="",0,VAR($F$10:F45)) -> 0 | L45: =IF(K45="",0,AVERAGE($K$10:K45)) -> 0 | M45: =IF(K44="",0,VAR($K$10:K45)) -> 0 | Q45: =IF(P45="",0,AVERAGE(P$10:P45)) -> 0 | R45: =IF(P44="",0,VAR(P$10:P45)) -> 0 | V45: =IF(U45="",0,AVERAGE(U$10:U45)) -> 0 | W45: =IF(U44="",0,VAR(U$10:U45)) -> 0 | AA45: =IF(Z45="",0,AVERAGE(Z$10:Z45)) -> 0 | AB45: =IF(Z44="",0,VAR(Z$10:Z45)) -> 0 | AF45: =IF(AE45="",0,AVERAGE(AE$10:AE45)) -> 0 | AG45: =IF(AE44="",0,VAR(AE$10:AE45)) -> 0 | AK45: =IF(AJ45="",0,AVERAGE(AJ$10:AJ45)) -> 0 | AL45: =IF(AJ44="",0,VAR(AJ$10:AJ45)) -> 0 | AP45: =IF(AO45="",0,AVERAGE(AO$10:AO45)) -> 0 | AQ45: =IF(AO44="",0,VAR(AO$10:AO45)) -> 0 | AU45: =IF(AT45="",0,AVERAGE(AT$10:AT45)) -> 0 | AV45: =IF(AT44="",0,VAR(AT$10:AT45)) -> 0 | AZ45: =IF(AY45="",0,AVERAGE(AY$10:AY45)) -> 0 | BA45: =IF(AY44="",0,VAR(AY$10:AY45)) -> 0
F46: =IF(E46="","",+(E46-E45)/E45) ->  | G46: =IF(F46="",0,AVERAGE($F$10:F46)) -> 0 | H46: =IF(F45="",0,VAR($F$10:F46)) -> 0 | L46: =IF(K46="",0,AVERAGE($K$10:K46)) -> 0 | M46: =IF(K45="",0,VAR($K$10:K46)) -> 0 | Q46: =IF(P46="",0,AVERAGE(P$10:P46)) -> 0 | R46: =IF(P45="",0,VAR(P$10:P46)) -> 0 | V46: =IF(U46="",0,AVERAGE(U$10:U46)) -> 0 | W46: =IF(U45="",0,VAR(U$10:U46)) -> 0 | AA46: =IF(Z46="",0,AVERAGE(Z$10:Z46)) -> 0 | AB46: =IF(Z45="",0,VAR(Z$10:Z46)) -> 0 | AF46: =IF(AE46="",0,AVERAGE(AE$10:AE46)) -> 0 | AG46: =IF(AE45="",0,VAR(AE$10:AE46)) -> 0 | AK46: =IF(AJ46="",0,AVERAGE(AJ$10:AJ46)) -> 0 | AL46: =IF(AJ45="",0,VAR(AJ$10:AJ46)) -> 0 | AP46: =IF(AO46="",0,AVERAGE(AO$10:AO46)) -> 0 | AQ46: =IF(AO45="",0,VAR(AO$10:AO46)) -> 0 | AU46: =IF(AT46="",0,AVERAGE(AT$10:AT46)) -> 0 | AV46: =IF(AT45="",0,VAR(AT$10:AT46)) -> 0 | AZ46: =IF(AY46="",0,AVERAGE(AY$10:AY46)) -> 0 | BA46: =IF(AY45="",0,VAR(AY$10:AY46)) -> 0
G47: =IF(F47="",0,AVERAGE($F$10:F47)) -> 0 | H47: =IF(F46="",0,VAR($F$10:F47)) -> 0 | L47: =IF(K47="",0,AVERAGE($K$10:K47)) -> 0 | M47: =IF(K46="",0,VAR($K$10:K47)) -> 0 | Q47: =IF(P47="",0,AVERAGE(P$10:P47)) -> 0 | R47: =IF(P46="",0,VAR(P$10:P47)) -> 0 | V47: =IF(U47="",0,AVERAGE(U$10:U47)) -> 0 | W47: =IF(U46="",0,VAR(U$10:U47)) -> 0 | AA47: =IF(Z47="",0,AVERAGE(Z$10:Z47)) -> 0 | AB47: =IF(Z46="",0,VAR(Z$10:Z47)) -> 0 | AF47: =IF(AE47="",0,AVERAGE(AE$10:AE47)) -> 0 | AG47: =IF(AE46="",0,VAR(AE$10:AE47)) -> 0 | AK47: =IF(AJ47="",0,AVERAGE(AJ$10:AJ47)) -> 0 | AL47: =IF(AJ46="",0,VAR(AJ$10:AJ47)) -> 0 | AP47: =IF(AO47="",0,AVERAGE(AO$10:AO47)) -> 0 | AQ47: =IF(AO46="",0,VAR(AO$10:AO47)) -> 0 | AU47: =IF(AT47="",0,AVERAGE(AT$10:AT47)) -> 0 | AV47: =IF(AT46="",0,VAR(AT$10:AT47)) -> 0 | AZ47: =IF(AY47="",0,AVERAGE(AY$10:AY47)) -> 0 | BA47: =IF(AY46="",0,VAR(AY$10:AY47)) -> 0
G48: =IF(F48="",0,AVERAGE($F$10:F48)) -> 0 | H48: =IF(F47="",0,VAR($F$10:F48)) -> 0 | L48: =IF(K48="",0,AVERAGE($K$10:K48)) -> 0 | M48: =IF(K47="",0,VAR($K$10:K48)) -> 0 | Q48: =IF(P48="",0,AVERAGE(P$10:P48)) -> 0 | R48: =IF(P47="",0,VAR(P$10:P48)) -> 0 | V48: =IF(U48="",0,AVERAGE(U$10:U48)) -> 0 | W48: =IF(U47="",0,VAR(U$10:U48)) -> 0 | AA48: =IF(Z48="",0,AVERAGE(Z$10:Z48)) -> 0 | AB48: =IF(Z47="",0,VAR(Z$10:Z48)) -> 0 | AF48: =IF(AE48="",0,AVERAGE(AE$10:AE48)) -> 0 | AG48: =IF(AE47="",0,VAR(AE$10:AE48)) -> 0 | AK48: =IF(AJ48="",0,AVERAGE(AJ$10:AJ48)) -> 0 | AL48: =IF(AJ47="",0,VAR(AJ$10:AJ48)) -> 0 | AP48: =IF(AO48="",0,AVERAGE(AO$10:AO48)) -> 0 | AQ48: =IF(AO47="",0,VAR(AO$10:AO48)) -> 0 | AU48: =IF(AT48="",0,AVERAGE(AT$10:AT48)) -> 0 | AV48: =IF(AT47="",0,VAR(AT$10:AT48)) -> 0 | AZ48: =IF(AY48="",0,AVERAGE(AY$10:AY48)) -> 0 | BA48: =IF(AY47="",0,VAR(AY$10:AY48)) -> 0
F49: =IF(E49="","",+(E49-E48)/E48) ->  | G49: =IF(F49="",0,AVERAGE($F$10:F49)) -> 0 | H49: =IF(F48="",0,VAR($F$10:F49)) -> 0 | L49: =IF(K49="",0,AVERAGE($K$10:K49)) -> 0 | M49: =IF(K48="",0,VAR($K$10:K49)) -> 0 | Q49: =IF(P49="",0,AVERAGE(P$10:P49)) -> 0 | R49: =IF(P48="",0,VAR(P$10:P49)) -> 0 | V49: =IF(U49="",0,AVERAGE(U$10:U49)) -> 0 | W49: =IF(U48="",0,VAR(U$10:U49)) -> 0 | AA49: =IF(Z49="",0,AVERAGE(Z$10:Z49)) -> 0 | AB49: =IF(Z48="",0,VAR(Z$10:Z49)) -> 0 | AF49: =IF(AE49="",0,AVERAGE(AE$10:AE49)) -> 0 | AG49: =IF(AE48="",0,VAR(AE$10:AE49)) -> 0 | AK49: =IF(AJ49="",0,AVERAGE(AJ$10:AJ49)) -> 0 | AL49: =IF(AJ48="",0,VAR(AJ$10:AJ49)) -> 0 | AP49: =IF(AO49="",0,AVERAGE(AO$10:AO49)) -> 0 | AQ49: =IF(AO48="",0,VAR(AO$10:AO49)) -> 0 | AU49: =IF(AT49="",0,AVERAGE(AT$10:AT49)) -> 0 | AV49: =IF(AT48="",0,VAR(AT$10:AT49)) -> 0 | AZ49: =IF(AY49="",0,AVERAGE(AY$10:AY49)) -> 0 | BA49: =IF(AY48="",0,VAR(AY$10:AY49)) -> 0
G50: =IF(F50="",0,AVERAGE($F$10:F50)) -> 0 | H50: =IF(F49="",0,VAR($F$10:F50)) -> 0 | L50: =IF(K50="",0,AVERAGE($K$10:K50)) -> 0 | M50: =IF(K49="",0,VAR($K$10:K50)) -> 0 | Q50: =IF(P50="",0,AVERAGE(P$10:P50)) -> 0 | R50: =IF(P49="",0,VAR(P$10:P50)) -> 0 | V50: =IF(U50="",0,AVERAGE(U$10:U50)) -> 0 | W50: =IF(U49="",0,VAR(U$10:U50)) -> 0 | AA50: =IF(Z50="",0,AVERAGE(Z$10:Z50)) -> 0 | AB50: =IF(Z49="",0,VAR(Z$10:Z50)) -> 0 | AF50: =IF(AE50="",0,AVERAGE(AE$10:AE50)) -> 0 | AG50: =IF(AE49="",0,VAR(AE$10:AE50)) -> 0 | AK50: =IF(AJ50="",0,AVERAGE(AJ$10:AJ50)) -> 0 | AL50: =IF(AJ49="",0,VAR(AJ$10:AJ50)) -> 0 | AP50: =IF(AO50="",0,AVERAGE(AO$10:AO50)) -> 0 | AQ50: =IF(AO49="",0,VAR(AO$10:AO50)) -> 0 | AU50: =IF(AT50="",0,AVERAGE(AT$10:AT50)) -> 0 | AV50: =IF(AT49="",0,VAR(AT$10:AT50)) -> 0 | AZ50: =IF(AY50="",0,AVERAGE(AY$10:AY50)) -> 0 | BA50: =IF(AY49="",0,VAR(AY$10:AY50)) -> 0
G51: =IF(F51="",0,AVERAGE($F$10:F51)) -> 0 | H51: =IF(F50="",0,VAR($F$10:F51)) -> 0 | L51: =IF(K51="",0,AVERAGE($K$10:K51)) -> 0 | M51: =IF(K50="",0,VAR($K$10:K51)) -> 0 | Q51: =IF(P51="",0,AVERAGE(P$10:P51)) -> 0 | R51: =IF(P50="",0,VAR(P$10:P51)) -> 0 | V51: =IF(U51="",0,AVERAGE(U$10:U51)) -> 0 | W51: =IF(U50="",0,VAR(U$10:U51)) -> 0 | AA51: =IF(Z51="",0,AVERAGE(Z$10:Z51)) -> 0 | AB51: =IF(Z50="",0,VAR(Z$10:Z51)) -> 0 | AF51: =IF(AE51="",0,AVERAGE(AE$10:AE51)) -> 0 | AG51: =IF(AE50="",0,VAR(AE$10:AE51)) -> 0 | AK51: =IF(AJ51="",0,AVERAGE(AJ$10:AJ51)) -> 0 | AL51: =IF(AJ50="",0,VAR(AJ$10:AJ51)) -> 0 | AP51: =IF(AO51="",0,AVERAGE(AO$10:AO51)) -> 0 | AQ51: =IF(AO50="",0,VAR(AO$10:AO51)) -> 0 | AU51: =IF(AT51="",0,AVERAGE(AT$10:AT51)) -> 0 | AV51: =IF(AT50="",0,VAR(AT$10:AT51)) -> 0 | AZ51: =IF(AY51="",0,AVERAGE(AY$10:AY51)) -> 0 | BA51: =IF(AY50="",0,VAR(AY$10:AY51)) -> 0
F52: =IF(E52="","",+(E52-E51)/E51) ->  | G52: =IF(F52="",0,AVERAGE($F$10:F52)) -> 0 | H52: =IF(F51="",0,VAR($F$10:F52)) -> 0 | L52: =IF(K52="",0,AVERAGE($K$10:K52)) -> 0 | M52: =IF(K51="",0,VAR($K$10:K52)) -> 0 | Q52: =IF(P52="",0,AVERAGE(P$10:P52)) -> 0 | R52: =IF(P51="",0,VAR(P$10:P52)) -> 0 | V52: =IF(U52="",0,AVERAGE(U$10:U52)) -> 0 | W52: =IF(U51="",0,VAR(U$10:U52)) -> 0 | AA52: =IF(Z52="",0,AVERAGE(Z$10:Z52)) -> 0 | AB52: =IF(Z51="",0,VAR(Z$10:Z52)) -> 0 | AF52: =IF(AE52="",0,AVERAGE(AE$10:AE52)) -> 0 | AG52: =IF(AE51="",0,VAR(AE$10:AE52)) -> 0 | AK52: =IF(AJ52="",0,AVERAGE(AJ$10:AJ52)) -> 0 | AL52: =IF(AJ51="",0,VAR(AJ$10:AJ52)) -> 0 | AP52: =IF(AO52="",0,AVERAGE(AO$10:AO52)) -> 0 | AQ52: =IF(AO51="",0,VAR(AO$10:AO52)) -> 0 | AU52: =IF(AT52="",0,AVERAGE(AT$10:AT52)) -> 0 | AV52: =IF(AT51="",0,VAR(AT$10:AT52)) -> 0 | AZ52: =IF(AY52="",0,AVERAGE(AY$10:AY52)) -> 0 | BA52: =IF(AY51="",0,VAR(AY$10:AY52)) -> 0
G53: =IF(F53="",0,AVERAGE($F$10:F53)) -> 0 | H53: =IF(F52="",0,VAR($F$10:F53)) -> 0 | L53: =IF(K53="",0,AVERAGE($K$10:K53)) -> 0 | M53: =IF(K52="",0,VAR($K$10:K53)) -> 0 | Q53: =IF(P53="",0,AVERAGE(P$10:P53)) -> 0 | R53: =IF(P52="",0,VAR(P$10:P53)) -> 0 | V53: =IF(U53="",0,AVERAGE(U$10:U53)) -> 0 | W53: =IF(U52="",0,VAR(U$10:U53)) -> 0 | AA53: =IF(Z53="",0,AVERAGE(Z$10:Z53)) -> 0 | AB53: =IF(Z52="",0,VAR(Z$10:Z53)) -> 0 | AF53: =IF(AE53="",0,AVERAGE(AE$10:AE53)) -> 0 | AG53: =IF(AE52="",0,VAR(AE$10:AE53)) -> 0 | AK53: =IF(AJ53="",0,AVERAGE(AJ$10:AJ53)) -> 0 | AL53: =IF(AJ52="",0,VAR(AJ$10:AJ53)) -> 0 | AP53: =IF(AO53="",0,AVERAGE(AO$10:AO53)) -> 0 | AQ53: =IF(AO52="",0,VAR(AO$10:AO53)) -> 0 | AU53: =IF(AT53="",0,AVERAGE(AT$10:AT53)) -> 0 | AV53: =IF(AT52="",0,VAR(AT$10:AT53)) -> 0 | AZ53: =IF(AY53="",0,AVERAGE(AY$10:AY53)) -> 0 | BA53: =IF(AY52="",0,VAR(AY$10:AY53)) -> 0
G54: =IF(F54="",0,AVERAGE($F$10:F54)) -> 0 | H54: =IF(F53="",0,VAR($F$10:F54)) -> 0 | L54: =IF(K54="",0,AVERAGE($K$10:K54)) -> 0 | M54: =IF(K53="",0,VAR($K$10:K54)) -> 0 | Q54: =IF(P54="",0,AVERAGE(P$10:P54)) -> 0 | R54: =IF(P53="",0,VAR(P$10:P54)) -> 0 | V54: =IF(U54="",0,AVERAGE(U$10:U54)) -> 0 | W54: =IF(U53="",0,VAR(U$10:U54)) -> 0 | AA54: =IF(Z54="",0,AVERAGE(Z$10:Z54)) -> 0 | AB54: =IF(Z53="",0,VAR(Z$10:Z54)) -> 0 | AF54: =IF(AE54="",0,AVERAGE(AE$10:AE54)) -> 0 | AG54: =IF(AE53="",0,VAR(AE$10:AE54)) -> 0 | AK54: =IF(AJ54="",0,AVERAGE(AJ$10:AJ54)) -> 0 | AL54: =IF(AJ53="",0,VAR(AJ$10:AJ54)) -> 0 | AP54: =IF(AO54="",0,AVERAGE(AO$10:AO54)) -> 0 | AQ54: =IF(AO53="",0,VAR(AO$10:AO54)) -> 0 | AU54: =IF(AT54="",0,AVERAGE(AT$10:AT54)) -> 0 | AV54: =IF(AT53="",0,VAR(AT$10:AT54)) -> 0 | AZ54: =IF(AY54="",0,AVERAGE(AY$10:AY54)) -> 0 | BA54: =IF(AY53="",0,VAR(AY$10:AY54)) -> 0
F55: =IF(E55="","",+(E55-E54)/E54) ->  | G55: =IF(F55="",0,AVERAGE($F$10:F55)) -> 0 | H55: =IF(F54="",0,VAR($F$10:F55)) -> 0 | L55: =IF(K55="",0,AVERAGE($K$10:K55)) -> 0 | M55: =IF(K54="",0,VAR($K$10:K55)) -> 0 | Q55: =IF(P55="",0,AVERAGE(P$10:P55)) -> 0 | R55: =IF(P54="",0,VAR(P$10:P55)) -> 0 | V55: =IF(U55="",0,AVERAGE(U$10:U55)) -> 0 | W55: =IF(U54="",0,VAR(U$10:U55)) -> 0 | AA55: =IF(Z55="",0,AVERAGE(Z$10:Z55)) -> 0 | AB55: =IF(Z54="",0,VAR(Z$10:Z55)) -> 0 | AF55: =IF(AE55="",0,AVERAGE(AE$10:AE55)) -> 0 | AG55: =IF(AE54="",0,VAR(AE$10:AE55)) -> 0 | AK55: =IF(AJ55="",0,AVERAGE(AJ$10:AJ55)) -> 0 | AL55: =IF(AJ54="",0,VAR(AJ$10:AJ55)) -> 0 | AP55: =IF(AO55="",0,AVERAGE(AO$10:AO55)) -> 0 | AQ55: =IF(AO54="",0,VAR(AO$10:AO55)) -> 0 | AU55: =IF(AT55="",0,AVERAGE(AT$10:AT55)) -> 0 | AV55: =IF(AT54="",0,VAR(AT$10:AT55)) -> 0 | AZ55: =IF(AY55="",0,AVERAGE(AY$10:AY55)) -> 0 | BA55: =IF(AY54="",0,VAR(AY$10:AY55)) -> 0
G56: =IF(F56="",0,AVERAGE($F$10:F56)) -> 0 | H56: =IF(F55="",0,VAR($F$10:F56)) -> 0 | L56: =IF(K56="",0,AVERAGE($K$10:K56)) -> 0 | M56: =IF(K55="",0,VAR($K$10:K56)) -> 0 | Q56: =IF(P56="",0,AVERAGE(P$10:P56)) -> 0 | R56: =IF(P55="",0,VAR(P$10:P56)) -> 0 | V56: =IF(U56="",0,AVERAGE(U$10:U56)) -> 0 | W56: =IF(U55="",0,VAR(U$10:U56)) -> 0 | AA56: =IF(Z56="",0,AVERAGE(Z$10:Z56)) -> 0 | AB56: =IF(Z55="",0,VAR(Z$10:Z56)) -> 0 | AF56: =IF(AE56="",0,AVERAGE(AE$10:AE56)) -> 0 | AG56: =IF(AE55="",0,VAR(AE$10:AE56)) -> 0 | AK56: =IF(AJ56="",0,AVERAGE(AJ$10:AJ56)) -> 0 | AL56: =IF(AJ55="",0,VAR(AJ$10:AJ56)) -> 0 | AP56: =IF(AO56="",0,AVERAGE(AO$10:AO56)) -> 0 | AQ56: =IF(AO55="",0,VAR(AO$10:AO56)) -> 0 | AU56: =IF(AT56="",0,AVERAGE(AT$10:AT56)) -> 0 | AV56: =IF(AT55="",0,VAR(AT$10:AT56)) -> 0 | AZ56: =IF(AY56="",0,AVERAGE(AY$10:AY56)) -> 0 | BA56: =IF(AY55="",0,VAR(AY$10:AY56)) -> 0
G57: =IF(F57="",0,AVERAGE($F$10:F57)) -> 0 | H57: =IF(F56="",0,VAR($F$10:F57)) -> 0 | L57: =IF(K57="",0,AVERAGE($K$10:K57)) -> 0 | M57: =IF(K56="",0,VAR($K$10:K57)) -> 0 | Q57: =IF(P57="",0,AVERAGE(P$10:P57)) -> 0 | R57: =IF(P56="",0,VAR(P$10:P57)) -> 0 | V57: =IF(U57="",0,AVERAGE(U$10:U57)) -> 0 | W57: =IF(U56="",0,VAR(U$10:U57)) -> 0 | AA57: =IF(Z57="",0,AVERAGE(Z$10:Z57)) -> 0 | AB57: =IF(Z56="",0,VAR(Z$10:Z57)) -> 0 | AF57: =IF(AE57="",0,AVERAGE(AE$10:AE57)) -> 0 | AG57: =IF(AE56="",0,VAR(AE$10:AE57)) -> 0 | AK57: =IF(AJ57="",0,AVERAGE(AJ$10:AJ57)) -> 0 | AL57: =IF(AJ56="",0,VAR(AJ$10:AJ57)) -> 0 | AP57: =IF(AO57="",0,AVERAGE(AO$10:AO57)) -> 0 | AQ57: =IF(AO56="",0,VAR(AO$10:AO57)) -> 0 | AU57: =IF(AT57="",0,AVERAGE(AT$10:AT57)) -> 0 | AV57: =IF(AT56="",0,VAR(AT$10:AT57)) -> 0 | AZ57: =IF(AY57="",0,AVERAGE(AY$10:AY57)) -> 0 | BA57: =IF(AY56="",0,VAR(AY$10:AY57)) -> 0
F58: =IF(E58="","",+(E58-E57)/E57) ->  | G58: =IF(F58="",0,AVERAGE($F$10:F58)) -> 0 | H58: =IF(F57="",0,VAR($F$10:F58)) -> 0 | L58: =IF(K58="",0,AVERAGE($K$10:K58)) -> 0 | M58: =IF(K57="",0,VAR($K$10:K58)) -> 0 | Q58: =IF(P58="",0,AVERAGE(P$10:P58)) -> 0 | R58: =IF(P57="",0,VAR(P$10:P58)) -> 0 | V58: =IF(U58="",0,AVERAGE(U$10:U58)) -> 0 | W58: =IF(U57="",0,VAR(U$10:U58)) -> 0 | AA58: =IF(Z58="",0,AVERAGE(Z$10:Z58)) -> 0 | AB58: =IF(Z57="",0,VAR(Z$10:Z58)) -> 0 | AF58: =IF(AE58="",0,AVERAGE(AE$10:AE58)) -> 0 | AG58: =IF(AE57="",0,VAR(AE$10:AE58)) -> 0 | AK58: =IF(AJ58="",0,AVERAGE(AJ$10:AJ58)) -> 0 | AL58: =IF(AJ57="",0,VAR(AJ$10:AJ58)) -> 0 | AP58: =IF(AO58="",0,AVERAGE(AO$10:AO58)) -> 0 | AQ58: =IF(AO57="",0,VAR(AO$10:AO58)) -> 0 | AU58: =IF(AT58="",0,AVERAGE(AT$10:AT58)) -> 0 | AV58: =IF(AT57="",0,VAR(AT$10:AT58)) -> 0 | AZ58: =IF(AY58="",0,AVERAGE(AY$10:AY58)) -> 0 | BA58: =IF(AY57="",0,VAR(AY$10:AY58)) -> 0
G59: =IF(F59="",0,AVERAGE($F$10:F59)) -> 0 | H59: =IF(F58="",0,VAR($F$10:F59)) -> 0 | L59: =IF(K59="",0,AVERAGE($K$10:K59)) -> 0 | M59: =IF(K58="",0,VAR($K$10:K59)) -> 0 | Q59: =IF(P59="",0,AVERAGE(P$10:P59)) -> 0 | R59: =IF(P58="",0,VAR(P$10:P59)) -> 0 | V59: =IF(U59="",0,AVERAGE(U$10:U59)) -> 0 | W59: =IF(U58="",0,VAR(U$10:U59)) -> 0 | AA59: =IF(Z59="",0,AVERAGE(Z$10:Z59)) -> 0 | AB59: =IF(Z58="",0,VAR(Z$10:Z59)) -> 0 | AF59: =IF(AE59="",0,AVERAGE(AE$10:AE59)) -> 0 | AG59: =IF(AE58="",0,VAR(AE$10:AE59)) -> 0 | AK59: =IF(AJ59="",0,AVERAGE(AJ$10:AJ59)) -> 0 | AL59: =IF(AJ58="",0,VAR(AJ$10:AJ59)) -> 0 | AP59: =IF(AO59="",0,AVERAGE(AO$10:AO59)) -> 0 | AQ59: =IF(AO58="",0,VAR(AO$10:AO59)) -> 0 | AU59: =IF(AT59="",0,AVERAGE(AT$10:AT59)) -> 0 | AV59: =IF(AT58="",0,VAR(AT$10:AT59)) -> 0 | AZ59: =IF(AY59="",0,AVERAGE(AY$10:AY59)) -> 0 | BA59: =IF(AY58="",0,VAR(AY$10:AY59)) -> 0
G60: =IF(F60="",0,AVERAGE($F$10:F60)) -> 0 | H60: =IF(F59="",0,VAR($F$10:F60)) -> 0 | L60: =IF(K60="",0,AVERAGE($K$10:K60)) -> 0 | M60: =IF(K59="",0,VAR($K$10:K60)) -> 0 | Q60: =IF(P60="",0,AVERAGE(P$10:P60)) -> 0 | R60: =IF(P59="",0,VAR(P$10:P60)) -> 0 | V60: =IF(U60="",0,AVERAGE(U$10:U60)) -> 0 | W60: =IF(U59="",0,VAR(U$10:U60)) -> 0 | AA60: =IF(Z60="",0,AVERAGE(Z$10:Z60)) -> 0 | AB60: =IF(Z59="",0,VAR(Z$10:Z60)) -> 0 | AF60: =IF(AE60="",0,AVERAGE(AE$10:AE60)) -> 0 | AG60: =IF(AE59="",0,VAR(AE$10:AE60)) -> 0 | AK60: =IF(AJ60="",0,AVERAGE(AJ$10:AJ60)) -> 0 | AL60: =IF(AJ59="",0,VAR(AJ$10:AJ60)) -> 0 | AP60: =IF(AO60="",0,AVERAGE(AO$10:AO60)) -> 0 | AQ60: =IF(AO59="",0,VAR(AO$10:AO60)) -> 0 | AU60: =IF(AT60="",0,AVERAGE(AT$10:AT60)) -> 0 | AV60: =IF(AT59="",0,VAR(AT$10:AT60)) -> 0 | AZ60: =IF(AY60="",0,AVERAGE(AY$10:AY60)) -> 0 | BA60: =IF(AY59="",0,VAR(AY$10:AY60)) -> 0
F61: =IF(E61="","",+(E61-E60)/E60) ->  | G61: =IF(F61="",0,AVERAGE($F$10:F61)) -> 0 | H61: =IF(F60="",0,VAR($F$10:F61)) -> 0 | L61: =IF(K61="",0,AVERAGE($K$10:K61)) -> 0 | M61: =IF(K60="",0,VAR($K$10:K61)) -> 0 | Q61: =IF(P61="",0,AVERAGE(P$10:P61)) -> 0 | R61: =IF(P60="",0,VAR(P$10:P61)) -> 0 | V61: =IF(U61="",0,AVERAGE(U$10:U61)) -> 0 | W61: =IF(U60="",0,VAR(U$10:U61)) -> 0 | AA61: =IF(Z61="",0,AVERAGE(Z$10:Z61)) -> 0 | AB61: =IF(Z60="",0,VAR(Z$10:Z61)) -> 0 | AF61: =IF(AE61="",0,AVERAGE(AE$10:AE61)) -> 0 | AG61: =IF(AE60="",0,VAR(AE$10:AE61)) -> 0 | AK61: =IF(AJ61="",0,AVERAGE(AJ$10:AJ61)) -> 0 | AL61: =IF(AJ60="",0,VAR(AJ$10:AJ61)) -> 0 | AP61: =IF(AO61="",0,AVERAGE(AO$10:AO61)) -> 0 | AQ61: =IF(AO60="",0,VAR(AO$10:AO61)) -> 0 | AU61: =IF(AT61="",0,AVERAGE(AT$10:AT61)) -> 0 | AV61: =IF(AT60="",0,VAR(AT$10:AT61)) -> 0 | AZ61: =IF(AY61="",0,AVERAGE(AY$10:AY61)) -> 0 | BA61: =IF(AY60="",0,VAR(AY$10:AY61)) -> 0
G62: =IF(F62="",0,AVERAGE($F$10:F62)) -> 0 | H62: =IF(F61="",0,VAR($F$10:F62)) -> 0 | L62: =IF(K62="",0,AVERAGE($K$10:K62)) -> 0 | M62: =IF(K61="",0,VAR($K$10:K62)) -> 0 | Q62: =IF(P62="",0,AVERAGE(P$10:P62)) -> 0 | R62: =IF(P61="",0,VAR(P$10:P62)) -> 0 | V62: =IF(U62="",0,AVERAGE(U$10:U62)) -> 0 | W62: =IF(U61="",0,VAR(U$10:U62)) -> 0 | AA62: =IF(Z62="",0,AVERAGE(Z$10:Z62)) -> 0 | AB62: =IF(Z61="",0,VAR(Z$10:Z62)) -> 0 | AF62: =IF(AE62="",0,AVERAGE(AE$10:AE62)) -> 0 | AG62: =IF(AE61="",0,VAR(AE$10:AE62)) -> 0 | AK62: =IF(AJ62="",0,AVERAGE(AJ$10:AJ62)) -> 0 | AL62: =IF(AJ61="",0,VAR(AJ$10:AJ62)) -> 0 | AP62: =IF(AO62="",0,AVERAGE(AO$10:AO62)) -> 0 | AQ62: =IF(AO61="",0,VAR(AO$10:AO62)) -> 0 | AU62: =IF(AT62="",0,AVERAGE(AT$10:AT62)) -> 0 | AV62: =IF(AT61="",0,VAR(AT$10:AT62)) -> 0 | AZ62: =IF(AY62="",0,AVERAGE(AY$10:AY62)) -> 0 | BA62: =IF(AY61="",0,VAR(AY$10:AY62)) -> 0
G63: =IF(F63="",0,AVERAGE($F$10:F63)) -> 0 | H63: =IF(F62="",0,VAR($F$10:F63)) -> 0 | L63: =IF(K63="",0,AVERAGE($K$10:K63)) -> 0 | M63: =IF(K62="",0,VAR($K$10:K63)) -> 0 | Q63: =IF(P63="",0,AVERAGE(P$10:P63)) -> 0 | R63: =IF(P62="",0,VAR(P$10:P63)) -> 0 | V63: =IF(U63="",0,AVERAGE(U$10:U63)) -> 0 | W63: =IF(U62="",0,VAR(U$10:U63)) -> 0 | AA63: =IF(Z63="",0,AVERAGE(Z$10:Z63)) -> 0 | AB63: =IF(Z62="",0,VAR(Z$10:Z63)) -> 0 | AF63: =IF(AE63="",0,AVERAGE(AE$10:AE63)) -> 0 | AG63: =IF(AE62="",0,VAR(AE$10:AE63)) -> 0 | AK63: =IF(AJ63="",0,AVERAGE(AJ$10:AJ63)) -> 0 | AL63: =IF(AJ62="",0,VAR(AJ$10:AJ63)) -> 0 | AP63: =IF(AO63="",0,AVERAGE(AO$10:AO63)) -> 0 | AQ63: =IF(AO62="",0,VAR(AO$10:AO63)) -> 0 | AU63: =IF(AT63="",0,AVERAGE(AT$10:AT63)) -> 0 | AV63: =IF(AT62="",0,VAR(AT$10:AT63)) -> 0 | AZ63: =IF(AY63="",0,AVERAGE(AY$10:AY63)) -> 0 | BA63: =IF(AY62="",0,VAR(AY$10:AY63)) -> 0
F64: =IF(E64="","",+(E64-E63)/E63) ->  | G64: =IF(F64="",0,AVERAGE($F$10:F64)) -> 0 | H64: =IF(F63="",0,VAR($F$10:F64)) -> 0 | L64: =IF(K64="",0,AVERAGE($K$10:K64)) -> 0 | M64: =IF(K63="",0,VAR($K$10:K64)) -> 0 | Q64: =IF(P64="",0,AVERAGE(P$10:P64)) -> 0 | R64: =IF(P63="",0,VAR(P$10:P64)) -> 0 | V64: =IF(U64="",0,AVERAGE(U$10:U64)) -> 0 | W64: =IF(U63="",0,VAR(U$10:U64)) -> 0 | AA64: =IF(Z64="",0,AVERAGE(Z$10:Z64)) -> 0 | AB64: =IF(Z63="",0,VAR(Z$10:Z64)) -> 0 | AF64: =IF(AE64="",0,AVERAGE(AE$10:AE64)) -> 0 | AG64: =IF(AE63="",0,VAR(AE$10:AE64)) -> 0 | AK64: =IF(AJ64="",0,AVERAGE(AJ$10:AJ64)) -> 0 | AL64: =IF(AJ63="",0,VAR(AJ$10:AJ64)) -> 0 | AP64: =IF(AO64="",0,AVERAGE(AO$10:AO64)) -> 0 | AQ64: =IF(AO63="",0,VAR(AO$10:AO64)) -> 0 | AU64: =IF(AT64="",0,AVERAGE(AT$10:AT64)) -> 0 | AV64: =IF(AT63="",0,VAR(AT$10:AT64)) -> 0 | AZ64: =IF(AY64="",0,AVERAGE(AY$10:AY64)) -> 0 | BA64: =IF(AY63="",0,VAR(AY$10:AY64)) -> 0
G65: =IF(F65="",0,AVERAGE($F$10:F65)) -> 0 | H65: =IF(F64="",0,VAR($F$10:F65)) -> 0 | L65: =IF(K65="",0,AVERAGE($K$10:K65)) -> 0 | M65: =IF(K64="",0,VAR($K$10:K65)) -> 0 | Q65: =IF(P65="",0,AVERAGE(P$10:P65)) -> 0 | R65: =IF(P64="",0,VAR(P$10:P65)) -> 0 | V65: =IF(U65="",0,AVERAGE(U$10:U65)) -> 0 | W65: =IF(U64="",0,VAR(U$10:U65)) -> 0 | AA65: =IF(Z65="",0,AVERAGE(Z$10:Z65)) -> 0 | AB65: =IF(Z64="",0,VAR(Z$10:Z65)) -> 0 | AF65: =IF(AE65="",0,AVERAGE(AE$10:AE65)) -> 0 | AG65: =IF(AE64="",0,VAR(AE$10:AE65)) -> 0 | AK65: =IF(AJ65="",0,AVERAGE(AJ$10:AJ65)) -> 0 | AL65: =IF(AJ64="",0,VAR(AJ$10:AJ65)) -> 0 | AP65: =IF(AO65="",0,AVERAGE(AO$10:AO65)) -> 0 | AQ65: =IF(AO64="",0,VAR(AO$10:AO65)) -> 0 | AU65: =IF(AT65="",0,AVERAGE(AT$10:AT65)) -> 0 | AV65: =IF(AT64="",0,VAR(AT$10:AT65)) -> 0 | AZ65: =IF(AY65="",0,AVERAGE(AY$10:AY65)) -> 0 | BA65: =IF(AY64="",0,VAR(AY$10:AY65)) -> 0
G66: =IF(F66="",0,AVERAGE($F$10:F66)) -> 0 | H66: =IF(F65="",0,VAR($F$10:F66)) -> 0 | L66: =IF(K66="",0,AVERAGE($K$10:K66)) -> 0 | M66: =IF(K65="",0,VAR($K$10:K66)) -> 0 | Q66: =IF(P66="",0,AVERAGE(P$10:P66)) -> 0 | R66: =IF(P65="",0,VAR(P$10:P66)) -> 0 | V66: =IF(U66="",0,AVERAGE(U$10:U66)) -> 0 | W66: =IF(U65="",0,VAR(U$10:U66)) -> 0 | AA66: =IF(Z66="",0,AVERAGE(Z$10:Z66)) -> 0 | AB66: =IF(Z65="",0,VAR(Z$10:Z66)) -> 0 | AF66: =IF(AE66="",0,AVERAGE(AE$10:AE66)) -> 0 | AG66: =IF(AE65="",0,VAR(AE$10:AE66)) -> 0 | AK66: =IF(AJ66="",0,AVERAGE(AJ$10:AJ66)) -> 0 | AL66: =IF(AJ65="",0,VAR(AJ$10:AJ66)) -> 0 | AP66: =IF(AO66="",0,AVERAGE(AO$10:AO66)) -> 0 | AQ66: =IF(AO65="",0,VAR(AO$10:AO66)) -> 0 | AU66: =IF(AT66="",0,AVERAGE(AT$10:AT66)) -> 0 | AV66: =IF(AT65="",0,VAR(AT$10:AT66)) -> 0 | AZ66: =IF(AY66="",0,AVERAGE(AY$10:AY66)) -> 0 | BA66: =IF(AY65="",0,VAR(AY$10:AY66)) -> 0
F67: =IF(E67="","",+(E67-E66)/E66) ->  | G67: =IF(F67="",0,AVERAGE($F$10:F67)) -> 0 | H67: =IF(F66="",0,VAR($F$10:F67)) -> 0 | L67: =IF(K67="",0,AVERAGE($K$10:K67)) -> 0 | M67: =IF(K66="",0,VAR($K$10:K67)) -> 0 | Q67: =IF(P67="",0,AVERAGE(P$10:P67)) -> 0 | R67: =IF(P66="",0,VAR(P$10:P67)) -> 0 | V67: =IF(U67="",0,AVERAGE(U$10:U67)) -> 0 | W67: =IF(U66="",0,VAR(U$10:U67)) -> 0 | AA67: =IF(Z67="",0,AVERAGE(Z$10:Z67)) -> 0 | AB67: =IF(Z66="",0,VAR(Z$10:Z67)) -> 0 | AF67: =IF(AE67="",0,AVERAGE(AE$10:AE67)) -> 0 | AG67: =IF(AE66="",0,VAR(AE$10:AE67)) -> 0 | AK67: =IF(AJ67="",0,AVERAGE(AJ$10:AJ67)) -> 0 | AL67: =IF(AJ66="",0,VAR(AJ$10:AJ67)) -> 0 | AP67: =IF(AO67="",0,AVERAGE(AO$10:AO67)) -> 0 | AQ67: =IF(AO66="",0,VAR(AO$10:AO67)) -> 0 | AU67: =IF(AT67="",0,AVERAGE(AT$10:AT67)) -> 0 | AV67: =IF(AT66="",0,VAR(AT$10:AT67)) -> 0 | AZ67: =IF(AY67="",0,AVERAGE(AY$10:AY67)) -> 0 | BA67: =IF(AY66="",0,VAR(AY$10:AY67)) -> 0
G68: =IF(F68="",0,AVERAGE($F$10:F68)) -> 0 | H68: =IF(F67="",0,VAR($F$10:F68)) -> 0 | L68: =IF(K68="",0,AVERAGE($K$10:K68)) -> 0 | M68: =IF(K67="",0,VAR($K$10:K68)) -> 0 | Q68: =IF(P68="",0,AVERAGE(P$10:P68)) -> 0 | R68: =IF(P67="",0,VAR(P$10:P68)) -> 0 | V68: =IF(U68="",0,AVERAGE(U$10:U68)) -> 0 | W68: =IF(U67="",0,VAR(U$10:U68)) -> 0 | AA68: =IF(Z68="",0,AVERAGE(Z$10:Z68)) -> 0 | AB68: =IF(Z67="",0,VAR(Z$10:Z68)) -> 0 | AF68: =IF(AE68="",0,AVERAGE(AE$10:AE68)) -> 0 | AG68: =IF(AE67="",0,VAR(AE$10:AE68)) -> 0 | AK68: =IF(AJ68="",0,AVERAGE(AJ$10:AJ68)) -> 0 | AL68: =IF(AJ67="",0,VAR(AJ$10:AJ68)) -> 0 | AP68: =IF(AO68="",0,AVERAGE(AO$10:AO68)) -> 0 | AQ68: =IF(AO67="",0,VAR(AO$10:AO68)) -> 0 | AU68: =IF(AT68="",0,AVERAGE(AT$10:AT68)) -> 0 | AV68: =IF(AT67="",0,VAR(AT$10:AT68)) -> 0 | AZ68: =IF(AY68="",0,AVERAGE(AY$10:AY68)) -> 0 | BA68: =IF(AY67="",0,VAR(AY$10:AY68)) -> 0
G69: =IF(F69="",0,AVERAGE($F$10:F69)) -> 0 | H69: =IF(F68="",0,VAR($F$10:F69)) -> 0 | L69: =IF(K69="",0,AVERAGE($K$10:K69)) -> 0 | M69: =IF(K68="",0,VAR($K$10:K69)) -> 0 | Q69: =IF(P69="",0,AVERAGE(P$10:P69)) -> 0 | R69: =IF(P68="",0,VAR(P$10:P69)) -> 0 | V69: =IF(U69="",0,AVERAGE(U$10:U69)) -> 0 | W69: =IF(U68="",0,VAR(U$10:U69)) -> 0 | AA69: =IF(Z69="",0,AVERAGE(Z$10:Z69)) -> 0 | AB69: =IF(Z68="",0,VAR(Z$10:Z69)) -> 0 | AF69: =IF(AE69="",0,AVERAGE(AE$10:AE69)) -> 0 | AG69: =IF(AE68="",0,VAR(AE$10:AE69)) -> 0 | AK69: =IF(AJ69="",0,AVERAGE(AJ$10:AJ69)) -> 0 | AL69: =IF(AJ68="",0,VAR(AJ$10:AJ69)) -> 0 | AP69: =IF(AO69="",0,AVERAGE(AO$10:AO69)) -> 0 | AQ69: =IF(AO68="",0,VAR(AO$10:AO69)) -> 0 | AU69: =IF(AT69="",0,AVERAGE(AT$10:AT69)) -> 0 | AV69: =IF(AT68="",0,VAR(AT$10:AT69)) -> 0 | AZ69: =IF(AY69="",0,AVERAGE(AY$10:AY69)) -> 0 | BA69: =IF(AY68="",0,VAR(AY$10:AY69)) -> 0
F70: =IF(E70="","",+(E70-E69)/E69) ->  | G70: =IF(F70="",0,AVERAGE($F$10:F70)) -> 0 | H70: =IF(F69="",0,VAR($F$10:F70)) -> 0 | L70: =IF(K70="",0,AVERAGE($K$10:K70)) -> 0 | M70: =IF(K69="",0,VAR($K$10:K70)) -> 0 | Q70: =IF(P70="",0,AVERAGE(P$10:P70)) -> 0 | R70: =IF(P69="",0,VAR(P$10:P70)) -> 0 | V70: =IF(U70="",0,AVERAGE(U$10:U70)) -> 0 | W70: =IF(U69="",0,VAR(U$10:U70)) -> 0 | AA70: =IF(Z70="",0,AVERAGE(Z$10:Z70)) -> 0 | AB70: =IF(Z69="",0,VAR(Z$10:Z70)) -> 0 | AF70: =IF(AE70="",0,AVERAGE(AE$10:AE70)) -> 0 | AG70: =IF(AE69="",0,VAR(AE$10:AE70)) -> 0 | AK70: =IF(AJ70="",0,AVERAGE(AJ$10:AJ70)) -> 0 | AL70: =IF(AJ69="",0,VAR(AJ$10:AJ70)) -> 0 | AP70: =IF(AO70="",0,AVERAGE(AO$10:AO70)) -> 0 | AQ70: =IF(AO69="",0,VAR(AO$10:AO70)) -> 0 | AU70: =IF(AT70="",0,AVERAGE(AT$10:AT70)) -> 0 | AV70: =IF(AT69="",0,VAR(AT$10:AT70)) -> 0 | AZ70: =IF(AY70="",0,AVERAGE(AY$10:AY70)) -> 0 | BA70: =IF(AY69="",0,VAR(AY$10:AY70)) -> 0
G71: =IF(F71="",0,AVERAGE($F$10:F71)) -> 0 | H71: =IF(F70="",0,VAR($F$10:F71)) -> 0 | L71: =IF(K71="",0,AVERAGE($K$10:K71)) -> 0 | M71: =IF(K70="",0,VAR($K$10:K71)) -> 0 | Q71: =IF(P71="",0,AVERAGE(P$10:P71)) -> 0 | R71: =IF(P70="",0,VAR(P$10:P71)) -> 0 | V71: =IF(U71="",0,AVERAGE(U$10:U71)) -> 0 | W71: =IF(U70="",0,VAR(U$10:U71)) -> 0 | AA71: =IF(Z71="",0,AVERAGE(Z$10:Z71)) -> 0 | AB71: =IF(Z70="",0,VAR(Z$10:Z71)) -> 0 | AF71: =IF(AE71="",0,AVERAGE(AE$10:AE71)) -> 0 | AG71: =IF(AE70="",0,VAR(AE$10:AE71)) -> 0 | AK71: =IF(AJ71="",0,AVERAGE(AJ$10:AJ71)) -> 0 | AL71: =IF(AJ70="",0,VAR(AJ$10:AJ71)) -> 0 | AP71: =IF(AO71="",0,AVERAGE(AO$10:AO71)) -> 0 | AQ71: =IF(AO70="",0,VAR(AO$10:AO71)) -> 0 | AU71: =IF(AT71="",0,AVERAGE(AT$10:AT71)) -> 0 | AV71: =IF(AT70="",0,VAR(AT$10:AT71)) -> 0 | AZ71: =IF(AY71="",0,AVERAGE(AY$10:AY71)) -> 0 | BA71: =IF(AY70="",0,VAR(AY$10:AY71)) -> 0
G72: =IF(F72="",0,AVERAGE($F$10:F72)) -> 0 | H72: =IF(F71="",0,VAR($F$10:F72)) -> 0 | L72: =IF(K72="",0,AVERAGE($K$10:K72)) -> 0 | M72: =IF(K71="",0,VAR($K$10:K72)) -> 0 | Q72: =IF(P72="",0,AVERAGE(P$10:P72)) -> 0 | R72: =IF(P71="",0,VAR(P$10:P72)) -> 0 | V72: =IF(U72="",0,AVERAGE(U$10:U72)) -> 0 | W72: =IF(U71="",0,VAR(U$10:U72)) -> 0 | AA72: =IF(Z72="",0,AVERAGE(Z$10:Z72)) -> 0 | AB72: =IF(Z71="",0,VAR(Z$10:Z72)) -> 0 | AF72: =IF(AE72="",0,AVERAGE(AE$10:AE72)) -> 0 | AG72: =IF(AE71="",0,VAR(AE$10:AE72)) -> 0 | AK72: =IF(AJ72="",0,AVERAGE(AJ$10:AJ72)) -> 0 | AL72: =IF(AJ71="",0,VAR(AJ$10:AJ72)) -> 0 | AP72: =IF(AO72="",0,AVERAGE(AO$10:AO72)) -> 0 | AQ72: =IF(AO71="",0,VAR(AO$10:AO72)) -> 0 | AU72: =IF(AT72="",0,AVERAGE(AT$10:AT72)) -> 0 | AV72: =IF(AT71="",0,VAR(AT$10:AT72)) -> 0 | AZ72: =IF(AY72="",0,AVERAGE(AY$10:AY72)) -> 0 | BA72: =IF(AY71="",0,VAR(AY$10:AY72)) -> 0
F73: =IF(E73="","",+(E73-E72)/E72) ->  | G73: =IF(F73="",0,AVERAGE($F$10:F73)) -> 0 | H73: =IF(F72="",0,VAR($F$10:F73)) -> 0 | L73: =IF(K73="",0,AVERAGE($K$10:K73)) -> 0 | M73: =IF(K72="",0,VAR($K$10:K73)) -> 0 | Q73: =IF(P73="",0,AVERAGE(P$10:P73)) -> 0 | R73: =IF(P72="",0,VAR(P$10:P73)) -> 0 | V73: =IF(U73="",0,AVERAGE(U$10:U73)) -> 0 | W73: =IF(U72="",0,VAR(U$10:U73)) -> 0 | AA73: =IF(Z73="",0,AVERAGE(Z$10:Z73)) -> 0 | AB73: =IF(Z72="",0,VAR(Z$10:Z73)) -> 0 | AF73: =IF(AE73="",0,AVERAGE(AE$10:AE73)) -> 0 | AG73: =IF(AE72="",0,VAR(AE$10:AE73)) -> 0 | AK73: =IF(AJ73="",0,AVERAGE(AJ$10:AJ73)) -> 0 | AL73: =IF(AJ72="",0,VAR(AJ$10:AJ73)) -> 0 | AP73: =IF(AO73="",0,AVERAGE(AO$10:AO73)) -> 0 | AQ73: =IF(AO72="",0,VAR(AO$10:AO73)) -> 0 | AU73: =IF(AT73="",0,AVERAGE(AT$10:AT73)) -> 0 | AV73: =IF(AT72="",0,VAR(AT$10:AT73)) -> 0 | AZ73: =IF(AY73="",0,AVERAGE(AY$10:AY73)) -> 0 | BA73: =IF(AY72="",0,VAR(AY$10:AY73)) -> 0
G74: =IF(F74="",0,AVERAGE($F$10:F74)) -> 0 | H74: =IF(F73="",0,VAR($F$10:F74)) -> 0 | L74: =IF(K74="",0,AVERAGE($K$10:K74)) -> 0 | M74: =IF(K73="",0,VAR($K$10:K74)) -> 0 | Q74: =IF(P74="",0,AVERAGE(P$10:P74)) -> 0 | R74: =IF(P73="",0,VAR(P$10:P74)) -> 0 | V74: =IF(U74="",0,AVERAGE(U$10:U74)) -> 0 | W74: =IF(U73="",0,VAR(U$10:U74)) -> 0 | AA74: =IF(Z74="",0,AVERAGE(Z$10:Z74)) -> 0 | AB74: =IF(Z73="",0,VAR(Z$10:Z74)) -> 0 | AF74: =IF(AE74="",0,AVERAGE(AE$10:AE74)) -> 0 | AG74: =IF(AE73="",0,VAR(AE$10:AE74)) -> 0 | AK74: =IF(AJ74="",0,AVERAGE(AJ$10:AJ74)) -> 0 | AL74: =IF(AJ73="",0,VAR(AJ$10:AJ74)) -> 0 | AP74: =IF(AO74="",0,AVERAGE(AO$10:AO74)) -> 0 | AQ74: =IF(AO73="",0,VAR(AO$10:AO74)) -> 0 | AU74: =IF(AT74="",0,AVERAGE(AT$10:AT74)) -> 0 | AV74: =IF(AT73="",0,VAR(AT$10:AT74)) -> 0 | AZ74: =IF(AY74="",0,AVERAGE(AY$10:AY74)) -> 0 | BA74: =IF(AY73="",0,VAR(AY$10:AY74)) -> 0
G75: =IF(F75="",0,AVERAGE($F$10:F75)) -> 0 | H75: =IF(F74="",0,VAR($F$10:F75)) -> 0 | L75: =IF(K75="",0,AVERAGE($K$10:K75)) -> 0 | M75: =IF(K74="",0,VAR($K$10:K75)) -> 0 | Q75: =IF(P75="",0,AVERAGE(P$10:P75)) -> 0 | R75: =IF(P74="",0,VAR(P$10:P75)) -> 0 | V75: =IF(U75="",0,AVERAGE(U$10:U75)) -> 0 | W75: =IF(U74="",0,VAR(U$10:U75)) -> 0 | AA75: =IF(Z75="",0,AVERAGE(Z$10:Z75)) -> 0 | AB75: =IF(Z74="",0,VAR(Z$10:Z75)) -> 0 | AF75: =IF(AE75="",0,AVERAGE(AE$10:AE75)) -> 0 | AG75: =IF(AE74="",0,VAR(AE$10:AE75)) -> 0 | AK75: =IF(AJ75="",0,AVERAGE(AJ$10:AJ75)) -> 0 | AL75: =IF(AJ74="",0,VAR(AJ$10:AJ75)) -> 0 | AP75: =IF(AO75="",0,AVERAGE(AO$10:AO75)) -> 0 | AQ75: =IF(AO74="",0,VAR(AO$10:AO75)) -> 0 | AU75: =IF(AT75="",0,AVERAGE(AT$10:AT75)) -> 0 | AV75: =IF(AT74="",0,VAR(AT$10:AT75)) -> 0 | AZ75: =IF(AY75="",0,AVERAGE(AY$10:AY75)) -> 0 | BA75: =IF(AY74="",0,VAR(AY$10:AY75)) -> 0
F76: =IF(E76="","",+(E76-E75)/E75) ->  | G76: =IF(F76="",0,AVERAGE($F$10:F76)) -> 0 | H76: =IF(F75="",0,VAR($F$10:F76)) -> 0 | K76: =IF(J76="","",+(J76-J75)/J75) ->  | L76: =IF(K76="",0,AVERAGE($K$10:K76)) -> 0 | M76: =IF(K75="",0,VAR($K$10:K76)) -> 0 | P76: =IF(O76="","",+(O76-O75)/O75) ->  | Q76: =IF(P76="",0,AVERAGE(P$10:P76)) -> 0 | R76: =IF(P75="",0,VAR(P$10:P76)) -> 0 | V76: =IF(U76="",0,AVERAGE(U$10:U76)) -> 0 | W76: =IF(U75="",0,VAR(U$10:U76)) -> 0 | Z76: =IF(Y76="","",+(Y76-Y75)/Y75) ->  | AA76: =IF(Z76="",0,AVERAGE(Z$10:Z76)) -> 0 | AB76: =IF(Z75="",0,VAR(Z$10:Z76)) -> 0 | AF76: =IF(AE76="",0,AVERAGE(AE$10:AE76)) -> 0 | AG76: =IF(AE75="",0,VAR(AE$10:AE76)) -> 0 | AK76: =IF(AJ76="",0,AVERAGE(AJ$10:AJ76)) -> 0 | AL76: =IF(AJ75="",0,VAR(AJ$10:AJ76)) -> 0 | AP76: =IF(AO76="",0,AVERAGE(AO$10:AO76)) -> 0 | AQ76: =IF(AO75="",0,VAR(AO$10:AO76)) -> 0 | AU76: =IF(AT76="",0,AVERAGE(AT$10:AT76)) -> 0 | AV76: =IF(AT75="",0,VAR(AT$10:AT76)) -> 0 | AZ76: =IF(AY76="",0,AVERAGE(AY$10:AY76)) -> 0 | BA76: =IF(AY75="",0,VAR(AY$10:AY76)) -> 0
G77: =IF(F77="",0,AVERAGE($F$10:F77)) -> 0 | H77: =IF(F76="",0,VAR($F$10:F77)) -> 0 | L77: =IF(K77="",0,AVERAGE($K$10:K77)) -> 0 | M77: =IF(K76="",0,VAR($K$10:K77)) -> 0 | Q77: =IF(P77="",0,AVERAGE(P$10:P77)) -> 0 | R77: =IF(P76="",0,VAR(P$10:P77)) -> 0 | V77: =IF(U77="",0,AVERAGE(U$10:U77)) -> 0 | W77: =IF(U76="",0,VAR(U$10:U77)) -> 0 | AA77: =IF(Z77="",0,AVERAGE(Z$10:Z77)) -> 0 | AB77: =IF(Z76="",0,VAR(Z$10:Z77)) -> 0 | AF77: =IF(AE77="",0,AVERAGE(AE$10:AE77)) -> 0 | AG77: =IF(AE76="",0,VAR(AE$10:AE77)) -> 0 | AJ77: =IF(AI77="","",+(AI77-AI76)/AI76) ->  | AK77: =IF(AJ77="",0,AVERAGE(AJ$10:AJ77)) -> 0 | AL77: =IF(AJ76="",0,VAR(AJ$10:AJ77)) -> 0 | AO77: =IF(AN77="","",+(AN77-AN76)/AN76) ->  | AP77: =IF(AO77="",0,AVERAGE(AO$10:AO77)) -> 0 | AQ77: =IF(AO76="",0,VAR(AO$10:AO77)) -> 0 | AT77: =IF(AS77="","",+(AS77-AS76)/AS76) ->  | AU77: =IF(AT77="",0,AVERAGE(AT$10:AT77)) -> 0 | AV77: =IF(AT76="",0,VAR(AT$10:AT77)) -> 0 | AY77: =IF(AX77="","",+(AX77-AX76)/AX76) ->  | AZ77: =IF(AY77="",0,AVERAGE(AY$10:AY77)) -> 0 | BA77: =IF(AY76="",0,VAR(AY$10:AY77)) -> 0
G78: =IF(F78="",0,AVERAGE($F$10:F78)) -> 0 | H78: =IF(F77="",0,VAR($F$10:F78)) -> 0 | L78: =IF(K78="",0,AVERAGE($K$10:K78)) -> 0 | M78: =IF(K77="",0,VAR($K$10:K78)) -> 0 | Q78: =IF(P78="",0,AVERAGE(P$10:P78)) -> 0 | R78: =IF(P77="",0,VAR(P$10:P78)) -> 0 | U78: =IF(T78="","",+(T78-T77)/T77) ->  | V78: =IF(U78="",0,AVERAGE(U$10:U78)) -> 0 | W78: =IF(U77="",0,VAR(U$10:U78)) -> 0 | AA78: =IF(Z78="",0,AVERAGE(Z$10:Z78)) -> 0 | AB78: =IF(Z77="",0,VAR(Z$10:Z78)) -> 0 | AE78: =IF(AD78="","",+(AD78-AD77)/AD77) ->  | AF78: =IF(AE78="",0,AVERAGE(AE$10:AE78)) -> 0 | AG78: =IF(AE77="",0,VAR(AE$10:AE78)) -> 0 | AK78: =IF(AJ78="",0,AVERAGE(AJ$10:AJ78)) -> 0 | AL78: =IF(AJ77="",0,VAR(AJ$10:AJ78)) -> 0 | AP78: =IF(AO78="",0,AVERAGE(AO$10:AO78)) -> 0 | AQ78: =IF(AO77="",0,VAR(AO$10:AO78)) -> 0 | AU78: =IF(AT78="",0,AVERAGE(AT$10:AT78)) -> 0 | AV78: =IF(AT77="",0,VAR(AT$10:AT78)) -> 0 | AZ78: =IF(AY78="",0,AVERAGE(AY$10:AY78)) -> 0 | BA78: =IF(AY77="",0,VAR(AY$10:AY78)) -> 0
F79: =IF(E79="","",+(E79-E78)/E78) ->  | G79: =IF(F79="",0,AVERAGE($F$10:F79)) -> 0 | H79: =IF(F78="",0,VAR($F$10:F79)) -> 0 | L79: =IF(K79="",0,AVERAGE($K$10:K79)) -> 0 | M79: =IF(K78="",0,VAR($K$10:K79)) -> 0 | Q79: =IF(P79="",0,AVERAGE(P$10:P79)) -> 0 | R79: =IF(P78="",0,VAR(P$10:P79)) -> 0 | V79: =IF(U79="",0,AVERAGE(U$10:U79)) -> 0 | W79: =IF(U78="",0,VAR(U$10:U79)) -> 0 | AA79: =IF(Z79="",0,AVERAGE(Z$10:Z79)) -> 0 | AB79: =IF(Z78="",0,VAR(Z$10:Z79)) -> 0 | AF79: =IF(AE79="",0,AVERAGE(AE$10:AE79)) -> 0 | AG79: =IF(AE78="",0,VAR(AE$10:AE79)) -> 0 | AK79: =IF(AJ79="",0,AVERAGE(AJ$10:AJ79)) -> 0 | AL79: =IF(AJ78="",0,VAR(AJ$10:AJ79)) -> 0 | AP79: =IF(AO79="",0,AVERAGE(AO$10:AO79)) -> 0 | AQ79: =IF(AO78="",0,VAR(AO$10:AO79)) -> 0 | AU79: =IF(AT79="",0,AVERAGE(AT$10:AT79)) -> 0 | AV79: =IF(AT78="",0,VAR(AT$10:AT79)) -> 0 | AZ79: =IF(AY79="",0,AVERAGE(AY$10:AY79)) -> 0 | BA79: =IF(AY78="",0,VAR(AY$10:AY79)) -> 0
G80: =IF(F80="",0,AVERAGE($F$10:F80)) -> 0 | H80: =IF(F79="",0,VAR($F$10:F80)) -> 0 | L80: =IF(K80="",0,AVERAGE($K$10:K80)) -> 0 | M80: =IF(K79="",0,VAR($K$10:K80)) -> 0 | Q80: =IF(P80="",0,AVERAGE(P$10:P80)) -> 0 | R80: =IF(P79="",0,VAR(P$10:P80)) -> 0 | V80: =IF(U80="",0,AVERAGE(U$10:U80)) -> 0 | W80: =IF(U79="",0,VAR(U$10:U80)) -> 0 | AA80: =IF(Z80="",0,AVERAGE(Z$10:Z80)) -> 0 | AB80: =IF(Z79="",0,VAR(Z$10:Z80)) -> 0 | AF80: =IF(AE80="",0,AVERAGE(AE$10:AE80)) -> 0 | AG80: =IF(AE79="",0,VAR(AE$10:AE80)) -> 0 | AK80: =IF(AJ80="",0,AVERAGE(AJ$10:AJ80)) -> 0 | AL80: =IF(AJ79="",0,VAR(AJ$10:AJ80)) -> 0 | AP80: =IF(AO80="",0,AVERAGE(AO$10:AO80)) -> 0 | AQ80: =IF(AO79="",0,VAR(AO$10:AO80)) -> 0 | AU80: =IF(AT80="",0,AVERAGE(AT$10:AT80)) -> 0 | AV80: =IF(AT79="",0,VAR(AT$10:AT80)) -> 0 | AZ80: =IF(AY80="",0,AVERAGE(AY$10:AY80)) -> 0 | BA80: =IF(AY79="",0,VAR(AY$10:AY80)) -> 0
G81: =IF(F81="",0,AVERAGE($F$10:F81)) -> 0 | H81: =IF(F80="",0,VAR($F$10:F81)) -> 0 | L81: =IF(K81="",0,AVERAGE($K$10:K81)) -> 0 | M81: =IF(K80="",0,VAR($K$10:K81)) -> 0 | Q81: =IF(P81="",0,AVERAGE(P$10:P81)) -> 0 | R81: =IF(P80="",0,VAR(P$10:P81)) -> 0 | V81: =IF(U81="",0,AVERAGE(U$10:U81)) -> 0 | W81: =IF(U80="",0,VAR(U$10:U81)) -> 0 | AA81: =IF(Z81="",0,AVERAGE(Z$10:Z81)) -> 0 | AB81: =IF(Z80="",0,VAR(Z$10:Z81)) -> 0 | AF81: =IF(AE81="",0,AVERAGE(AE$10:AE81)) -> 0 | AG81: =IF(AE80="",0,VAR(AE$10:AE81)) -> 0 | AK81: =IF(AJ81="",0,AVERAGE(AJ$10:AJ81)) -> 0 | AL81: =IF(AJ80="",0,VAR(AJ$10:AJ81)) -> 0 | AP81: =IF(AO81="",0,AVERAGE(AO$10:AO81)) -> 0 | AQ81: =IF(AO80="",0,VAR(AO$10:AO81)) -> 0 | AU81: =IF(AT81="",0,AVERAGE(AT$10:AT81)) -> 0 | AV81: =IF(AT80="",0,VAR(AT$10:AT81)) -> 0 | AZ81: =IF(AY81="",0,AVERAGE(AY$10:AY81)) -> 0 | BA81: =IF(AY80="",0,VAR(AY$10:AY81)) -> 0
F82: =IF(E82="","",+(E82-E81)/E81) ->  | G82: =IF(F82="",0,AVERAGE($F$10:F82)) -> 0 | H82: =IF(F81="",0,VAR($F$10:F82)) -> 0 | L82: =IF(K82="",0,AVERAGE($K$10:K82)) -> 0 | M82: =IF(K81="",0,VAR($K$10:K82)) -> 0 | Q82: =IF(P82="",0,AVERAGE(P$10:P82)) -> 0 | R82: =IF(P81="",0,VAR(P$10:P82)) -> 0 | V82: =IF(U82="",0,AVERAGE(U$10:U82)) -> 0 | W82: =IF(U81="",0,VAR(U$10:U82)) -> 0 | AA82: =IF(Z82="",0,AVERAGE(Z$10:Z82)) -> 0 | AB82: =IF(Z81="",0,VAR(Z$10:Z82)) -> 0 | AF82: =IF(AE82="",0,AVERAGE(AE$10:AE82)) -> 0 | AG82: =IF(AE81="",0,VAR(AE$10:AE82)) -> 0 | AK82: =IF(AJ82="",0,AVERAGE(AJ$10:AJ82)) -> 0 | AL82: =IF(AJ81="",0,VAR(AJ$10:AJ82)) -> 0 | AP82: =IF(AO82="",0,AVERAGE(AO$10:AO82)) -> 0 | AQ82: =IF(AO81="",0,VAR(AO$10:AO82)) -> 0 | AU82: =IF(AT82="",0,AVERAGE(AT$10:AT82)) -> 0 | AV82: =IF(AT81="",0,VAR(AT$10:AT82)) -> 0 | AZ82: =IF(AY82="",0,AVERAGE(AY$10:AY82)) -> 0 | BA82: =IF(AY81="",0,VAR(AY$10:AY82)) -> 0
G83: =IF(F83="",0,AVERAGE($F$10:F83)) -> 0 | H83: =IF(F82="",0,VAR($F$10:F83)) -> 0 | L83: =IF(K83="",0,AVERAGE($K$10:K83)) -> 0 | M83: =IF(K82="",0,VAR($K$10:K83)) -> 0 | Q83: =IF(P83="",0,AVERAGE(P$10:P83)) -> 0 | R83: =IF(P82="",0,VAR(P$10:P83)) -> 0 | V83: =IF(U83="",0,AVERAGE(U$10:U83)) -> 0 | W83: =IF(U82="",0,VAR(U$10:U83)) -> 0 | AA83: =IF(Z83="",0,AVERAGE(Z$10:Z83)) -> 0 | AB83: =IF(Z82="",0,VAR(Z$10:Z83)) -> 0 | AF83: =IF(AE83="",0,AVERAGE(AE$10:AE83)) -> 0 | AG83: =IF(AE82="",0,VAR(AE$10:AE83)) -> 0 | AK83: =IF(AJ83="",0,AVERAGE(AJ$10:AJ83)) -> 0 | AL83: =IF(AJ82="",0,VAR(AJ$10:AJ83)) -> 0 | AP83: =IF(AO83="",0,AVERAGE(AO$10:AO83)) -> 0 | AQ83: =IF(AO82="",0,VAR(AO$10:AO83)) -> 0 | AU83: =IF(AT83="",0,AVERAGE(AT$10:AT83)) -> 0 | AV83: =IF(AT82="",0,VAR(AT$10:AT83)) -> 0 | AZ83: =IF(AY83="",0,AVERAGE(AY$10:AY83)) -> 0 | BA83: =IF(AY82="",0,VAR(AY$10:AY83)) -> 0
G84: =IF(F84="",0,AVERAGE($F$10:F84)) -> 0 | H84: =IF(F83="",0,VAR($F$10:F84)) -> 0 | L84: =IF(K84="",0,AVERAGE($K$10:K84)) -> 0 | M84: =IF(K83="",0,VAR($K$10:K84)) -> 0 | Q84: =IF(P84="",0,AVERAGE(P$10:P84)) -> 0 | R84: =IF(P83="",0,VAR(P$10:P84)) -> 0 | V84: =IF(U84="",0,AVERAGE(U$10:U84)) -> 0 | W84: =IF(U83="",0,VAR(U$10:U84)) -> 0 | AA84: =IF(Z84="",0,AVERAGE(Z$10:Z84)) -> 0 | AB84: =IF(Z83="",0,VAR(Z$10:Z84)) -> 0 | AF84: =IF(AE84="",0,AVERAGE(AE$10:AE84)) -> 0 | AG84: =IF(AE83="",0,VAR(AE$10:AE84)) -> 0 | AK84: =IF(AJ84="",0,AVERAGE(AJ$10:AJ84)) -> 0 | AL84: =IF(AJ83="",0,VAR(AJ$10:AJ84)) -> 0 | AP84: =IF(AO84="",0,AVERAGE(AO$10:AO84)) -> 0 | AQ84: =IF(AO83="",0,VAR(AO$10:AO84)) -> 0 | AU84: =IF(AT84="",0,AVERAGE(AT$10:AT84)) -> 0 | AV84: =IF(AT83="",0,VAR(AT$10:AT84)) -> 0 | AZ84: =IF(AY84="",0,AVERAGE(AY$10:AY84)) -> 0 | BA84: =IF(AY83="",0,VAR(AY$10:AY84)) -> 0
F85: =IF(E85="","",+(E85-E84)/E84) ->  | G85: =IF(F85="",0,AVERAGE($F$10:F85)) -> 0 | H85: =IF(F84="",0,VAR($F$10:F85)) -> 0 | L85: =IF(K85="",0,AVERAGE($K$10:K85)) -> 0 | M85: =IF(K84="",0,VAR($K$10:K85)) -> 0 | Q85: =IF(P85="",0,AVERAGE(P$10:P85)) -> 0 | R85: =IF(P84="",0,VAR(P$10:P85)) -> 0 | V85: =IF(U85="",0,AVERAGE(U$10:U85)) -> 0 | W85: =IF(U84="",0,VAR(U$10:U85)) -> 0 | AA85: =IF(Z85="",0,AVERAGE(Z$10:Z85)) -> 0 | AB85: =IF(Z84="",0,VAR(Z$10:Z85)) -> 0 | AF85: =IF(AE85="",0,AVERAGE(AE$10:AE85)) -> 0 | AG85: =IF(AE84="",0,VAR(AE$10:AE85)) -> 0 | AK85: =IF(AJ85="",0,AVERAGE(AJ$10:AJ85)) -> 0 | AL85: =IF(AJ84="",0,VAR(AJ$10:AJ85)) -> 0 | AP85: =IF(AO85="",0,AVERAGE(AO$10:AO85)) -> 0 | AQ85: =IF(AO84="",0,VAR(AO$10:AO85)) -> 0 | AU85: =IF(AT85="",0,AVERAGE(AT$10:AT85)) -> 0 | AV85: =IF(AT84="",0,VAR(AT$10:AT85)) -> 0 | AZ85: =IF(AY85="",0,AVERAGE(AY$10:AY85)) -> 0 | BA85: =IF(AY84="",0,VAR(AY$10:AY85)) -> 0
G86: =IF(F86="",0,AVERAGE($F$10:F86)) -> 0 | H86: =IF(F85="",0,VAR($F$10:F86)) -> 0 | L86: =IF(K86="",0,AVERAGE($K$10:K86)) -> 0 | M86: =IF(K85="",0,VAR($K$10:K86)) -> 0 | Q86: =IF(P86="",0,AVERAGE(P$10:P86)) -> 0 | R86: =IF(P85="",0,VAR(P$10:P86)) -> 0 | V86: =IF(U86="",0,AVERAGE(U$10:U86)) -> 0 | W86: =IF(U85="",0,VAR(U$10:U86)) -> 0 | AA86: =IF(Z86="",0,AVERAGE(Z$10:Z86)) -> 0 | AB86: =IF(Z85="",0,VAR(Z$10:Z86)) -> 0 | AF86: =IF(AE86="",0,AVERAGE(AE$10:AE86)) -> 0 | AG86: =IF(AE85="",0,VAR(AE$10:AE86)) -> 0 | AK86: =IF(AJ86="",0,AVERAGE(AJ$10:AJ86)) -> 0 | AL86: =IF(AJ85="",0,VAR(AJ$10:AJ86)) -> 0 | AP86: =IF(AO86="",0,AVERAGE(AO$10:AO86)) -> 0 | AQ86: =IF(AO85="",0,VAR(AO$10:AO86)) -> 0 | AU86: =IF(AT86="",0,AVERAGE(AT$10:AT86)) -> 0 | AV86: =IF(AT85="",0,VAR(AT$10:AT86)) -> 0 | AZ86: =IF(AY86="",0,AVERAGE(AY$10:AY86)) -> 0 | BA86: =IF(AY85="",0,VAR(AY$10:AY86)) -> 0
G87: =IF(F87="",0,AVERAGE($F$10:F87)) -> 0 | H87: =IF(F86="",0,VAR($F$10:F87)) -> 0 | L87: =IF(K87="",0,AVERAGE($K$10:K87)) -> 0 | M87: =IF(K86="",0,VAR($K$10:K87)) -> 0 | Q87: =IF(P87="",0,AVERAGE(P$10:P87)) -> 0 | R87: =IF(P86="",0,VAR(P$10:P87)) -> 0 | V87: =IF(U87="",0,AVERAGE(U$10:U87)) -> 0 | W87: =IF(U86="",0,VAR(U$10:U87)) -> 0 | AA87: =IF(Z87="",0,AVERAGE(Z$10:Z87)) -> 0 | AB87: =IF(Z86="",0,VAR(Z$10:Z87)) -> 0 | AF87: =IF(AE87="",0,AVERAGE(AE$10:AE87)) -> 0 | AG87: =IF(AE86="",0,VAR(AE$10:AE87)) -> 0 | AK87: =IF(AJ87="",0,AVERAGE(AJ$10:AJ87)) -> 0 | AL87: =IF(AJ86="",0,VAR(AJ$10:AJ87)) -> 0 | AP87: =IF(AO87="",0,AVERAGE(AO$10:AO87)) -> 0 | AQ87: =IF(AO86="",0,VAR(AO$10:AO87)) -> 0 | AU87: =IF(AT87="",0,AVERAGE(AT$10:AT87)) -> 0 | AV87: =IF(AT86="",0,VAR(AT$10:AT87)) -> 0 | AZ87: =IF(AY87="",0,AVERAGE(AY$10:AY87)) -> 0 | BA87: =IF(AY86="",0,VAR(AY$10:AY87)) -> 0
F88: =IF(E88="","",+(E88-E87)/E87) ->  | G88: =IF(F88="",0,AVERAGE($F$10:F88)) -> 0 | H88: =IF(F87="",0,VAR($F$10:F88)) -> 0 | L88: =IF(K88="",0,AVERAGE($K$10:K88)) -> 0 | M88: =IF(K87="",0,VAR($K$10:K88)) -> 0 | Q88: =IF(P88="",0,AVERAGE(P$10:P88)) -> 0 | R88: =IF(P87="",0,VAR(P$10:P88)) -> 0 | V88: =IF(U88="",0,AVERAGE(U$10:U88)) -> 0 | W88: =IF(U87="",0,VAR(U$10:U88)) -> 0 | AA88: =IF(Z88="",0,AVERAGE(Z$10:Z88)) -> 0 | AB88: =IF(Z87="",0,VAR(Z$10:Z88)) -> 0 | AF88: =IF(AE88="",0,AVERAGE(AE$10:AE88)) -> 0 | AG88: =IF(AE87="",0,VAR(AE$10:AE88)) -> 0 | AK88: =IF(AJ88="",0,AVERAGE(AJ$10:AJ88)) -> 0 | AL88: =IF(AJ87="",0,VAR(AJ$10:AJ88)) -> 0 | AP88: =IF(AO88="",0,AVERAGE(AO$10:AO88)) -> 0 | AQ88: =IF(AO87="",0,VAR(AO$10:AO88)) -> 0 | AU88: =IF(AT88="",0,AVERAGE(AT$10:AT88)) -> 0 | AV88: =IF(AT87="",0,VAR(AT$10:AT88)) -> 0 | AZ88: =IF(AY88="",0,AVERAGE(AY$10:AY88)) -> 0 | BA88: =IF(AY87="",0,VAR(AY$10:AY88)) -> 0
G89: =IF(F89="",0,AVERAGE($F$10:F89)) -> 0 | H89: =IF(F88="",0,VAR($F$10:F89)) -> 0 | L89: =IF(K89="",0,AVERAGE($K$10:K89)) -> 0 | M89: =IF(K88="",0,VAR($K$10:K89)) -> 0 | Q89: =IF(P89="",0,AVERAGE(P$10:P89)) -> 0 | R89: =IF(P88="",0,VAR(P$10:P89)) -> 0 | V89: =IF(U89="",0,AVERAGE(U$10:U89)) -> 0 | W89: =IF(U88="",0,VAR(U$10:U89)) -> 0 | AA89: =IF(Z89="",0,AVERAGE(Z$10:Z89)) -> 0 | AB89: =IF(Z88="",0,VAR(Z$10:Z89)) -> 0 | AF89: =IF(AE89="",0,AVERAGE(AE$10:AE89)) -> 0 | AG89: =IF(AE88="",0,VAR(AE$10:AE89)) -> 0 | AK89: =IF(AJ89="",0,AVERAGE(AJ$10:AJ89)) -> 0 | AL89: =IF(AJ88="",0,VAR(AJ$10:AJ89)) -> 0 | AP89: =IF(AO89="",0,AVERAGE(AO$10:AO89)) -> 0 | AQ89: =IF(AO88="",0,VAR(AO$10:AO89)) -> 0 | AU89: =IF(AT89="",0,AVERAGE(AT$10:AT89)) -> 0 | AV89: =IF(AT88="",0,VAR(AT$10:AT89)) -> 0 | AZ89: =IF(AY89="",0,AVERAGE(AY$10:AY89)) -> 0 | BA89: =IF(AY88="",0,VAR(AY$10:AY89)) -> 0
G90: =IF(F90="",0,AVERAGE($F$10:F90)) -> 0 | H90: =IF(F89="",0,VAR($F$10:F90)) -> 0 | L90: =IF(K90="",0,AVERAGE($K$10:K90)) -> 0 | M90: =IF(K89="",0,VAR($K$10:K90)) -> 0 | Q90: =IF(P90="",0,AVERAGE(P$10:P90)) -> 0 | R90: =IF(P89="",0,VAR(P$10:P90)) -> 0 | V90: =IF(U90="",0,AVERAGE(U$10:U90)) -> 0 | W90: =IF(U89="",0,VAR(U$10:U90)) -> 0 | AA90: =IF(Z90="",0,AVERAGE(Z$10:Z90)) -> 0 | AB90: =IF(Z89="",0,VAR(Z$10:Z90)) -> 0 | AF90: =IF(AE90="",0,AVERAGE(AE$10:AE90)) -> 0 | AG90: =IF(AE89="",0,VAR(AE$10:AE90)) -> 0 | AK90: =IF(AJ90="",0,AVERAGE(AJ$10:AJ90)) -> 0 | AL90: =IF(AJ89="",0,VAR(AJ$10:AJ90)) -> 0 | AP90: =IF(AO90="",0,AVERAGE(AO$10:AO90)) -> 0 | AQ90: =IF(AO89="",0,VAR(AO$10:AO90)) -> 0 | AU90: =IF(AT90="",0,AVERAGE(AT$10:AT90)) -> 0 | AV90: =IF(AT89="",0,VAR(AT$10:AT90)) -> 0 | AZ90: =IF(AY90="",0,AVERAGE(AY$10:AY90)) -> 0 | BA90: =IF(AY89="",0,VAR(AY$10:AY90)) -> 0
F91: =IF(E91="","",+(E91-E90)/E90) ->  | G91: =IF(F91="",0,AVERAGE($F$10:F91)) -> 0 | H91: =IF(F90="",0,VAR($F$10:F91)) -> 0 | L91: =IF(K91="",0,AVERAGE($K$10:K91)) -> 0 | M91: =IF(K90="",0,VAR($K$10:K91)) -> 0 | Q91: =IF(P91="",0,AVERAGE(P$10:P91)) -> 0 | R91: =IF(P90="",0,VAR(P$10:P91)) -> 0 | V91: =IF(U91="",0,AVERAGE(U$10:U91)) -> 0 | W91: =IF(U90="",0,VAR(U$10:U91)) -> 0 | AA91: =IF(Z91="",0,AVERAGE(Z$10:Z91)) -> 0 | AB91: =IF(Z90="",0,VAR(Z$10:Z91)) -> 0 | AF91: =IF(AE91="",0,AVERAGE(AE$10:AE91)) -> 0 | AG91: =IF(AE90="",0,VAR(AE$10:AE91)) -> 0 | AK91: =IF(AJ91="",0,AVERAGE(AJ$10:AJ91)) -> 0 | AL91: =IF(AJ90="",0,VAR(AJ$10:AJ91)) -> 0 | AP91: =IF(AO91="",0,AVERAGE(AO$10:AO91)) -> 0 | AQ91: =IF(AO90="",0,VAR(AO$10:AO91)) -> 0 | AU91: =IF(AT91="",0,AVERAGE(AT$10:AT91)) -> 0 | AV91: =IF(AT90="",0,VAR(AT$10:AT91)) -> 0 | AZ91: =IF(AY91="",0,AVERAGE(AY$10:AY91)) -> 0 | BA91: =IF(AY90="",0,VAR(AY$10:AY91)) -> 0
G92: =IF(F92="",0,AVERAGE($F$10:F92)) -> 0 | H92: =IF(F91="",0,VAR($F$10:F92)) -> 0 | L92: =IF(K92="",0,AVERAGE($K$10:K92)) -> 0 | M92: =IF(K91="",0,VAR($K$10:K92)) -> 0 | Q92: =IF(P92="",0,AVERAGE(P$10:P92)) -> 0 | R92: =IF(P91="",0,VAR(P$10:P92)) -> 0 | V92: =IF(U92="",0,AVERAGE(U$10:U92)) -> 0 | W92: =IF(U91="",0,VAR(U$10:U92)) -> 0 | AA92: =IF(Z92="",0,AVERAGE(Z$10:Z92)) -> 0 | AB92: =IF(Z91="",0,VAR(Z$10:Z92)) -> 0 | AF92: =IF(AE92="",0,AVERAGE(AE$10:AE92)) -> 0 | AG92: =IF(AE91="",0,VAR(AE$10:AE92)) -> 0 | AK92: =IF(AJ92="",0,AVERAGE(AJ$10:AJ92)) -> 0 | AL92: =IF(AJ91="",0,VAR(AJ$10:AJ92)) -> 0 | AP92: =IF(AO92="",0,AVERAGE(AO$10:AO92)) -> 0 | AQ92: =IF(AO91="",0,VAR(AO$10:AO92)) -> 0 | AU92: =IF(AT92="",0,AVERAGE(AT$10:AT92)) -> 0 | AV92: =IF(AT91="",0,VAR(AT$10:AT92)) -> 0 | AZ92: =IF(AY92="",0,AVERAGE(AY$10:AY92)) -> 0 | BA92: =IF(AY91="",0,VAR(AY$10:AY92)) -> 0
G93: =IF(F93="",0,AVERAGE($F$10:F93)) -> 0 | H93: =IF(F92="",0,VAR($F$10:F93)) -> 0 | L93: =IF(K93="",0,AVERAGE($K$10:K93)) -> 0 | M93: =IF(K92="",0,VAR($K$10:K93)) -> 0 | Q93: =IF(P93="",0,AVERAGE(P$10:P93)) -> 0 | R93: =IF(P92="",0,VAR(P$10:P93)) -> 0 | V93: =IF(U93="",0,AVERAGE(U$10:U93)) -> 0 | W93: =IF(U92="",0,VAR(U$10:U93)) -> 0 | AA93: =IF(Z93="",0,AVERAGE(Z$10:Z93)) -> 0 | AB93: =IF(Z92="",0,VAR(Z$10:Z93)) -> 0 | AF93: =IF(AE93="",0,AVERAGE(AE$10:AE93)) -> 0 | AG93: =IF(AE92="",0,VAR(AE$10:AE93)) -> 0 | AK93: =IF(AJ93="",0,AVERAGE(AJ$10:AJ93)) -> 0 | AL93: =IF(AJ92="",0,VAR(AJ$10:AJ93)) -> 0 | AP93: =IF(AO93="",0,AVERAGE(AO$10:AO93)) -> 0 | AQ93: =IF(AO92="",0,VAR(AO$10:AO93)) -> 0 | AU93: =IF(AT93="",0,AVERAGE(AT$10:AT93)) -> 0 | AV93: =IF(AT92="",0,VAR(AT$10:AT93)) -> 0 | AZ93: =IF(AY93="",0,AVERAGE(AY$10:AY93)) -> 0 | BA93: =IF(AY92="",0,VAR(AY$10:AY93)) -> 0
F94: =IF(E94="","",+(E94-E93)/E93) ->  | G94: =IF(F94="",0,AVERAGE($F$10:F94)) -> 0 | H94: =IF(F93="",0,VAR($F$10:F94)) -> 0 | L94: =IF(K94="",0,AVERAGE($K$10:K94)) -> 0 | M94: =IF(K93="",0,VAR($K$10:K94)) -> 0 | Q94: =IF(P94="",0,AVERAGE(P$10:P94)) -> 0 | R94: =IF(P93="",0,VAR(P$10:P94)) -> 0 | V94: =IF(U94="",0,AVERAGE(U$10:U94)) -> 0 | W94: =IF(U93="",0,VAR(U$10:U94)) -> 0 | AA94: =IF(Z94="",0,AVERAGE(Z$10:Z94)) -> 0 | AB94: =IF(Z93="",0,VAR(Z$10:Z94)) -> 0 | AF94: =IF(AE94="",0,AVERAGE(AE$10:AE94)) -> 0 | AG94: =IF(AE93="",0,VAR(AE$10:AE94)) -> 0 | AK94: =IF(AJ94="",0,AVERAGE(AJ$10:AJ94)) -> 0 | AL94: =IF(AJ93="",0,VAR(AJ$10:AJ94)) -> 0 | AP94: =IF(AO94="",0,AVERAGE(AO$10:AO94)) -> 0 | AQ94: =IF(AO93="",0,VAR(AO$10:AO94)) -> 0 | AU94: =IF(AT94="",0,AVERAGE(AT$10:AT94)) -> 0 | AV94: =IF(AT93="",0,VAR(AT$10:AT94)) -> 0 | AZ94: =IF(AY94="",0,AVERAGE(AY$10:AY94)) -> 0 | BA94: =IF(AY93="",0,VAR(AY$10:AY94)) -> 0
G95: =IF(F95="",0,AVERAGE($F$10:F95)) -> 0 | H95: =IF(F94="",0,VAR($F$10:F95)) -> 0 | L95: =IF(K95="",0,AVERAGE($K$10:K95)) -> 0 | M95: =IF(K94="",0,VAR($K$10:K95)) -> 0 | Q95: =IF(P95="",0,AVERAGE(P$10:P95)) -> 0 | R95: =IF(P94="",0,VAR(P$10:P95)) -> 0 | V95: =IF(U95="",0,AVERAGE(U$10:U95)) -> 0 | W95: =IF(U94="",0,VAR(U$10:U95)) -> 0 | AA95: =IF(Z95="",0,AVERAGE(Z$10:Z95)) -> 0 | AB95: =IF(Z94="",0,VAR(Z$10:Z95)) -> 0 | AF95: =IF(AE95="",0,AVERAGE(AE$10:AE95)) -> 0 | AG95: =IF(AE94="",0,VAR(AE$10:AE95)) -> 0 | AK95: =IF(AJ95="",0,AVERAGE(AJ$10:AJ95)) -> 0 | AL95: =IF(AJ94="",0,VAR(AJ$10:AJ95)) -> 0 | AP95: =IF(AO95="",0,AVERAGE(AO$10:AO95)) -> 0 | AQ95: =IF(AO94="",0,VAR(AO$10:AO95)) -> 0 | AU95: =IF(AT95="",0,AVERAGE(AT$10:AT95)) -> 0 | AV95: =IF(AT94="",0,VAR(AT$10:AT95)) -> 0 | AZ95: =IF(AY95="",0,AVERAGE(AY$10:AY95)) -> 0 | BA95: =IF(AY94="",0,VAR(AY$10:AY95)) -> 0
G96: =IF(F96="",0,AVERAGE($F$10:F96)) -> 0 | H96: =IF(F95="",0,VAR($F$10:F96)) -> 0 | L96: =IF(K96="",0,AVERAGE($K$10:K96)) -> 0 | M96: =IF(K95="",0,VAR($K$10:K96)) -> 0 | Q96: =IF(P96="",0,AVERAGE(P$10:P96)) -> 0 | R96: =IF(P95="",0,VAR(P$10:P96)) -> 0 | V96: =IF(U96="",0,AVERAGE(U$10:U96)) -> 0 | W96: =IF(U95="",0,VAR(U$10:U96)) -> 0 | AA96: =IF(Z96="",0,AVERAGE(Z$10:Z96)) -> 0 | AB96: =IF(Z95="",0,VAR(Z$10:Z96)) -> 0 | AF96: =IF(AE96="",0,AVERAGE(AE$10:AE96)) -> 0 | AG96: =IF(AE95="",0,VAR(AE$10:AE96)) -> 0 | AK96: =IF(AJ96="",0,AVERAGE(AJ$10:AJ96)) -> 0 | AL96: =IF(AJ95="",0,VAR(AJ$10:AJ96)) -> 0 | AP96: =IF(AO96="",0,AVERAGE(AO$10:AO96)) -> 0 | AQ96: =IF(AO95="",0,VAR(AO$10:AO96)) -> 0 | AU96: =IF(AT96="",0,AVERAGE(AT$10:AT96)) -> 0 | AV96: =IF(AT95="",0,VAR(AT$10:AT96)) -> 0 | AZ96: =IF(AY96="",0,AVERAGE(AY$10:AY96)) -> 0 | BA96: =IF(AY95="",0,VAR(AY$10:AY96)) -> 0
F97: =IF(E97="","",+(E97-E96)/E96) ->  | G97: =IF(F97="",0,AVERAGE($F$10:F97)) -> 0 | H97: =IF(F96="",0,VAR($F$10:F97)) -> 0 | L97: =IF(K97="",0,AVERAGE($K$10:K97)) -> 0 | M97: =IF(K96="",0,VAR($K$10:K97)) -> 0 | Q97: =IF(P97="",0,AVERAGE(P$10:P97)) -> 0 | R97: =IF(P96="",0,VAR(P$10:P97)) -> 0 | V97: =IF(U97="",0,AVERAGE(U$10:U97)) -> 0 | W97: =IF(U96="",0,VAR(U$10:U97)) -> 0 | AA97: =IF(Z97="",0,AVERAGE(Z$10:Z97)) -> 0 | AB97: =IF(Z96="",0,VAR(Z$10:Z97)) -> 0 | AF97: =IF(AE97="",0,AVERAGE(AE$10:AE97)) -> 0 | AG97: =IF(AE96="",0,VAR(AE$10:AE97)) -> 0 | AK97: =IF(AJ97="",0,AVERAGE(AJ$10:AJ97)) -> 0 | AL97: =IF(AJ96="",0,VAR(AJ$10:AJ97)) -> 0 | AP97: =IF(AO97="",0,AVERAGE(AO$10:AO97)) -> 0 | AQ97: =IF(AO96="",0,VAR(AO$10:AO97)) -> 0 | AU97: =IF(AT97="",0,AVERAGE(AT$10:AT97)) -> 0 | AV97: =IF(AT96="",0,VAR(AT$10:AT97)) -> 0 | AZ97: =IF(AY97="",0,AVERAGE(AY$10:AY97)) -> 0 | BA97: =IF(AY96="",0,VAR(AY$10:AY97)) -> 0
G98: =IF(F98="",0,AVERAGE($F$10:F98)) -> 0 | H98: =IF(F97="",0,VAR($F$10:F98)) -> 0 | L98: =IF(K98="",0,AVERAGE($K$10:K98)) -> 0 | M98: =IF(K97="",0,VAR($K$10:K98)) -> 0 | Q98: =IF(P98="",0,AVERAGE(P$10:P98)) -> 0 | R98: =IF(P97="",0,VAR(P$10:P98)) -> 0 | V98: =IF(U98="",0,AVERAGE(U$10:U98)) -> 0 | W98: =IF(U97="",0,VAR(U$10:U98)) -> 0 | AA98: =IF(Z98="",0,AVERAGE(Z$10:Z98)) -> 0 | AB98: =IF(Z97="",0,VAR(Z$10:Z98)) -> 0 | AF98: =IF(AE98="",0,AVERAGE(AE$10:AE98)) -> 0 | AG98: =IF(AE97="",0,VAR(AE$10:AE98)) -> 0 | AK98: =IF(AJ98="",0,AVERAGE(AJ$10:AJ98)) -> 0 | AL98: =IF(AJ97="",0,VAR(AJ$10:AJ98)) -> 0 | AP98: =IF(AO98="",0,AVERAGE(AO$10:AO98)) -> 0 | AQ98: =IF(AO97="",0,VAR(AO$10:AO98)) -> 0 | AU98: =IF(AT98="",0,AVERAGE(AT$10:AT98)) -> 0 | AV98: =IF(AT97="",0,VAR(AT$10:AT98)) -> 0 | AZ98: =IF(AY98="",0,AVERAGE(AY$10:AY98)) -> 0 | BA98: =IF(AY97="",0,VAR(AY$10:AY98)) -> 0
G99: =IF(F99="",0,AVERAGE($F$10:F99)) -> 0 | H99: =IF(F98="",0,VAR($F$10:F99)) -> 0 | L99: =IF(K99="",0,AVERAGE($K$10:K99)) -> 0 | M99: =IF(K98="",0,VAR($K$10:K99)) -> 0 | Q99: =IF(P99="",0,AVERAGE(P$10:P99)) -> 0 | R99: =IF(P98="",0,VAR(P$10:P99)) -> 0 | V99: =IF(U99="",0,AVERAGE(U$10:U99)) -> 0 | W99: =IF(U98="",0,VAR(U$10:U99)) -> 0 | AA99: =IF(Z99="",0,AVERAGE(Z$10:Z99)) -> 0 | AB99: =IF(Z98="",0,VAR(Z$10:Z99)) -> 0 | AF99: =IF(AE99="",0,AVERAGE(AE$10:AE99)) -> 0 | AG99: =IF(AE98="",0,VAR(AE$10:AE99)) -> 0 | AK99: =IF(AJ99="",0,AVERAGE(AJ$10:AJ99)) -> 0 | AL99: =IF(AJ98="",0,VAR(AJ$10:AJ99)) -> 0 | AP99: =IF(AO99="",0,AVERAGE(AO$10:AO99)) -> 0 | AQ99: =IF(AO98="",0,VAR(AO$10:AO99)) -> 0 | AU99: =IF(AT99="",0,AVERAGE(AT$10:AT99)) -> 0 | AV99: =IF(AT98="",0,VAR(AT$10:AT99)) -> 0 | AZ99: =IF(AY99="",0,AVERAGE(AY$10:AY99)) -> 0 | BA99: =IF(AY98="",0,VAR(AY$10:AY99)) -> 0
F100: =IF(E100="","",+(E100-E99)/E99) ->  | G100: =IF(F100="",0,AVERAGE($F$10:F100)) -> 0 | H100: =IF(F99="",0,VAR($F$10:F100)) -> 0 | L100: =IF(K100="",0,AVERAGE($K$10:K100)) -> 0 | M100: =IF(K99="",0,VAR($K$10:K100)) -> 0 | Q100: =IF(P100="",0,AVERAGE(P$10:P100)) -> 0 | R100: =IF(P99="",0,VAR(P$10:P100)) -> 0 | V100: =IF(U100="",0,AVERAGE(U$10:U100)) -> 0 | W100: =IF(U99="",0,VAR(U$10:U100)) -> 0 | AA100: =IF(Z100="",0,AVERAGE(Z$10:Z100)) -> 0 | AB100: =IF(Z99="",0,VAR(Z$10:Z100)) -> 0 | AF100: =IF(AE100="",0,AVERAGE(AE$10:AE100)) -> 0 | AG100: =IF(AE99="",0,VAR(AE$10:AE100)) -> 0 | AK100: =IF(AJ100="",0,AVERAGE(AJ$10:AJ100)) -> 0 | AL100: =IF(AJ99="",0,VAR(AJ$10:AJ100)) -> 0 | AP100: =IF(AO100="",0,AVERAGE(AO$10:AO100)) -> 0 | AQ100: =IF(AO99="",0,VAR(AO$10:AO100)) -> 0 | AU100: =IF(AT100="",0,AVERAGE(AT$10:AT100)) -> 0 | AV100: =IF(AT99="",0,VAR(AT$10:AT100)) -> 0 | AZ100: =IF(AY100="",0,AVERAGE(AY$10:AY100)) -> 0 | BA100: =IF(AY99="",0,VAR(AY$10:AY100)) -> 0
G101: =IF(F101="",0,AVERAGE($F$10:F101)) -> 0 | H101: =IF(F100="",0,VAR($F$10:F101)) -> 0 | L101: =IF(K101="",0,AVERAGE($K$10:K101)) -> 0 | M101: =IF(K100="",0,VAR($K$10:K101)) -> 0 | Q101: =IF(P101="",0,AVERAGE(P$10:P101)) -> 0 | R101: =IF(P100="",0,VAR(P$10:P101)) -> 0 | V101: =IF(U101="",0,AVERAGE(U$10:U101)) -> 0 | W101: =IF(U100="",0,VAR(U$10:U101)) -> 0 | AA101: =IF(Z101="",0,AVERAGE(Z$10:Z101)) -> 0 | AB101: =IF(Z100="",0,VAR(Z$10:Z101)) -> 0 | AF101: =IF(AE101="",0,AVERAGE(AE$10:AE101)) -> 0 | AG101: =IF(AE100="",0,VAR(AE$10:AE101)) -> 0 | AK101: =IF(AJ101="",0,AVERAGE(AJ$10:AJ101)) -> 0 | AL101: =IF(AJ100="",0,VAR(AJ$10:AJ101)) -> 0 | AP101: =IF(AO101="",0,AVERAGE(AO$10:AO101)) -> 0 | AQ101: =IF(AO100="",0,VAR(AO$10:AO101)) -> 0 | AU101: =IF(AT101="",0,AVERAGE(AT$10:AT101)) -> 0 | AV101: =IF(AT100="",0,VAR(AT$10:AT101)) -> 0 | AZ101: =IF(AY101="",0,AVERAGE(AY$10:AY101)) -> 0 | BA101: =IF(AY100="",0,VAR(AY$10:AY101)) -> 0
G102: =IF(F102="",0,AVERAGE($F$10:F102)) -> 0 | H102: =IF(F101="",0,VAR($F$10:F102)) -> 0 | L102: =IF(K102="",0,AVERAGE($K$10:K102)) -> 0 | M102: =IF(K101="",0,VAR($K$10:K102)) -> 0 | Q102: =IF(P102="",0,AVERAGE(P$10:P102)) -> 0 | R102: =IF(P101="",0,VAR(P$10:P102)) -> 0 | V102: =IF(U102="",0,AVERAGE(U$10:U102)) -> 0 | W102: =IF(U101="",0,VAR(U$10:U102)) -> 0 | AA102: =IF(Z102="",0,AVERAGE(Z$10:Z102)) -> 0 | AB102: =IF(Z101="",0,VAR(Z$10:Z102)) -> 0 | AF102: =IF(AE102="",0,AVERAGE(AE$10:AE102)) -> 0 | AG102: =IF(AE101="",0,VAR(AE$10:AE102)) -> 0 | AK102: =IF(AJ102="",0,AVERAGE(AJ$10:AJ102)) -> 0 | AL102: =IF(AJ101="",0,VAR(AJ$10:AJ102)) -> 0 | AP102: =IF(AO102="",0,AVERAGE(AO$10:AO102)) -> 0 | AQ102: =IF(AO101="",0,VAR(AO$10:AO102)) -> 0 | AU102: =IF(AT102="",0,AVERAGE(AT$10:AT102)) -> 0 | AV102: =IF(AT101="",0,VAR(AT$10:AT102)) -> 0 | AZ102: =IF(AY102="",0,AVERAGE(AY$10:AY102)) -> 0 | BA102: =IF(AY101="",0,VAR(AY$10:AY102)) -> 0
F103: =IF(E103="","",+(E103-E102)/E102) ->  | G103: =IF(F103="",0,AVERAGE($F$10:F103)) -> 0 | H103: =IF(F102="",0,VAR($F$10:F103)) -> 0 | L103: =IF(K103="",0,AVERAGE($K$10:K103)) -> 0 | M103: =IF(K102="",0,VAR($K$10:K103)) -> 0 | Q103: =IF(P103="",0,AVERAGE(P$10:P103)) -> 0 | R103: =IF(P102="",0,VAR(P$10:P103)) -> 0 | V103: =IF(U103="",0,AVERAGE(U$10:U103)) -> 0 | W103: =IF(U102="",0,VAR(U$10:U103)) -> 0 | AA103: =IF(Z103="",0,AVERAGE(Z$10:Z103)) -> 0 | AB103: =IF(Z102="",0,VAR(Z$10:Z103)) -> 0 | AF103: =IF(AE103="",0,AVERAGE(AE$10:AE103)) -> 0 | AG103: =IF(AE102="",0,VAR(AE$10:AE103)) -> 0 | AK103: =IF(AJ103="",0,AVERAGE(AJ$10:AJ103)) -> 0 | AL103: =IF(AJ102="",0,VAR(AJ$10:AJ103)) -> 0 | AP103: =IF(AO103="",0,AVERAGE(AO$10:AO103)) -> 0 | AQ103: =IF(AO102="",0,VAR(AO$10:AO103)) -> 0 | AU103: =IF(AT103="",0,AVERAGE(AT$10:AT103)) -> 0 | AV103: =IF(AT102="",0,VAR(AT$10:AT103)) -> 0 | AZ103: =IF(AY103="",0,AVERAGE(AY$10:AY103)) -> 0 | BA103: =IF(AY102="",0,VAR(AY$10:AY103)) -> 0
G104: =IF(F104="",0,AVERAGE($F$10:F104)) -> 0 | H104: =IF(F103="",0,VAR($F$10:F104)) -> 0 | L104: =IF(K104="",0,AVERAGE($K$10:K104)) -> 0 | M104: =IF(K103="",0,VAR($K$10:K104)) -> 0 | Q104: =IF(P104="",0,AVERAGE(P$10:P104)) -> 0 | R104: =IF(P103="",0,VAR(P$10:P104)) -> 0 | V104: =IF(U104="",0,AVERAGE(U$10:U104)) -> 0 | W104: =IF(U103="",0,VAR(U$10:U104)) -> 0 | AA104: =IF(Z104="",0,AVERAGE(Z$10:Z104)) -> 0 | AB104: =IF(Z103="",0,VAR(Z$10:Z104)) -> 0 | AF104: =IF(AE104="",0,AVERAGE(AE$10:AE104)) -> 0 | AG104: =IF(AE103="",0,VAR(AE$10:AE104)) -> 0 | AK104: =IF(AJ104="",0,AVERAGE(AJ$10:AJ104)) -> 0 | AL104: =IF(AJ103="",0,VAR(AJ$10:AJ104)) -> 0 | AP104: =IF(AO104="",0,AVERAGE(AO$10:AO104)) -> 0 | AQ104: =IF(AO103="",0,VAR(AO$10:AO104)) -> 0 | AU104: =IF(AT104="",0,AVERAGE(AT$10:AT104)) -> 0 | AV104: =IF(AT103="",0,VAR(AT$10:AT104)) -> 0 | AZ104: =IF(AY104="",0,AVERAGE(AY$10:AY104)) -> 0 | BA104: =IF(AY103="",0,VAR(AY$10:AY104)) -> 0
G105: =IF(F105="",0,AVERAGE($F$10:F105)) -> 0 | H105: =IF(F104="",0,VAR($F$10:F105)) -> 0 | L105: =IF(K105="",0,AVERAGE($K$10:K105)) -> 0 | M105: =IF(K104="",0,VAR($K$10:K105)) -> 0 | Q105: =IF(P105="",0,AVERAGE(P$10:P105)) -> 0 | R105: =IF(P104="",0,VAR(P$10:P105)) -> 0 | V105: =IF(U105="",0,AVERAGE(U$10:U105)) -> 0 | W105: =IF(U104="",0,VAR(U$10:U105)) -> 0 | AA105: =IF(Z105="",0,AVERAGE(Z$10:Z105)) -> 0 | AB105: =IF(Z104="",0,VAR(Z$10:Z105)) -> 0 | AF105: =IF(AE105="",0,AVERAGE(AE$10:AE105)) -> 0 | AG105: =IF(AE104="",0,VAR(AE$10:AE105)) -> 0 | AK105: =IF(AJ105="",0,AVERAGE(AJ$10:AJ105)) -> 0 | AL105: =IF(AJ104="",0,VAR(AJ$10:AJ105)) -> 0 | AP105: =IF(AO105="",0,AVERAGE(AO$10:AO105)) -> 0 | AQ105: =IF(AO104="",0,VAR(AO$10:AO105)) -> 0 | AU105: =IF(AT105="",0,AVERAGE(AT$10:AT105)) -> 0 | AV105: =IF(AT104="",0,VAR(AT$10:AT105)) -> 0 | AZ105: =IF(AY105="",0,AVERAGE(AY$10:AY105)) -> 0 | BA105: =IF(AY104="",0,VAR(AY$10:AY105)) -> 0
F106: =IF(E106="","",+(E106-E105)/E105) ->  | G106: =IF(F106="",0,AVERAGE($F$10:F106)) -> 0 | H106: =IF(F105="",0,VAR($F$10:F106)) -> 0 | L106: =IF(K106="",0,AVERAGE($K$10:K106)) -> 0 | M106: =IF(K105="",0,VAR($K$10:K106)) -> 0 | Q106: =IF(P106="",0,AVERAGE(P$10:P106)) -> 0 | R106: =IF(P105="",0,VAR(P$10:P106)) -> 0 | V106: =IF(U106="",0,AVERAGE(U$10:U106)) -> 0 | W106: =IF(U105="",0,VAR(U$10:U106)) -> 0 | AA106: =IF(Z106="",0,AVERAGE(Z$10:Z106)) -> 0 | AB106: =IF(Z105="",0,VAR(Z$10:Z106)) -> 0 | AF106: =IF(AE106="",0,AVERAGE(AE$10:AE106)) -> 0 | AG106: =IF(AE105="",0,VAR(AE$10:AE106)) -> 0 | AK106: =IF(AJ106="",0,AVERAGE(AJ$10:AJ106)) -> 0 | AL106: =IF(AJ105="",0,VAR(AJ$10:AJ106)) -> 0 | AP106: =IF(AO106="",0,AVERAGE(AO$10:AO106)) -> 0 | AQ106: =IF(AO105="",0,VAR(AO$10:AO106)) -> 0 | AU106: =IF(AT106="",0,AVERAGE(AT$10:AT106)) -> 0 | AV106: =IF(AT105="",0,VAR(AT$10:AT106)) -> 0 | AZ106: =IF(AY106="",0,AVERAGE(AY$10:AY106)) -> 0 | BA106: =IF(AY105="",0,VAR(AY$10:AY106)) -> 0
G107: =IF(F107="",0,AVERAGE($F$10:F107)) -> 0 | H107: =IF(F106="",0,VAR($F$10:F107)) -> 0 | L107: =IF(K107="",0,AVERAGE($K$10:K107)) -> 0 | M107: =IF(K106="",0,VAR($K$10:K107)) -> 0 | Q107: =IF(P107="",0,AVERAGE(P$10:P107)) -> 0 | R107: =IF(P106="",0,VAR(P$10:P107)) -> 0 | V107: =IF(U107="",0,AVERAGE(U$10:U107)) -> 0 | W107: =IF(U106="",0,VAR(U$10:U107)) -> 0 | AA107: =IF(Z107="",0,AVERAGE(Z$10:Z107)) -> 0 | AB107: =IF(Z106="",0,VAR(Z$10:Z107)) -> 0 | AF107: =IF(AE107="",0,AVERAGE(AE$10:AE107)) -> 0 | AG107: =IF(AE106="",0,VAR(AE$10:AE107)) -> 0 | AK107: =IF(AJ107="",0,AVERAGE(AJ$10:AJ107)) -> 0 | AL107: =IF(AJ106="",0,VAR(AJ$10:AJ107)) -> 0 | AP107: =IF(AO107="",0,AVERAGE(AO$10:AO107)) -> 0 | AQ107: =IF(AO106="",0,VAR(AO$10:AO107)) -> 0 | AU107: =IF(AT107="",0,AVERAGE(AT$10:AT107)) -> 0 | AV107: =IF(AT106="",0,VAR(AT$10:AT107)) -> 0 | AZ107: =IF(AY107="",0,AVERAGE(AY$10:AY107)) -> 0 | BA107: =IF(AY106="",0,VAR(AY$10:AY107)) -> 0
G108: =IF(F108="",0,AVERAGE($F$10:F108)) -> 0 | H108: =IF(F107="",0,VAR($F$10:F108)) -> 0 | L108: =IF(K108="",0,AVERAGE($K$10:K108)) -> 0 | M108: =IF(K107="",0,VAR($K$10:K108)) -> 0 | Q108: =IF(P108="",0,AVERAGE(P$10:P108)) -> 0 | R108: =IF(P107="",0,VAR(P$10:P108)) -> 0 | V108: =IF(U108="",0,AVERAGE(U$10:U108)) -> 0 | W108: =IF(U107="",0,VAR(U$10:U108)) -> 0 | AA108: =IF(Z108="",0,AVERAGE(Z$10:Z108)) -> 0 | AB108: =IF(Z107="",0,VAR(Z$10:Z108)) -> 0 | AF108: =IF(AE108="",0,AVERAGE(AE$10:AE108)) -> 0 | AG108: =IF(AE107="",0,VAR(AE$10:AE108)) -> 0 | AK108: =IF(AJ108="",0,AVERAGE(AJ$10:AJ108)) -> 0 | AL108: =IF(AJ107="",0,VAR(AJ$10:AJ108)) -> 0 | AP108: =IF(AO108="",0,AVERAGE(AO$10:AO108)) -> 0 | AQ108: =IF(AO107="",0,VAR(AO$10:AO108)) -> 0 | AU108: =IF(AT108="",0,AVERAGE(AT$10:AT108)) -> 0 | AV108: =IF(AT107="",0,VAR(AT$10:AT108)) -> 0 | AZ108: =IF(AY108="",0,AVERAGE(AY$10:AY108)) -> 0 | BA108: =IF(AY107="",0,VAR(AY$10:AY108)) -> 0
F109: =IF(E109="","",+(E109-E108)/E108) ->  | G109: =IF(F109="",0,AVERAGE($F$10:F109)) -> 0 | H109: =IF(F108="",0,VAR($F$10:F109)) -> 0 | L109: =IF(K109="",0,AVERAGE($K$10:K109)) -> 0 | M109: =IF(K108="",0,VAR($K$10:K109)) -> 0 | Q109: =IF(P109="",0,AVERAGE(P$10:P109)) -> 0 | R109: =IF(P108="",0,VAR(P$10:P109)) -> 0 | V109: =IF(U109="",0,AVERAGE(U$10:U109)) -> 0 | W109: =IF(U108="",0,VAR(U$10:U109)) -> 0 | AA109: =IF(Z109="",0,AVERAGE(Z$10:Z109)) -> 0 | AB109: =IF(Z108="",0,VAR(Z$10:Z109)) -> 0 | AF109: =IF(AE109="",0,AVERAGE(AE$10:AE109)) -> 0 | AG109: =IF(AE108="",0,VAR(AE$10:AE109)) -> 0 | AK109: =IF(AJ109="",0,AVERAGE(AJ$10:AJ109)) -> 0 | AL109: =IF(AJ108="",0,VAR(AJ$10:AJ109)) -> 0 | AP109: =IF(AO109="",0,AVERAGE(AO$10:AO109)) -> 0 | AQ109: =IF(AO108="",0,VAR(AO$10:AO109)) -> 0 | AU109: =IF(AT109="",0,AVERAGE(AT$10:AT109)) -> 0 | AV109: =IF(AT108="",0,VAR(AT$10:AT109)) -> 0 | AZ109: =IF(AY109="",0,AVERAGE(AY$10:AY109)) -> 0 | BA109: =IF(AY108="",0,VAR(AY$10:AY109)) -> 0
G110: =IF(F110="",0,AVERAGE($F$10:F110)) -> 0 | H110: =IF(F109="",0,VAR($F$10:F110)) -> 0 | L110: =IF(K110="",0,AVERAGE($K$10:K110)) -> 0 | M110: =IF(K109="",0,VAR($K$10:K110)) -> 0 | Q110: =IF(P110="",0,AVERAGE(P$10:P110)) -> 0 | R110: =IF(P109="",0,VAR(P$10:P110)) -> 0 | V110: =IF(U110="",0,AVERAGE(U$10:U110)) -> 0 | W110: =IF(U109="",0,VAR(U$10:U110)) -> 0 | AA110: =IF(Z110="",0,AVERAGE(Z$10:Z110)) -> 0 | AB110: =IF(Z109="",0,VAR(Z$10:Z110)) -> 0 | AF110: =IF(AE110="",0,AVERAGE(AE$10:AE110)) -> 0 | AG110: =IF(AE109="",0,VAR(AE$10:AE110)) -> 0 | AK110: =IF(AJ110="",0,AVERAGE(AJ$10:AJ110)) -> 0 | AL110: =IF(AJ109="",0,VAR(AJ$10:AJ110)) -> 0 | AP110: =IF(AO110="",0,AVERAGE(AO$10:AO110)) -> 0 | AQ110: =IF(AO109="",0,VAR(AO$10:AO110)) -> 0 | AU110: =IF(AT110="",0,AVERAGE(AT$10:AT110)) -> 0 | AV110: =IF(AT109="",0,VAR(AT$10:AT110)) -> 0 | AZ110: =IF(AY110="",0,AVERAGE(AY$10:AY110)) -> 0 | BA110: =IF(AY109="",0,VAR(AY$10:AY110)) -> 0
G111: =IF(F111="",0,AVERAGE($F$10:F111)) -> 0 | H111: =IF(F110="",0,VAR($F$10:F111)) -> 0 | L111: =IF(K111="",0,AVERAGE($K$10:K111)) -> 0 | M111: =IF(K110="",0,VAR($K$10:K111)) -> 0 | Q111: =IF(P111="",0,AVERAGE(P$10:P111)) -> 0 | R111: =IF(P110="",0,VAR(P$10:P111)) -> 0 | V111: =IF(U111="",0,AVERAGE(U$10:U111)) -> 0 | W111: =IF(U110="",0,VAR(U$10:U111)) -> 0 | AA111: =IF(Z111="",0,AVERAGE(Z$10:Z111)) -> 0 | AB111: =IF(Z110="",0,VAR(Z$10:Z111)) -> 0 | AF111: =IF(AE111="",0,AVERAGE(AE$10:AE111)) -> 0 | AG111: =IF(AE110="",0,VAR(AE$10:AE111)) -> 0 | AK111: =IF(AJ111="",0,AVERAGE(AJ$10:AJ111)) -> 0 | AL111: =IF(AJ110="",0,VAR(AJ$10:AJ111)) -> 0 | AP111: =IF(AO111="",0,AVERAGE(AO$10:AO111)) -> 0 | AQ111: =IF(AO110="",0,VAR(AO$10:AO111)) -> 0 | AU111: =IF(AT111="",0,AVERAGE(AT$10:AT111)) -> 0 | AV111: =IF(AT110="",0,VAR(AT$10:AT111)) -> 0 | AZ111: =IF(AY111="",0,AVERAGE(AY$10:AY111)) -> 0 | BA111: =IF(AY110="",0,VAR(AY$10:AY111)) -> 0
F112: =IF(E112="","",+(E112-E111)/E111) ->  | G112: =IF(F112="",0,AVERAGE($F$10:F112)) -> 0 | H112: =IF(F111="",0,VAR($F$10:F112)) -> 0 | L112: =IF(K112="",0,AVERAGE($K$10:K112)) -> 0 | M112: =IF(K111="",0,VAR($K$10:K112)) -> 0 | Q112: =IF(P112="",0,AVERAGE(P$10:P112)) -> 0 | R112: =IF(P111="",0,VAR(P$10:P112)) -> 0 | V112: =IF(U112="",0,AVERAGE(U$10:U112)) -> 0 | W112: =IF(U111="",0,VAR(U$10:U112)) -> 0 | AA112: =IF(Z112="",0,AVERAGE(Z$10:Z112)) -> 0 | AB112: =IF(Z111="",0,VAR(Z$10:Z112)) -> 0 | AF112: =IF(AE112="",0,AVERAGE(AE$10:AE112)) -> 0 | AG112: =IF(AE111="",0,VAR(AE$10:AE112)) -> 0 | AK112: =IF(AJ112="",0,AVERAGE(AJ$10:AJ112)) -> 0 | AL112: =IF(AJ111="",0,VAR(AJ$10:AJ112)) -> 0 | AP112: =IF(AO112="",0,AVERAGE(AO$10:AO112)) -> 0 | AQ112: =IF(AO111="",0,VAR(AO$10:AO112)) -> 0 | AU112: =IF(AT112="",0,AVERAGE(AT$10:AT112)) -> 0 | AV112: =IF(AT111="",0,VAR(AT$10:AT112)) -> 0 | AZ112: =IF(AY112="",0,AVERAGE(AY$10:AY112)) -> 0 | BA112: =IF(AY111="",0,VAR(AY$10:AY112)) -> 0
G113: =IF(F113="",0,AVERAGE($F$10:F113)) -> 0 | H113: =IF(F112="",0,VAR($F$10:F113)) -> 0 | L113: =IF(K113="",0,AVERAGE($K$10:K113)) -> 0 | M113: =IF(K112="",0,VAR($K$10:K113)) -> 0 | Q113: =IF(P113="",0,AVERAGE(P$10:P113)) -> 0 | R113: =IF(P112="",0,VAR(P$10:P113)) -> 0 | V113: =IF(U113="",0,AVERAGE(U$10:U113)) -> 0 | W113: =IF(U112="",0,VAR(U$10:U113)) -> 0 | AA113: =IF(Z113="",0,AVERAGE(Z$10:Z113)) -> 0 | AB113: =IF(Z112="",0,VAR(Z$10:Z113)) -> 0 | AF113: =IF(AE113="",0,AVERAGE(AE$10:AE113)) -> 0 | AG113: =IF(AE112="",0,VAR(AE$10:AE113)) -> 0 | AK113: =IF(AJ113="",0,AVERAGE(AJ$10:AJ113)) -> 0 | AL113: =IF(AJ112="",0,VAR(AJ$10:AJ113)) -> 0 | AP113: =IF(AO113="",0,AVERAGE(AO$10:AO113)) -> 0 | AQ113: =IF(AO112="",0,VAR(AO$10:AO113)) -> 0 | AU113: =IF(AT113="",0,AVERAGE(AT$10:AT113)) -> 0 | AV113: =IF(AT112="",0,VAR(AT$10:AT113)) -> 0 | AZ113: =IF(AY113="",0,AVERAGE(AY$10:AY113)) -> 0 | BA113: =IF(AY112="",0,VAR(AY$10:AY113)) -> 0
G114: =IF(F114="",0,AVERAGE($F$10:F114)) -> 0 | H114: =IF(F113="",0,VAR($F$10:F114)) -> 0 | L114: =IF(K114="",0,AVERAGE($K$10:K114)) -> 0 | M114: =IF(K113="",0,VAR($K$10:K114)) -> 0 | Q114: =IF(P114="",0,AVERAGE(P$10:P114)) -> 0 | R114: =IF(P113="",0,VAR(P$10:P114)) -> 0 | V114: =IF(U114="",0,AVERAGE(U$10:U114)) -> 0 | W114: =IF(U113="",0,VAR(U$10:U114)) -> 0 | AA114: =IF(Z114="",0,AVERAGE(Z$10:Z114)) -> 0 | AB114: =IF(Z113="",0,VAR(Z$10:Z114)) -> 0 | AF114: =IF(AE114="",0,AVERAGE(AE$10:AE114)) -> 0 | AG114: =IF(AE113="",0,VAR(AE$10:AE114)) -> 0 | AK114: =IF(AJ114="",0,AVERAGE(AJ$10:AJ114)) -> 0 | AL114: =IF(AJ113="",0,VAR(AJ$10:AJ114)) -> 0 | AP114: =IF(AO114="",0,AVERAGE(AO$10:AO114)) -> 0 | AQ114: =IF(AO113="",0,VAR(AO$10:AO114)) -> 0 | AU114: =IF(AT114="",0,AVERAGE(AT$10:AT114)) -> 0 | AV114: =IF(AT113="",0,VAR(AT$10:AT114)) -> 0 | AZ114: =IF(AY114="",0,AVERAGE(AY$10:AY114)) -> 0 | BA114: =IF(AY113="",0,VAR(AY$10:AY114)) -> 0
F115: =IF(E115="","",+(E115-E114)/E114) ->  | G115: =IF(F115="",0,AVERAGE($F$10:F115)) -> 0 | H115: =IF(F114="",0,VAR($F$10:F115)) -> 0 | L115: =IF(K115="",0,AVERAGE($K$10:K115)) -> 0 | M115: =IF(K114="",0,VAR($K$10:K115)) -> 0 | Q115: =IF(P115="",0,AVERAGE(P$10:P115)) -> 0 | R115: =IF(P114="",0,VAR(P$10:P115)) -> 0 | V115: =IF(U115="",0,AVERAGE(U$10:U115)) -> 0 | W115: =IF(U114="",0,VAR(U$10:U115)) -> 0 | AA115: =IF(Z115="",0,AVERAGE(Z$10:Z115)) -> 0 | AB115: =IF(Z114="",0,VAR(Z$10:Z115)) -> 0 | AF115: =IF(AE115="",0,AVERAGE(AE$10:AE115)) -> 0 | AG115: =IF(AE114="",0,VAR(AE$10:AE115)) -> 0 | AK115: =IF(AJ115="",0,AVERAGE(AJ$10:AJ115)) -> 0 | AL115: =IF(AJ114="",0,VAR(AJ$10:AJ115)) -> 0 | AP115: =IF(AO115="",0,AVERAGE(AO$10:AO115)) -> 0 | AQ115: =IF(AO114="",0,VAR(AO$10:AO115)) -> 0 | AU115: =IF(AT115="",0,AVERAGE(AT$10:AT115)) -> 0 | AV115: =IF(AT114="",0,VAR(AT$10:AT115)) -> 0 | AZ115: =IF(AY115="",0,AVERAGE(AY$10:AY115)) -> 0 | BA115: =IF(AY114="",0,VAR(AY$10:AY115)) -> 0
G116: =IF(F116="",0,AVERAGE($F$10:F116)) -> 0 | H116: =IF(F115="",0,VAR($F$10:F116)) -> 0 | L116: =IF(K116="",0,AVERAGE($K$10:K116)) -> 0 | M116: =IF(K115="",0,VAR($K$10:K116)) -> 0 | Q116: =IF(P116="",0,AVERAGE(P$10:P116)) -> 0 | R116: =IF(P115="",0,VAR(P$10:P116)) -> 0 | V116: =IF(U116="",0,AVERAGE(U$10:U116)) -> 0 | W116: =IF(U115="",0,VAR(U$10:U116)) -> 0 | AA116: =IF(Z116="",0,AVERAGE(Z$10:Z116)) -> 0 | AB116: =IF(Z115="",0,VAR(Z$10:Z116)) -> 0 | AF116: =IF(AE116="",0,AVERAGE(AE$10:AE116)) -> 0 | AG116: =IF(AE115="",0,VAR(AE$10:AE116)) -> 0 | AK116: =IF(AJ116="",0,AVERAGE(AJ$10:AJ116)) -> 0 | AL116: =IF(AJ115="",0,VAR(AJ$10:AJ116)) -> 0 | AP116: =IF(AO116="",0,AVERAGE(AO$10:AO116)) -> 0 | AQ116: =IF(AO115="",0,VAR(AO$10:AO116)) -> 0 | AU116: =IF(AT116="",0,AVERAGE(AT$10:AT116)) -> 0 | AV116: =IF(AT115="",0,VAR(AT$10:AT116)) -> 0 | AZ116: =IF(AY116="",0,AVERAGE(AY$10:AY116)) -> 0 | BA116: =IF(AY115="",0,VAR(AY$10:AY116)) -> 0
G117: =IF(F117="",0,AVERAGE($F$10:F117)) -> 0 | H117: =IF(F116="",0,VAR($F$10:F117)) -> 0 | L117: =IF(K117="",0,AVERAGE($K$10:K117)) -> 0 | M117: =IF(K116="",0,VAR($K$10:K117)) -> 0 | Q117: =IF(P117="",0,AVERAGE(P$10:P117)) -> 0 | R117: =IF(P116="",0,VAR(P$10:P117)) -> 0 | V117: =IF(U117="",0,AVERAGE(U$10:U117)) -> 0 | W117: =IF(U116="",0,VAR(U$10:U117)) -> 0 | AA117: =IF(Z117="",0,AVERAGE(Z$10:Z117)) -> 0 | AB117: =IF(Z116="",0,VAR(Z$10:Z117)) -> 0 | AF117: =IF(AE117="",0,AVERAGE(AE$10:AE117)) -> 0 | AG117: =IF(AE116="",0,VAR(AE$10:AE117)) -> 0 | AK117: =IF(AJ117="",0,AVERAGE(AJ$10:AJ117)) -> 0 | AL117: =IF(AJ116="",0,VAR(AJ$10:AJ117)) -> 0 | AP117: =IF(AO117="",0,AVERAGE(AO$10:AO117)) -> 0 | AQ117: =IF(AO116="",0,VAR(AO$10:AO117)) -> 0 | AU117: =IF(AT117="",0,AVERAGE(AT$10:AT117)) -> 0 | AV117: =IF(AT116="",0,VAR(AT$10:AT117)) -> 0 | AZ117: =IF(AY117="",0,AVERAGE(AY$10:AY117)) -> 0 | BA117: =IF(AY116="",0,VAR(AY$10:AY117)) -> 0
F118: =IF(E118="","",+(E118-E117)/E117) ->  | G118: =IF(F118="",0,AVERAGE($F$10:F118)) -> 0 | H118: =IF(F117="",0,VAR($F$10:F118)) -> 0 | L118: =IF(K118="",0,AVERAGE($K$10:K118)) -> 0 | M118: =IF(K117="",0,VAR($K$10:K118)) -> 0 | Q118: =IF(P118="",0,AVERAGE(P$10:P118)) -> 0 | R118: =IF(P117="",0,VAR(P$10:P118)) -> 0 | V118: =IF(U118="",0,AVERAGE(U$10:U118)) -> 0 | W118: =IF(U117="",0,VAR(U$10:U118)) -> 0 | AA118: =IF(Z118="",0,AVERAGE(Z$10:Z118)) -> 0 | AB118: =IF(Z117="",0,VAR(Z$10:Z118)) -> 0 | AF118: =IF(AE118="",0,AVERAGE(AE$10:AE118)) -> 0 | AG118: =IF(AE117="",0,VAR(AE$10:AE118)) -> 0 | AK118: =IF(AJ118="",0,AVERAGE(AJ$10:AJ118)) -> 0 | AL118: =IF(AJ117="",0,VAR(AJ$10:AJ118)) -> 0 | AP118: =IF(AO118="",0,AVERAGE(AO$10:AO118)) -> 0 | AQ118: =IF(AO117="",0,VAR(AO$10:AO118)) -> 0 | AU118: =IF(AT118="",0,AVERAGE(AT$10:AT118)) -> 0 | AV118: =IF(AT117="",0,VAR(AT$10:AT118)) -> 0 | AZ118: =IF(AY118="",0,AVERAGE(AY$10:AY118)) -> 0 | BA118: =IF(AY117="",0,VAR(AY$10:AY118)) -> 0
G119: =IF(F119="",0,AVERAGE($F$10:F119)) -> 0 | H119: =IF(F118="",0,VAR($F$10:F119)) -> 0 | L119: =IF(K119="",0,AVERAGE($K$10:K119)) -> 0 | M119: =IF(K118="",0,VAR($K$10:K119)) -> 0 | Q119: =IF(P119="",0,AVERAGE(P$10:P119)) -> 0 | R119: =IF(P118="",0,VAR(P$10:P119)) -> 0 | V119: =IF(U119="",0,AVERAGE(U$10:U119)) -> 0 | W119: =IF(U118="",0,VAR(U$10:U119)) -> 0 | AA119: =IF(Z119="",0,AVERAGE(Z$10:Z119)) -> 0 | AB119: =IF(Z118="",0,VAR(Z$10:Z119)) -> 0 | AF119: =IF(AE119="",0,AVERAGE(AE$10:AE119)) -> 0 | AG119: =IF(AE118="",0,VAR(AE$10:AE119)) -> 0 | AK119: =IF(AJ119="",0,AVERAGE(AJ$10:AJ119)) -> 0 | AL119: =IF(AJ118="",0,VAR(AJ$10:AJ119)) -> 0 | AP119: =IF(AO119="",0,AVERAGE(AO$10:AO119)) -> 0 | AQ119: =IF(AO118="",0,VAR(AO$10:AO119)) -> 0 | AU119: =IF(AT119="",0,AVERAGE(AT$10:AT119)) -> 0 | AV119: =IF(AT118="",0,VAR(AT$10:AT119)) -> 0 | AZ119: =IF(AY119="",0,AVERAGE(AY$10:AY119)) -> 0 | BA119: =IF(AY118="",0,VAR(AY$10:AY119)) -> 0
G120: =IF(F120="",0,AVERAGE($F$10:F120)) -> 0 | H120: =IF(F119="",0,VAR($F$10:F120)) -> 0 | L120: =IF(K120="",0,AVERAGE($K$10:K120)) -> 0 | M120: =IF(K119="",0,VAR($K$10:K120)) -> 0 | Q120: =IF(P120="",0,AVERAGE(P$10:P120)) -> 0 | R120: =IF(P119="",0,VAR(P$10:P120)) -> 0 | V120: =IF(U120="",0,AVERAGE(U$10:U120)) -> 0 | W120: =IF(U119="",0,VAR(U$10:U120)) -> 0 | AA120: =IF(Z120="",0,AVERAGE(Z$10:Z120)) -> 0 | AB120: =IF(Z119="",0,VAR(Z$10:Z120)) -> 0 | AF120: =IF(AE120="",0,AVERAGE(AE$10:AE120)) -> 0 | AG120: =IF(AE119="",0,VAR(AE$10:AE120)) -> 0 | AK120: =IF(AJ120="",0,AVERAGE(AJ$10:AJ120)) -> 0 | AL120: =IF(AJ119="",0,VAR(AJ$10:AJ120)) -> 0 | AP120: =IF(AO120="",0,AVERAGE(AO$10:AO120)) -> 0 | AQ120: =IF(AO119="",0,VAR(AO$10:AO120)) -> 0 | AU120: =IF(AT120="",0,AVERAGE(AT$10:AT120)) -> 0 | AV120: =IF(AT119="",0,VAR(AT$10:AT120)) -> 0 | AZ120: =IF(AY120="",0,AVERAGE(AY$10:AY120)) -> 0 | BA120: =IF(AY119="",0,VAR(AY$10:AY120)) -> 0
F121: =IF(E121="","",+(E121-E120)/E120) ->  | G121: =IF(F121="",0,AVERAGE($F$10:F121)) -> 0 | H121: =IF(F120="",0,VAR($F$10:F121)) -> 0 | L121: =IF(K121="",0,AVERAGE($K$10:K121)) -> 0 | M121: =IF(K120="",0,VAR($K$10:K121)) -> 0 | Q121: =IF(P121="",0,AVERAGE(P$10:P121)) -> 0 | R121: =IF(P120="",0,VAR(P$10:P121)) -> 0 | V121: =IF(U121="",0,AVERAGE(U$10:U121)) -> 0 | W121: =IF(U120="",0,VAR(U$10:U121)) -> 0 | AA121: =IF(Z121="",0,AVERAGE(Z$10:Z121)) -> 0 | AB121: =IF(Z120="",0,VAR(Z$10:Z121)) -> 0 | AF121: =IF(AE121="",0,AVERAGE(AE$10:AE121)) -> 0 | AG121: =IF(AE120="",0,VAR(AE$10:AE121)) -> 0 | AK121: =IF(AJ121="",0,AVERAGE(AJ$10:AJ121)) -> 0 | AL121: =IF(AJ120="",0,VAR(AJ$10:AJ121)) -> 0 | AP121: =IF(AO121="",0,AVERAGE(AO$10:AO121)) -> 0 | AQ121: =IF(AO120="",0,VAR(AO$10:AO121)) -> 0 | AU121: =IF(AT121="",0,AVERAGE(AT$10:AT121)) -> 0 | AV121: =IF(AT120="",0,VAR(AT$10:AT121)) -> 0 | AZ121: =IF(AY121="",0,AVERAGE(AY$10:AY121)) -> 0 | BA121: =IF(AY120="",0,VAR(AY$10:AY121)) -> 0
G122: =IF(F122="",0,AVERAGE($F$10:F122)) -> 0 | H122: =IF(F121="",0,VAR($F$10:F122)) -> 0 | L122: =IF(K122="",0,AVERAGE($K$10:K122)) -> 0 | M122: =IF(K121="",0,VAR($K$10:K122)) -> 0 | Q122: =IF(P122="",0,AVERAGE(P$10:P122)) -> 0 | R122: =IF(P121="",0,VAR(P$10:P122)) -> 0 | V122: =IF(U122="",0,AVERAGE(U$10:U122)) -> 0 | W122: =IF(U121="",0,VAR(U$10:U122)) -> 0 | AA122: =IF(Z122="",0,AVERAGE(Z$10:Z122)) -> 0 | AB122: =IF(Z121="",0,VAR(Z$10:Z122)) -> 0 | AF122: =IF(AE122="",0,AVERAGE(AE$10:AE122)) -> 0 | AG122: =IF(AE121="",0,VAR(AE$10:AE122)) -> 0 | AK122: =IF(AJ122="",0,AVERAGE(AJ$10:AJ122)) -> 0 | AL122: =IF(AJ121="",0,VAR(AJ$10:AJ122)) -> 0 | AP122: =IF(AO122="",0,AVERAGE(AO$10:AO122)) -> 0 | AQ122: =IF(AO121="",0,VAR(AO$10:AO122)) -> 0 | AU122: =IF(AT122="",0,AVERAGE(AT$10:AT122)) -> 0 | AV122: =IF(AT121="",0,VAR(AT$10:AT122)) -> 0 | AZ122: =IF(AY122="",0,AVERAGE(AY$10:AY122)) -> 0 | BA122: =IF(AY121="",0,VAR(AY$10:AY122)) -> 0
G123: =IF(F123="",0,AVERAGE($F$10:F123)) -> 0 | H123: =IF(F122="",0,VAR($F$10:F123)) -> 0 | L123: =IF(K123="",0,AVERAGE($K$10:K123)) -> 0 | M123: =IF(K122="",0,VAR($K$10:K123)) -> 0 | Q123: =IF(P123="",0,AVERAGE(P$10:P123)) -> 0 | R123: =IF(P122="",0,VAR(P$10:P123)) -> 0 | V123: =IF(U123="",0,AVERAGE(U$10:U123)) -> 0 | W123: =IF(U122="",0,VAR(U$10:U123)) -> 0 | AA123: =IF(Z123="",0,AVERAGE(Z$10:Z123)) -> 0 | AB123: =IF(Z122="",0,VAR(Z$10:Z123)) -> 0 | AF123: =IF(AE123="",0,AVERAGE(AE$10:AE123)) -> 0 | AG123: =IF(AE122="",0,VAR(AE$10:AE123)) -> 0 | AK123: =IF(AJ123="",0,AVERAGE(AJ$10:AJ123)) -> 0 | AL123: =IF(AJ122="",0,VAR(AJ$10:AJ123)) -> 0 | AP123: =IF(AO123="",0,AVERAGE(AO$10:AO123)) -> 0 | AQ123: =IF(AO122="",0,VAR(AO$10:AO123)) -> 0 | AU123: =IF(AT123="",0,AVERAGE(AT$10:AT123)) -> 0 | AV123: =IF(AT122="",0,VAR(AT$10:AT123)) -> 0 | AZ123: =IF(AY123="",0,AVERAGE(AY$10:AY123)) -> 0 | BA123: =IF(AY122="",0,VAR(AY$10:AY123)) -> 0
F124: =IF(E124="","",+(E124-E123)/E123) ->  | G124: =IF(F124="",0,AVERAGE($F$10:F124)) -> 0 | H124: =IF(F123="",0,VAR($F$10:F124)) -> 0 | L124: =IF(K124="",0,AVERAGE($K$10:K124)) -> 0 | M124: =IF(K123="",0,VAR($K$10:K124)) -> 0 | Q124: =IF(P124="",0,AVERAGE(P$10:P124)) -> 0 | R124: =IF(P123="",0,VAR(P$10:P124)) -> 0 | V124: =IF(U124="",0,AVERAGE(U$10:U124)) -> 0 | W124: =IF(U123="",0,VAR(U$10:U124)) -> 0 | AA124: =IF(Z124="",0,AVERAGE(Z$10:Z124)) -> 0 | AB124: =IF(Z123="",0,VAR(Z$10:Z124)) -> 0 | AF124: =IF(AE124="",0,AVERAGE(AE$10:AE124)) -> 0 | AG124: =IF(AE123="",0,VAR(AE$10:AE124)) -> 0 | AK124: =IF(AJ124="",0,AVERAGE(AJ$10:AJ124)) -> 0 | AL124: =IF(AJ123="",0,VAR(AJ$10:AJ124)) -> 0 | AP124: =IF(AO124="",0,AVERAGE(AO$10:AO124)) -> 0 | AQ124: =IF(AO123="",0,VAR(AO$10:AO124)) -> 0 | AU124: =IF(AT124="",0,AVERAGE(AT$10:AT124)) -> 0 | AV124: =IF(AT123="",0,VAR(AT$10:AT124)) -> 0 | AZ124: =IF(AY124="",0,AVERAGE(AY$10:AY124)) -> 0 | BA124: =IF(AY123="",0,VAR(AY$10:AY124)) -> 0
G125: =IF(F125="",0,AVERAGE($F$10:F125)) -> 0 | H125: =IF(F124="",0,VAR($F$10:F125)) -> 0 | L125: =IF(K125="",0,AVERAGE($K$10:K125)) -> 0 | M125: =IF(K124="",0,VAR($K$10:K125)) -> 0 | Q125: =IF(P125="",0,AVERAGE(P$10:P125)) -> 0 | R125: =IF(P124="",0,VAR(P$10:P125)) -> 0 | V125: =IF(U125="",0,AVERAGE(U$10:U125)) -> 0 | W125: =IF(U124="",0,VAR(U$10:U125)) -> 0 | AA125: =IF(Z125="",0,AVERAGE(Z$10:Z125)) -> 0 | AB125: =IF(Z124="",0,VAR(Z$10:Z125)) -> 0 | AF125: =IF(AE125="",0,AVERAGE(AE$10:AE125)) -> 0 | AG125: =IF(AE124="",0,VAR(AE$10:AE125)) -> 0 | AK125: =IF(AJ125="",0,AVERAGE(AJ$10:AJ125)) -> 0 | AL125: =IF(AJ124="",0,VAR(AJ$10:AJ125)) -> 0 | AP125: =IF(AO125="",0,AVERAGE(AO$10:AO125)) -> 0 | AQ125: =IF(AO124="",0,VAR(AO$10:AO125)) -> 0 | AU125: =IF(AT125="",0,AVERAGE(AT$10:AT125)) -> 0 | AV125: =IF(AT124="",0,VAR(AT$10:AT125)) -> 0 | AZ125: =IF(AY125="",0,AVERAGE(AY$10:AY125)) -> 0 | BA125: =IF(AY124="",0,VAR(AY$10:AY125)) -> 0
G126: =IF(F126="",0,AVERAGE($F$10:F126)) -> 0 | H126: =IF(F125="",0,VAR($F$10:F126)) -> 0 | L126: =IF(K126="",0,AVERAGE($K$10:K126)) -> 0 | M126: =IF(K125="",0,VAR($K$10:K126)) -> 0 | Q126: =IF(P126="",0,AVERAGE(P$10:P126)) -> 0 | R126: =IF(P125="",0,VAR(P$10:P126)) -> 0 | V126: =IF(U126="",0,AVERAGE(U$10:U126)) -> 0 | W126: =IF(U125="",0,VAR(U$10:U126)) -> 0 | AA126: =IF(Z126="",0,AVERAGE(Z$10:Z126)) -> 0 | AB126: =IF(Z125="",0,VAR(Z$10:Z126)) -> 0 | AF126: =IF(AE126="",0,AVERAGE(AE$10:AE126)) -> 0 | AG126: =IF(AE125="",0,VAR(AE$10:AE126)) -> 0 | AK126: =IF(AJ126="",0,AVERAGE(AJ$10:AJ126)) -> 0 | AL126: =IF(AJ125="",0,VAR(AJ$10:AJ126)) -> 0 | AP126: =IF(AO126="",0,AVERAGE(AO$10:AO126)) -> 0 | AQ126: =IF(AO125="",0,VAR(AO$10:AO126)) -> 0 | AU126: =IF(AT126="",0,AVERAGE(AT$10:AT126)) -> 0 | AV126: =IF(AT125="",0,VAR(AT$10:AT126)) -> 0 | AZ126: =IF(AY126="",0,AVERAGE(AY$10:AY126)) -> 0 | BA126: =IF(AY125="",0,VAR(AY$10:AY126)) -> 0
F127: =IF(E127="","",+(E127-E126)/E126) ->  | G127: =IF(F127="",0,AVERAGE($F$10:F127)) -> 0 | H127: =IF(F126="",0,VAR($F$10:F127)) -> 0 | L127: =IF(K127="",0,AVERAGE($K$10:K127)) -> 0 | M127: =IF(K126="",0,VAR($K$10:K127)) -> 0 | Q127: =IF(P127="",0,AVERAGE(P$10:P127)) -> 0 | R127: =IF(P126="",0,VAR(P$10:P127)) -> 0 | V127: =IF(U127="",0,AVERAGE(U$10:U127)) -> 0 | W127: =IF(U126="",0,VAR(U$10:U127)) -> 0 | AA127: =IF(Z127="",0,AVERAGE(Z$10:Z127)) -> 0 | AB127: =IF(Z126="",0,VAR(Z$10:Z127)) -> 0 | AF127: =IF(AE127="",0,AVERAGE(AE$10:AE127)) -> 0 | AG127: =IF(AE126="",0,VAR(AE$10:AE127)) -> 0 | AK127: =IF(AJ127="",0,AVERAGE(AJ$10:AJ127)) -> 0 | AL127: =IF(AJ126="",0,VAR(AJ$10:AJ127)) -> 0 | AP127: =IF(AO127="",0,AVERAGE(AO$10:AO127)) -> 0 | AQ127: =IF(AO126="",0,VAR(AO$10:AO127)) -> 0 | AU127: =IF(AT127="",0,AVERAGE(AT$10:AT127)) -> 0 | AV127: =IF(AT126="",0,VAR(AT$10:AT127)) -> 0 | AZ127: =IF(AY127="",0,AVERAGE(AY$10:AY127)) -> 0 | BA127: =IF(AY126="",0,VAR(AY$10:AY127)) -> 0
G128: =IF(F128="",0,AVERAGE($F$10:F128)) -> 0 | H128: =IF(F127="",0,VAR($F$10:F128)) -> 0 | L128: =IF(K128="",0,AVERAGE($K$10:K128)) -> 0 | M128: =IF(K127="",0,VAR($K$10:K128)) -> 0 | Q128: =IF(P128="",0,AVERAGE(P$10:P128)) -> 0 | R128: =IF(P127="",0,VAR(P$10:P128)) -> 0 | V128: =IF(U128="",0,AVERAGE(U$10:U128)) -> 0 | W128: =IF(U127="",0,VAR(U$10:U128)) -> 0 | AA128: =IF(Z128="",0,AVERAGE(Z$10:Z128)) -> 0 | AB128: =IF(Z127="",0,VAR(Z$10:Z128)) -> 0 | AF128: =IF(AE128="",0,AVERAGE(AE$10:AE128)) -> 0 | AG128: =IF(AE127="",0,VAR(AE$10:AE128)) -> 0 | AK128: =IF(AJ128="",0,AVERAGE(AJ$10:AJ128)) -> 0 | AL128: =IF(AJ127="",0,VAR(AJ$10:AJ128)) -> 0 | AP128: =IF(AO128="",0,AVERAGE(AO$10:AO128)) -> 0 | AQ128: =IF(AO127="",0,VAR(AO$10:AO128)) -> 0 | AU128: =IF(AT128="",0,AVERAGE(AT$10:AT128)) -> 0 | AV128: =IF(AT127="",0,VAR(AT$10:AT128)) -> 0 | AZ128: =IF(AY128="",0,AVERAGE(AY$10:AY128)) -> 0 | BA128: =IF(AY127="",0,VAR(AY$10:AY128)) -> 0
G129: =IF(F129="",0,AVERAGE($F$10:F129)) -> 0 | H129: =IF(F128="",0,VAR($F$10:F129)) -> 0 | L129: =IF(K129="",0,AVERAGE($K$10:K129)) -> 0 | M129: =IF(K128="",0,VAR($K$10:K129)) -> 0 | Q129: =IF(P129="",0,AVERAGE(P$10:P129)) -> 0 | R129: =IF(P128="",0,VAR(P$10:P129)) -> 0 | V129: =IF(U129="",0,AVERAGE(U$10:U129)) -> 0 | W129: =IF(U128="",0,VAR(U$10:U129)) -> 0 | AA129: =IF(Z129="",0,AVERAGE(Z$10:Z129)) -> 0 | AB129: =IF(Z128="",0,VAR(Z$10:Z129)) -> 0 | AF129: =IF(AE129="",0,AVERAGE(AE$10:AE129)) -> 0 | AG129: =IF(AE128="",0,VAR(AE$10:AE129)) -> 0 | AK129: =IF(AJ129="",0,AVERAGE(AJ$10:AJ129)) -> 0 | AL129: =IF(AJ128="",0,VAR(AJ$10:AJ129)) -> 0 | AP129: =IF(AO129="",0,AVERAGE(AO$10:AO129)) -> 0 | AQ129: =IF(AO128="",0,VAR(AO$10:AO129)) -> 0 | AU129: =IF(AT129="",0,AVERAGE(AT$10:AT129)) -> 0 | AV129: =IF(AT128="",0,VAR(AT$10:AT129)) -> 0 | AZ129: =IF(AY129="",0,AVERAGE(AY$10:AY129)) -> 0 | BA129: =IF(AY128="",0,VAR(AY$10:AY129)) -> 0
F130: =IF(E130="","",+(E130-E129)/E129) ->  | G130: =IF(F130="",0,AVERAGE($F$10:F130)) -> 0 | H130: =IF(F129="",0,VAR($F$10:F130)) -> 0 | L130: =IF(K130="",0,AVERAGE($K$10:K130)) -> 0 | M130: =IF(K129="",0,VAR($K$10:K130)) -> 0 | Q130: =IF(P130="",0,AVERAGE(P$10:P130)) -> 0 | R130: =IF(P129="",0,VAR(P$10:P130)) -> 0 | V130: =IF(U130="",0,AVERAGE(U$10:U130)) -> 0 | W130: =IF(U129="",0,VAR(U$10:U130)) -> 0 | AA130: =IF(Z130="",0,AVERAGE(Z$10:Z130)) -> 0 | AB130: =IF(Z129="",0,VAR(Z$10:Z130)) -> 0 | AF130: =IF(AE130="",0,AVERAGE(AE$10:AE130)) -> 0 | AG130: =IF(AE129="",0,VAR(AE$10:AE130)) -> 0 | AK130: =IF(AJ130="",0,AVERAGE(AJ$10:AJ130)) -> 0 | AL130: =IF(AJ129="",0,VAR(AJ$10:AJ130)) -> 0 | AP130: =IF(AO130="",0,AVERAGE(AO$10:AO130)) -> 0 | AQ130: =IF(AO129="",0,VAR(AO$10:AO130)) -> 0 | AU130: =IF(AT130="",0,AVERAGE(AT$10:AT130)) -> 0 | AV130: =IF(AT129="",0,VAR(AT$10:AT130)) -> 0 | AZ130: =IF(AY130="",0,AVERAGE(AY$10:AY130)) -> 0 | BA130: =IF(AY129="",0,VAR(AY$10:AY130)) -> 0
G131: =IF(F131="",0,AVERAGE($F$10:F131)) -> 0 | H131: =IF(F130="",0,VAR($F$10:F131)) -> 0 | L131: =IF(K131="",0,AVERAGE($K$10:K131)) -> 0 | M131: =IF(K130="",0,VAR($K$10:K131)) -> 0 | Q131: =IF(P131="",0,AVERAGE(P$10:P131)) -> 0 | R131: =IF(P130="",0,VAR(P$10:P131)) -> 0 | V131: =IF(U131="",0,AVERAGE(U$10:U131)) -> 0 | W131: =IF(U130="",0,VAR(U$10:U131)) -> 0 | AA131: =IF(Z131="",0,AVERAGE(Z$10:Z131)) -> 0 | AB131: =IF(Z130="",0,VAR(Z$10:Z131)) -> 0 | AF131: =IF(AE131="",0,AVERAGE(AE$10:AE131)) -> 0 | AG131: =IF(AE130="",0,VAR(AE$10:AE131)) -> 0 | AK131: =IF(AJ131="",0,AVERAGE(AJ$10:AJ131)) -> 0 | AL131: =IF(AJ130="",0,VAR(AJ$10:AJ131)) -> 0 | AP131: =IF(AO131="",0,AVERAGE(AO$10:AO131)) -> 0 | AQ131: =IF(AO130="",0,VAR(AO$10:AO131)) -> 0 | AU131: =IF(AT131="",0,AVERAGE(AT$10:AT131)) -> 0 | AV131: =IF(AT130="",0,VAR(AT$10:AT131)) -> 0 | AZ131: =IF(AY131="",0,AVERAGE(AY$10:AY131)) -> 0 | BA131: =IF(AY130="",0,VAR(AY$10:AY131)) -> 0
G132: =IF(F132="",0,AVERAGE($F$10:F132)) -> 0 | H132: =IF(F131="",0,VAR($F$10:F132)) -> 0 | L132: =IF(K132="",0,AVERAGE($K$10:K132)) -> 0 | M132: =IF(K131="",0,VAR($K$10:K132)) -> 0 | Q132: =IF(P132="",0,AVERAGE(P$10:P132)) -> 0 | R132: =IF(P131="",0,VAR(P$10:P132)) -> 0 | V132: =IF(U132="",0,AVERAGE(U$10:U132)) -> 0 | W132: =IF(U131="",0,VAR(U$10:U132)) -> 0 | AA132: =IF(Z132="",0,AVERAGE(Z$10:Z132)) -> 0 | AB132: =IF(Z131="",0,VAR(Z$10:Z132)) -> 0 | AF132: =IF(AE132="",0,AVERAGE(AE$10:AE132)) -> 0 | AG132: =IF(AE131="",0,VAR(AE$10:AE132)) -> 0 | AK132: =IF(AJ132="",0,AVERAGE(AJ$10:AJ132)) -> 0 | AL132: =IF(AJ131="",0,VAR(AJ$10:AJ132)) -> 0 | AP132: =IF(AO132="",0,AVERAGE(AO$10:AO132)) -> 0 | AQ132: =IF(AO131="",0,VAR(AO$10:AO132)) -> 0 | AU132: =IF(AT132="",0,AVERAGE(AT$10:AT132)) -> 0 | AV132: =IF(AT131="",0,VAR(AT$10:AT132)) -> 0 | AZ132: =IF(AY132="",0,AVERAGE(AY$10:AY132)) -> 0 | BA132: =IF(AY131="",0,VAR(AY$10:AY132)) -> 0
F133: =IF(E133="","",+(E133-E132)/E132) ->  | G133: =IF(F133="",0,AVERAGE($F$10:F133)) -> 0 | H133: =IF(F132="",0,VAR($F$10:F133)) -> 0 | L133: =IF(K133="",0,AVERAGE($K$10:K133)) -> 0 | M133: =IF(K132="",0,VAR($K$10:K133)) -> 0 | Q133: =IF(P133="",0,AVERAGE(P$10:P133)) -> 0 | R133: =IF(P132="",0,VAR(P$10:P133)) -> 0 | V133: =IF(U133="",0,AVERAGE(U$10:U133)) -> 0 | W133: =IF(U132="",0,VAR(U$10:U133)) -> 0 | AA133: =IF(Z133="",0,AVERAGE(Z$10:Z133)) -> 0 | AB133: =IF(Z132="",0,VAR(Z$10:Z133)) -> 0 | AF133: =IF(AE133="",0,AVERAGE(AE$10:AE133)) -> 0 | AG133: =IF(AE132="",0,VAR(AE$10:AE133)) -> 0 | AK133: =IF(AJ133="",0,AVERAGE(AJ$10:AJ133)) -> 0 | AL133: =IF(AJ132="",0,VAR(AJ$10:AJ133)) -> 0 | AP133: =IF(AO133="",0,AVERAGE(AO$10:AO133)) -> 0 | AQ133: =IF(AO132="",0,VAR(AO$10:AO133)) -> 0 | AU133: =IF(AT133="",0,AVERAGE(AT$10:AT133)) -> 0 | AV133: =IF(AT132="",0,VAR(AT$10:AT133)) -> 0 | AZ133: =IF(AY133="",0,AVERAGE(AY$10:AY133)) -> 0 | BA133: =IF(AY132="",0,VAR(AY$10:AY133)) -> 0
G134: =IF(F134="",0,AVERAGE($F$10:F134)) -> 0 | H134: =IF(F133="",0,VAR($F$10:F134)) -> 0 | L134: =IF(K134="",0,AVERAGE($K$10:K134)) -> 0 | M134: =IF(K133="",0,VAR($K$10:K134)) -> 0 | Q134: =IF(P134="",0,AVERAGE(P$10:P134)) -> 0 | R134: =IF(P133="",0,VAR(P$10:P134)) -> 0 | V134: =IF(U134="",0,AVERAGE(U$10:U134)) -> 0 | W134: =IF(U133="",0,VAR(U$10:U134)) -> 0 | AA134: =IF(Z134="",0,AVERAGE(Z$10:Z134)) -> 0 | AB134: =IF(Z133="",0,VAR(Z$10:Z134)) -> 0 | AF134: =IF(AE134="",0,AVERAGE(AE$10:AE134)) -> 0 | AG134: =IF(AE133="",0,VAR(AE$10:AE134)) -> 0 | AK134: =IF(AJ134="",0,AVERAGE(AJ$10:AJ134)) -> 0 | AL134: =IF(AJ133="",0,VAR(AJ$10:AJ134)) -> 0 | AP134: =IF(AO134="",0,AVERAGE(AO$10:AO134)) -> 0 | AQ134: =IF(AO133="",0,VAR(AO$10:AO134)) -> 0 | AU134: =IF(AT134="",0,AVERAGE(AT$10:AT134)) -> 0 | AV134: =IF(AT133="",0,VAR(AT$10:AT134)) -> 0 | AZ134: =IF(AY134="",0,AVERAGE(AY$10:AY134)) -> 0 | BA134: =IF(AY133="",0,VAR(AY$10:AY134)) -> 0
G135: =IF(F135="",0,AVERAGE($F$10:F135)) -> 0 | H135: =IF(F134="",0,VAR($F$10:F135)) -> 0 | L135: =IF(K135="",0,AVERAGE($K$10:K135)) -> 0 | M135: =IF(K134="",0,VAR($K$10:K135)) -> 0 | Q135: =IF(P135="",0,AVERAGE(P$10:P135)) -> 0 | R135: =IF(P134="",0,VAR(P$10:P135)) -> 0 | V135: =IF(U135="",0,AVERAGE(U$10:U135)) -> 0 | W135: =IF(U134="",0,VAR(U$10:U135)) -> 0 | AA135: =IF(Z135="",0,AVERAGE(Z$10:Z135)) -> 0 | AB135: =IF(Z134="",0,VAR(Z$10:Z135)) -> 0 | AF135: =IF(AE135="",0,AVERAGE(AE$10:AE135)) -> 0 | AG135: =IF(AE134="",0,VAR(AE$10:AE135)) -> 0 | AK135: =IF(AJ135="",0,AVERAGE(AJ$10:AJ135)) -> 0 | AL135: =IF(AJ134="",0,VAR(AJ$10:AJ135)) -> 0 | AP135: =IF(AO135="",0,AVERAGE(AO$10:AO135)) -> 0 | AQ135: =IF(AO134="",0,VAR(AO$10:AO135)) -> 0 | AU135: =IF(AT135="",0,AVERAGE(AT$10:AT135)) -> 0 | AV135: =IF(AT134="",0,VAR(AT$10:AT135)) -> 0 | AZ135: =IF(AY135="",0,AVERAGE(AY$10:AY135)) -> 0 | BA135: =IF(AY134="",0,VAR(AY$10:AY135)) -> 0
F136: =IF(E136="","",+(E136-E135)/E135) ->  | G136: =IF(F136="",0,AVERAGE($F$10:F136)) -> 0 | H136: =IF(F135="",0,VAR($F$10:F136)) -> 0 | L136: =IF(K136="",0,AVERAGE($K$10:K136)) -> 0 | M136: =IF(K135="",0,VAR($K$10:K136)) -> 0 | Q136: =IF(P136="",0,AVERAGE(P$10:P136)) -> 0 | R136: =IF(P135="",0,VAR(P$10:P136)) -> 0 | V136: =IF(U136="",0,AVERAGE(U$10:U136)) -> 0 | W136: =IF(U135="",0,VAR(U$10:U136)) -> 0 | AA136: =IF(Z136="",0,AVERAGE(Z$10:Z136)) -> 0 | AB136: =IF(Z135="",0,VAR(Z$10:Z136)) -> 0 | AF136: =IF(AE136="",0,AVERAGE(AE$10:AE136)) -> 0 | AG136: =IF(AE135="",0,VAR(AE$10:AE136)) -> 0 | AK136: =IF(AJ136="",0,AVERAGE(AJ$10:AJ136)) -> 0 | AL136: =IF(AJ135="",0,VAR(AJ$10:AJ136)) -> 0 | AP136: =IF(AO136="",0,AVERAGE(AO$10:AO136)) -> 0 | AQ136: =IF(AO135="",0,VAR(AO$10:AO136)) -> 0 | AU136: =IF(AT136="",0,AVERAGE(AT$10:AT136)) -> 0 | AV136: =IF(AT135="",0,VAR(AT$10:AT136)) -> 0 | AZ136: =IF(AY136="",0,AVERAGE(AY$10:AY136)) -> 0 | BA136: =IF(AY135="",0,VAR(AY$10:AY136)) -> 0
G137: =IF(F137="",0,AVERAGE($F$10:F137)) -> 0 | H137: =IF(F136="",0,VAR($F$10:F137)) -> 0 | L137: =IF(K137="",0,AVERAGE($K$10:K137)) -> 0 | M137: =IF(K136="",0,VAR($K$10:K137)) -> 0 | Q137: =IF(P137="",0,AVERAGE(P$10:P137)) -> 0 | R137: =IF(P136="",0,VAR(P$10:P137)) -> 0 | V137: =IF(U137="",0,AVERAGE(U$10:U137)) -> 0 | W137: =IF(U136="",0,VAR(U$10:U137)) -> 0 | AA137: =IF(Z137="",0,AVERAGE(Z$10:Z137)) -> 0 | AB137: =IF(Z136="",0,VAR(Z$10:Z137)) -> 0 | AF137: =IF(AE137="",0,AVERAGE(AE$10:AE137)) -> 0 | AG137: =IF(AE136="",0,VAR(AE$10:AE137)) -> 0 | AK137: =IF(AJ137="",0,AVERAGE(AJ$10:AJ137)) -> 0 | AL137: =IF(AJ136="",0,VAR(AJ$10:AJ137)) -> 0 | AP137: =IF(AO137="",0,AVERAGE(AO$10:AO137)) -> 0 | AQ137: =IF(AO136="",0,VAR(AO$10:AO137)) -> 0 | AU137: =IF(AT137="",0,AVERAGE(AT$10:AT137)) -> 0 | AV137: =IF(AT136="",0,VAR(AT$10:AT137)) -> 0 | AZ137: =IF(AY137="",0,AVERAGE(AY$10:AY137)) -> 0 | BA137: =IF(AY136="",0,VAR(AY$10:AY137)) -> 0
G138: =IF(F138="",0,AVERAGE($F$10:F138)) -> 0 | H138: =IF(F137="",0,VAR($F$10:F138)) -> 0 | L138: =IF(K138="",0,AVERAGE($K$10:K138)) -> 0 | M138: =IF(K137="",0,VAR($K$10:K138)) -> 0 | Q138: =IF(P138="",0,AVERAGE(P$10:P138)) -> 0 | R138: =IF(P137="",0,VAR(P$10:P138)) -> 0 | V138: =IF(U138="",0,AVERAGE(U$10:U138)) -> 0 | W138: =IF(U137="",0,VAR(U$10:U138)) -> 0 | AA138: =IF(Z138="",0,AVERAGE(Z$10:Z138)) -> 0 | AB138: =IF(Z137="",0,VAR(Z$10:Z138)) -> 0 | AF138: =IF(AE138="",0,AVERAGE(AE$10:AE138)) -> 0 | AG138: =IF(AE137="",0,VAR(AE$10:AE138)) -> 0 | AK138: =IF(AJ138="",0,AVERAGE(AJ$10:AJ138)) -> 0 | AL138: =IF(AJ137="",0,VAR(AJ$10:AJ138)) -> 0 | AP138: =IF(AO138="",0,AVERAGE(AO$10:AO138)) -> 0 | AQ138: =IF(AO137="",0,VAR(AO$10:AO138)) -> 0 | AU138: =IF(AT138="",0,AVERAGE(AT$10:AT138)) -> 0 | AV138: =IF(AT137="",0,VAR(AT$10:AT138)) -> 0 | AZ138: =IF(AY138="",0,AVERAGE(AY$10:AY138)) -> 0 | BA138: =IF(AY137="",0,VAR(AY$10:AY138)) -> 0
F139: =IF(E139="","",+(E139-E138)/E138) ->  | G139: =IF(F139="",0,AVERAGE($F$10:F139)) -> 0 | H139: =IF(F138="",0,VAR($F$10:F139)) -> 0 | L139: =IF(K139="",0,AVERAGE($K$10:K139)) -> 0 | M139: =IF(K138="",0,VAR($K$10:K139)) -> 0 | Q139: =IF(P139="",0,AVERAGE(P$10:P139)) -> 0 | R139: =IF(P138="",0,VAR(P$10:P139)) -> 0 | V139: =IF(U139="",0,AVERAGE(U$10:U139)) -> 0 | W139: =IF(U138="",0,VAR(U$10:U139)) -> 0 | AA139: =IF(Z139="",0,AVERAGE(Z$10:Z139)) -> 0 | AB139: =IF(Z138="",0,VAR(Z$10:Z139)) -> 0 | AF139: =IF(AE139="",0,AVERAGE(AE$10:AE139)) -> 0 | AG139: =IF(AE138="",0,VAR(AE$10:AE139)) -> 0 | AK139: =IF(AJ139="",0,AVERAGE(AJ$10:AJ139)) -> 0 | AL139: =IF(AJ138="",0,VAR(AJ$10:AJ139)) -> 0 | AP139: =IF(AO139="",0,AVERAGE(AO$10:AO139)) -> 0 | AQ139: =IF(AO138="",0,VAR(AO$10:AO139)) -> 0 | AU139: =IF(AT139="",0,AVERAGE(AT$10:AT139)) -> 0 | AV139: =IF(AT138="",0,VAR(AT$10:AT139)) -> 0 | AZ139: =IF(AY139="",0,AVERAGE(AY$10:AY139)) -> 0 | BA139: =IF(AY138="",0,VAR(AY$10:AY139)) -> 0
G140: =IF(F140="",0,AVERAGE($F$10:F140)) -> 0 | H140: =IF(F139="",0,VAR($F$10:F140)) -> 0 | K140: =IF(J140="","",+(J140-J139)/J139) ->  | L140: =IF(K140="",0,AVERAGE($K$10:K140)) -> 0 | M140: =IF(K139="",0,VAR($K$10:K140)) -> 0 | P140: =IF(O140="","",+(O140-O139)/O139) ->  | Q140: =IF(P140="",0,AVERAGE(P$10:P140)) -> 0 | R140: =IF(P139="",0,VAR(P$10:P140)) -> 0 | V140: =IF(U140="",0,AVERAGE(U$10:U140)) -> 0 | W140: =IF(U139="",0,VAR(U$10:U140)) -> 0 | Z140: =IF(Y140="","",+(Y140-Y139)/Y139) ->  | AA140: =IF(Z140="",0,AVERAGE(Z$10:Z140)) -> 0 | AB140: =IF(Z139="",0,VAR(Z$10:Z140)) -> 0 | AF140: =IF(AE140="",0,AVERAGE(AE$10:AE140)) -> 0 | AG140: =IF(AE139="",0,VAR(AE$10:AE140)) -> 0 | AK140: =IF(AJ140="",0,AVERAGE(AJ$10:AJ140)) -> 0 | AL140: =IF(AJ139="",0,VAR(AJ$10:AJ140)) -> 0 | AP140: =IF(AO140="",0,AVERAGE(AO$10:AO140)) -> 0 | AQ140: =IF(AO139="",0,VAR(AO$10:AO140)) -> 0 | AU140: =IF(AT140="",0,AVERAGE(AT$10:AT140)) -> 0 | AV140: =IF(AT139="",0,VAR(AT$10:AT140)) -> 0 | AZ140: =IF(AY140="",0,AVERAGE(AY$10:AY140)) -> 0 | BA140: =IF(AY139="",0,VAR(AY$10:AY140)) -> 0
G141: =IF(F141="",0,AVERAGE($F$10:F141)) -> 0 | H141: =IF(F140="",0,VAR($F$10:F141)) -> 0 | L141: =IF(K141="",0,AVERAGE($K$10:K141)) -> 0 | M141: =IF(K140="",0,VAR($K$10:K141)) -> 0 | Q141: =IF(P141="",0,AVERAGE(P$10:P141)) -> 0 | R141: =IF(P140="",0,VAR(P$10:P141)) -> 0 | V141: =IF(U141="",0,AVERAGE(U$10:U141)) -> 0 | W141: =IF(U140="",0,VAR(U$10:U141)) -> 0 | AA141: =IF(Z141="",0,AVERAGE(Z$10:Z141)) -> 0 | AB141: =IF(Z140="",0,VAR(Z$10:Z141)) -> 0 | AF141: =IF(AE141="",0,AVERAGE(AE$10:AE141)) -> 0 | AG141: =IF(AE140="",0,VAR(AE$10:AE141)) -> 0 | AJ141: =IF(AI141="","",+(AI141-AI140)/AI140) ->  | AK141: =IF(AJ141="",0,AVERAGE(AJ$10:AJ141)) -> 0 | AL141: =IF(AJ140="",0,VAR(AJ$10:AJ141)) -> 0 | AO141: =IF(AN141="","",+(AN141-AN140)/AN140) ->  | AP141: =IF(AO141="",0,AVERAGE(AO$10:AO141)) -> 0 | AQ141: =IF(AO140="",0,VAR(AO$10:AO141)) -> 0 | AT141: =IF(AS141="","",+(AS141-AS140)/AS140) ->  | AU141: =IF(AT141="",0,AVERAGE(AT$10:AT141)) -> 0 | AV141: =IF(AT140="",0,VAR(AT$10:AT141)) -> 0 | AY141: =IF(AX141="","",+(AX141-AX140)/AX140) ->  | AZ141: =IF(AY141="",0,AVERAGE(AY$10:AY141)) -> 0 | BA141: =IF(AY140="",0,VAR(AY$10:AY141)) -> 0
F142: =IF(E142="","",+(E142-E141)/E141) ->  | G142: =IF(F142="",0,AVERAGE($F$10:F142)) -> 0 | H142: =IF(F141="",0,VAR($F$10:F142)) -> 0 | L142: =IF(K142="",0,AVERAGE($K$10:K142)) -> 0 | M142: =IF(K141="",0,VAR($K$10:K142)) -> 0 | Q142: =IF(P142="",0,AVERAGE(P$10:P142)) -> 0 | R142: =IF(P141="",0,VAR(P$10:P142)) -> 0 | U142: =IF(T142="","",+(T142-T141)/T141) ->  | V142: =IF(U142="",0,AVERAGE(U$10:U142)) -> 0 | W142: =IF(U141="",0,VAR(U$10:U142)) -> 0 | AA142: =IF(Z142="",0,AVERAGE(Z$10:Z142)) -> 0 | AB142: =IF(Z141="",0,VAR(Z$10:Z142)) -> 0 | AE142: =IF(AD142="","",+(AD142-AD141)/AD141) ->  | AF142: =IF(AE142="",0,AVERAGE(AE$10:AE142)) -> 0 | AG142: =IF(AE141="",0,VAR(AE$10:AE142)) -> 0 | AK142: =IF(AJ142="",0,AVERAGE(AJ$10:AJ142)) -> 0 | AL142: =IF(AJ141="",0,VAR(AJ$10:AJ142)) -> 0 | AP142: =IF(AO142="",0,AVERAGE(AO$10:AO142)) -> 0 | AQ142: =IF(AO141="",0,VAR(AO$10:AO142)) -> 0 | AU142: =IF(AT142="",0,AVERAGE(AT$10:AT142)) -> 0 | AV142: =IF(AT141="",0,VAR(AT$10:AT142)) -> 0 | AZ142: =IF(AY142="",0,AVERAGE(AY$10:AY142)) -> 0 | BA142: =IF(AY141="",0,VAR(AY$10:AY142)) -> 0
G143: =IF(F143="",0,AVERAGE($F$10:F143)) -> 0 | H143: =IF(F142="",0,VAR($F$10:F143)) -> 0 | L143: =IF(K143="",0,AVERAGE($K$10:K143)) -> 0 | M143: =IF(K142="",0,VAR($K$10:K143)) -> 0 | Q143: =IF(P143="",0,AVERAGE(P$10:P143)) -> 0 | R143: =IF(P142="",0,VAR(P$10:P143)) -> 0 | V143: =IF(U143="",0,AVERAGE(U$10:U143)) -> 0 | W143: =IF(U142="",0,VAR(U$10:U143)) -> 0 | AA143: =IF(Z143="",0,AVERAGE(Z$10:Z143)) -> 0 | AB143: =IF(Z142="",0,VAR(Z$10:Z143)) -> 0 | AF143: =IF(AE143="",0,AVERAGE(AE$10:AE143)) -> 0 | AG143: =IF(AE142="",0,VAR(AE$10:AE143)) -> 0 | AK143: =IF(AJ143="",0,AVERAGE(AJ$10:AJ143)) -> 0 | AL143: =IF(AJ142="",0,VAR(AJ$10:AJ143)) -> 0 | AP143: =IF(AO143="",0,AVERAGE(AO$10:AO143)) -> 0 | AQ143: =IF(AO142="",0,VAR(AO$10:AO143)) -> 0 | AU143: =IF(AT143="",0,AVERAGE(AT$10:AT143)) -> 0 | AV143: =IF(AT142="",0,VAR(AT$10:AT143)) -> 0 | AZ143: =IF(AY143="",0,AVERAGE(AY$10:AY143)) -> 0 | BA143: =IF(AY142="",0,VAR(AY$10:AY143)) -> 0
G144: =IF(F144="",0,AVERAGE($F$10:F144)) -> 0 | H144: =IF(F143="",0,VAR($F$10:F144)) -> 0 | L144: =IF(K144="",0,AVERAGE($K$10:K144)) -> 0 | M144: =IF(K143="",0,VAR($K$10:K144)) -> 0 | Q144: =IF(P144="",0,AVERAGE(P$10:P144)) -> 0 | R144: =IF(P143="",0,VAR(P$10:P144)) -> 0 | V144: =IF(U144="",0,AVERAGE(U$10:U144)) -> 0 | W144: =IF(U143="",0,VAR(U$10:U144)) -> 0 | AA144: =IF(Z144="",0,AVERAGE(Z$10:Z144)) -> 0 | AB144: =IF(Z143="",0,VAR(Z$10:Z144)) -> 0 | AF144: =IF(AE144="",0,AVERAGE(AE$10:AE144)) -> 0 | AG144: =IF(AE143="",0,VAR(AE$10:AE144)) -> 0 | AK144: =IF(AJ144="",0,AVERAGE(AJ$10:AJ144)) -> 0 | AL144: =IF(AJ143="",0,VAR(AJ$10:AJ144)) -> 0 | AP144: =IF(AO144="",0,AVERAGE(AO$10:AO144)) -> 0 | AQ144: =IF(AO143="",0,VAR(AO$10:AO144)) -> 0 | AU144: =IF(AT144="",0,AVERAGE(AT$10:AT144)) -> 0 | AV144: =IF(AT143="",0,VAR(AT$10:AT144)) -> 0 | AZ144: =IF(AY144="",0,AVERAGE(AY$10:AY144)) -> 0 | BA144: =IF(AY143="",0,VAR(AY$10:AY144)) -> 0
F145: =IF(E145="","",+(E145-E144)/E144) ->  | G145: =IF(F145="",0,AVERAGE($F$10:F145)) -> 0 | H145: =IF(F144="",0,VAR($F$10:F145)) -> 0 | L145: =IF(K145="",0,AVERAGE($K$10:K145)) -> 0 | M145: =IF(K144="",0,VAR($K$10:K145)) -> 0 | Q145: =IF(P145="",0,AVERAGE(P$10:P145)) -> 0 | R145: =IF(P144="",0,VAR(P$10:P145)) -> 0 | V145: =IF(U145="",0,AVERAGE(U$10:U145)) -> 0 | W145: =IF(U144="",0,VAR(U$10:U145)) -> 0 | AA145: =IF(Z145="",0,AVERAGE(Z$10:Z145)) -> 0 | AB145: =IF(Z144="",0,VAR(Z$10:Z145)) -> 0 | AF145: =IF(AE145="",0,AVERAGE(AE$10:AE145)) -> 0 | AG145: =IF(AE144="",0,VAR(AE$10:AE145)) -> 0 | AK145: =IF(AJ145="",0,AVERAGE(AJ$10:AJ145)) -> 0 | AL145: =IF(AJ144="",0,VAR(AJ$10:AJ145)) -> 0 | AP145: =IF(AO145="",0,AVERAGE(AO$10:AO145)) -> 0 | AQ145: =IF(AO144="",0,VAR(AO$10:AO145)) -> 0 | AU145: =IF(AT145="",0,AVERAGE(AT$10:AT145)) -> 0 | AV145: =IF(AT144="",0,VAR(AT$10:AT145)) -> 0 | AZ145: =IF(AY145="",0,AVERAGE(AY$10:AY145)) -> 0 | BA145: =IF(AY144="",0,VAR(AY$10:AY145)) -> 0
G146: =IF(F146="",0,AVERAGE($F$10:F146)) -> 0 | H146: =IF(F145="",0,VAR($F$10:F146)) -> 0 | L146: =IF(K146="",0,AVERAGE($K$10:K146)) -> 0 | M146: =IF(K145="",0,VAR($K$10:K146)) -> 0 | Q146: =IF(P146="",0,AVERAGE(P$10:P146)) -> 0 | R146: =IF(P145="",0,VAR(P$10:P146)) -> 0 | V146: =IF(U146="",0,AVERAGE(U$10:U146)) -> 0 | W146: =IF(U145="",0,VAR(U$10:U146)) -> 0 | AA146: =IF(Z146="",0,AVERAGE(Z$10:Z146)) -> 0 | AB146: =IF(Z145="",0,VAR(Z$10:Z146)) -> 0 | AF146: =IF(AE146="",0,AVERAGE(AE$10:AE146)) -> 0 | AG146: =IF(AE145="",0,VAR(AE$10:AE146)) -> 0 | AK146: =IF(AJ146="",0,AVERAGE(AJ$10:AJ146)) -> 0 | AL146: =IF(AJ145="",0,VAR(AJ$10:AJ146)) -> 0 | AP146: =IF(AO146="",0,AVERAGE(AO$10:AO146)) -> 0 | AQ146: =IF(AO145="",0,VAR(AO$10:AO146)) -> 0 | AU146: =IF(AT146="",0,AVERAGE(AT$10:AT146)) -> 0 | AV146: =IF(AT145="",0,VAR(AT$10:AT146)) -> 0 | AZ146: =IF(AY146="",0,AVERAGE(AY$10:AY146)) -> 0 | BA146: =IF(AY145="",0,VAR(AY$10:AY146)) -> 0
G147: =IF(F147="",0,AVERAGE($F$10:F147)) -> 0 | H147: =IF(F146="",0,VAR($F$10:F147)) -> 0 | L147: =IF(K147="",0,AVERAGE($K$10:K147)) -> 0 | M147: =IF(K146="",0,VAR($K$10:K147)) -> 0 | Q147: =IF(P147="",0,AVERAGE(P$10:P147)) -> 0 | R147: =IF(P146="",0,VAR(P$10:P147)) -> 0 | V147: =IF(U147="",0,AVERAGE(U$10:U147)) -> 0 | W147: =IF(U146="",0,VAR(U$10:U147)) -> 0 | AA147: =IF(Z147="",0,AVERAGE(Z$10:Z147)) -> 0 | AB147: =IF(Z146="",0,VAR(Z$10:Z147)) -> 0 | AF147: =IF(AE147="",0,AVERAGE(AE$10:AE147)) -> 0 | AG147: =IF(AE146="",0,VAR(AE$10:AE147)) -> 0 | AK147: =IF(AJ147="",0,AVERAGE(AJ$10:AJ147)) -> 0 | AL147: =IF(AJ146="",0,VAR(AJ$10:AJ147)) -> 0 | AP147: =IF(AO147="",0,AVERAGE(AO$10:AO147)) -> 0 | AQ147: =IF(AO146="",0,VAR(AO$10:AO147)) -> 0 | AU147: =IF(AT147="",0,AVERAGE(AT$10:AT147)) -> 0 | AV147: =IF(AT146="",0,VAR(AT$10:AT147)) -> 0 | AZ147: =IF(AY147="",0,AVERAGE(AY$10:AY147)) -> 0 | BA147: =IF(AY146="",0,VAR(AY$10:AY147)) -> 0
F148: =IF(E148="","",+(E148-E147)/E147) ->  | G148: =IF(F148="",0,AVERAGE($F$10:F148)) -> 0 | H148: =IF(F147="",0,VAR($F$10:F148)) -> 0 | L148: =IF(K148="",0,AVERAGE($K$10:K148)) -> 0 | M148: =IF(K147="",0,VAR($K$10:K148)) -> 0 | Q148: =IF(P148="",0,AVERAGE(P$10:P148)) -> 0 | R148: =IF(P147="",0,VAR(P$10:P148)) -> 0 | V148: =IF(U148="",0,AVERAGE(U$10:U148)) -> 0 | W148: =IF(U147="",0,VAR(U$10:U148)) -> 0 | AA148: =IF(Z148="",0,AVERAGE(Z$10:Z148)) -> 0 | AB148: =IF(Z147="",0,VAR(Z$10:Z148)) -> 0 | AF148: =IF(AE148="",0,AVERAGE(AE$10:AE148)) -> 0 | AG148: =IF(AE147="",0,VAR(AE$10:AE148)) -> 0 | AK148: =IF(AJ148="",0,AVERAGE(AJ$10:AJ148)) -> 0 | AL148: =IF(AJ147="",0,VAR(AJ$10:AJ148)) -> 0 | AP148: =IF(AO148="",0,AVERAGE(AO$10:AO148)) -> 0 | AQ148: =IF(AO147="",0,VAR(AO$10:AO148)) -> 0 | AU148: =IF(AT148="",0,AVERAGE(AT$10:AT148)) -> 0 | AV148: =IF(AT147="",0,VAR(AT$10:AT148)) -> 0 | AZ148: =IF(AY148="",0,AVERAGE(AY$10:AY148)) -> 0 | BA148: =IF(AY147="",0,VAR(AY$10:AY148)) -> 0
G149: =IF(F149="",0,AVERAGE($F$10:F149)) -> 0 | H149: =IF(F148="",0,VAR($F$10:F149)) -> 0 | L149: =IF(K149="",0,AVERAGE($K$10:K149)) -> 0 | M149: =IF(K148="",0,VAR($K$10:K149)) -> 0 | Q149: =IF(P149="",0,AVERAGE(P$10:P149)) -> 0 | R149: =IF(P148="",0,VAR(P$10:P149)) -> 0 | V149: =IF(U149="",0,AVERAGE(U$10:U149)) -> 0 | W149: =IF(U148="",0,VAR(U$10:U149)) -> 0 | AA149: =IF(Z149="",0,AVERAGE(Z$10:Z149)) -> 0 | AB149: =IF(Z148="",0,VAR(Z$10:Z149)) -> 0 | AF149: =IF(AE149="",0,AVERAGE(AE$10:AE149)) -> 0 | AG149: =IF(AE148="",0,VAR(AE$10:AE149)) -> 0 | AK149: =IF(AJ149="",0,AVERAGE(AJ$10:AJ149)) -> 0 | AL149: =IF(AJ148="",0,VAR(AJ$10:AJ149)) -> 0 | AP149: =IF(AO149="",0,AVERAGE(AO$10:AO149)) -> 0 | AQ149: =IF(AO148="",0,VAR(AO$10:AO149)) -> 0 | AU149: =IF(AT149="",0,AVERAGE(AT$10:AT149)) -> 0 | AV149: =IF(AT148="",0,VAR(AT$10:AT149)) -> 0 | AZ149: =IF(AY149="",0,AVERAGE(AY$10:AY149)) -> 0 | BA149: =IF(AY148="",0,VAR(AY$10:AY149)) -> 0
G150: =IF(F150="",0,AVERAGE($F$10:F150)) -> 0 | H150: =IF(F149="",0,VAR($F$10:F150)) -> 0 | L150: =IF(K150="",0,AVERAGE($K$10:K150)) -> 0 | M150: =IF(K149="",0,VAR($K$10:K150)) -> 0 | Q150: =IF(P150="",0,AVERAGE(P$10:P150)) -> 0 | R150: =IF(P149="",0,VAR(P$10:P150)) -> 0 | V150: =IF(U150="",0,AVERAGE(U$10:U150)) -> 0 | W150: =IF(U149="",0,VAR(U$10:U150)) -> 0 | AA150: =IF(Z150="",0,AVERAGE(Z$10:Z150)) -> 0 | AB150: =IF(Z149="",0,VAR(Z$10:Z150)) -> 0 | AF150: =IF(AE150="",0,AVERAGE(AE$10:AE150)) -> 0 | AG150: =IF(AE149="",0,VAR(AE$10:AE150)) -> 0 | AK150: =IF(AJ150="",0,AVERAGE(AJ$10:AJ150)) -> 0 | AL150: =IF(AJ149="",0,VAR(AJ$10:AJ150)) -> 0 | AP150: =IF(AO150="",0,AVERAGE(AO$10:AO150)) -> 0 | AQ150: =IF(AO149="",0,VAR(AO$10:AO150)) -> 0 | AU150: =IF(AT150="",0,AVERAGE(AT$10:AT150)) -> 0 | AV150: =IF(AT149="",0,VAR(AT$10:AT150)) -> 0 | AZ150: =IF(AY150="",0,AVERAGE(AY$10:AY150)) -> 0 | BA150: =IF(AY149="",0,VAR(AY$10:AY150)) -> 0
F151: =IF(E151="","",+(E151-E150)/E150) ->  | G151: =IF(F151="",0,AVERAGE($F$10:F151)) -> 0 | H151: =IF(F150="",0,VAR($F$10:F151)) -> 0 | L151: =IF(K151="",0,AVERAGE($K$10:K151)) -> 0 | M151: =IF(K150="",0,VAR($K$10:K151)) -> 0 | Q151: =IF(P151="",0,AVERAGE(P$10:P151)) -> 0 | R151: =IF(P150="",0,VAR(P$10:P151)) -> 0 | V151: =IF(U151="",0,AVERAGE(U$10:U151)) -> 0 | W151: =IF(U150="",0,VAR(U$10:U151)) -> 0 | AA151: =IF(Z151="",0,AVERAGE(Z$10:Z151)) -> 0 | AB151: =IF(Z150="",0,VAR(Z$10:Z151)) -> 0 | AF151: =IF(AE151="",0,AVERAGE(AE$10:AE151)) -> 0 | AG151: =IF(AE150="",0,VAR(AE$10:AE151)) -> 0 | AK151: =IF(AJ151="",0,AVERAGE(AJ$10:AJ151)) -> 0 | AL151: =IF(AJ150="",0,VAR(AJ$10:AJ151)) -> 0 | AP151: =IF(AO151="",0,AVERAGE(AO$10:AO151)) -> 0 | AQ151: =IF(AO150="",0,VAR(AO$10:AO151)) -> 0 | AU151: =IF(AT151="",0,AVERAGE(AT$10:AT151)) -> 0 | AV151: =IF(AT150="",0,VAR(AT$10:AT151)) -> 0 | AZ151: =IF(AY151="",0,AVERAGE(AY$10:AY151)) -> 0 | BA151: =IF(AY150="",0,VAR(AY$10:AY151)) -> 0
G152: =IF(F152="",0,AVERAGE($F$10:F152)) -> 0 | H152: =IF(F151="",0,VAR($F$10:F152)) -> 0 | L152: =IF(K152="",0,AVERAGE($K$10:K152)) -> 0 | M152: =IF(K151="",0,VAR($K$10:K152)) -> 0 | Q152: =IF(P152="",0,AVERAGE(P$10:P152)) -> 0 | R152: =IF(P151="",0,VAR(P$10:P152)) -> 0 | V152: =IF(U152="",0,AVERAGE(U$10:U152)) -> 0 | W152: =IF(U151="",0,VAR(U$10:U152)) -> 0 | AA152: =IF(Z152="",0,AVERAGE(Z$10:Z152)) -> 0 | AB152: =IF(Z151="",0,VAR(Z$10:Z152)) -> 0 | AF152: =IF(AE152="",0,AVERAGE(AE$10:AE152)) -> 0 | AG152: =IF(AE151="",0,VAR(AE$10:AE152)) -> 0 | AK152: =IF(AJ152="",0,AVERAGE(AJ$10:AJ152)) -> 0 | AL152: =IF(AJ151="",0,VAR(AJ$10:AJ152)) -> 0 | AP152: =IF(AO152="",0,AVERAGE(AO$10:AO152)) -> 0 | AQ152: =IF(AO151="",0,VAR(AO$10:AO152)) -> 0 | AU152: =IF(AT152="",0,AVERAGE(AT$10:AT152)) -> 0 | AV152: =IF(AT151="",0,VAR(AT$10:AT152)) -> 0 | AZ152: =IF(AY152="",0,AVERAGE(AY$10:AY152)) -> 0 | BA152: =IF(AY151="",0,VAR(AY$10:AY152)) -> 0
G153: =IF(F153="",0,AVERAGE($F$10:F153)) -> 0 | H153: =IF(F152="",0,VAR($F$10:F153)) -> 0 | L153: =IF(K153="",0,AVERAGE($K$10:K153)) -> 0 | M153: =IF(K152="",0,VAR($K$10:K153)) -> 0 | Q153: =IF(P153="",0,AVERAGE(P$10:P153)) -> 0 | R153: =IF(P152="",0,VAR(P$10:P153)) -> 0 | V153: =IF(U153="",0,AVERAGE(U$10:U153)) -> 0 | W153: =IF(U152="",0,VAR(U$10:U153)) -> 0 | AA153: =IF(Z153="",0,AVERAGE(Z$10:Z153)) -> 0 | AB153: =IF(Z152="",0,VAR(Z$10:Z153)) -> 0 | AF153: =IF(AE153="",0,AVERAGE(AE$10:AE153)) -> 0 | AG153: =IF(AE152="",0,VAR(AE$10:AE153)) -> 0 | AK153: =IF(AJ153="",0,AVERAGE(AJ$10:AJ153)) -> 0 | AL153: =IF(AJ152="",0,VAR(AJ$10:AJ153)) -> 0 | AP153: =IF(AO153="",0,AVERAGE(AO$10:AO153)) -> 0 | AQ153: =IF(AO152="",0,VAR(AO$10:AO153)) -> 0 | AU153: =IF(AT153="",0,AVERAGE(AT$10:AT153)) -> 0 | AV153: =IF(AT152="",0,VAR(AT$10:AT153)) -> 0 | AZ153: =IF(AY153="",0,AVERAGE(AY$10:AY153)) -> 0 | BA153: =IF(AY152="",0,VAR(AY$10:AY153)) -> 0
F154: =IF(E154="","",+(E154-E153)/E153) ->  | G154: =IF(F154="",0,AVERAGE($F$10:F154)) -> 0 | H154: =IF(F153="",0,VAR($F$10:F154)) -> 0 | L154: =IF(K154="",0,AVERAGE($K$10:K154)) -> 0 | M154: =IF(K153="",0,VAR($K$10:K154)) -> 0 | Q154: =IF(P154="",0,AVERAGE(P$10:P154)) -> 0 | R154: =IF(P153="",0,VAR(P$10:P154)) -> 0 | V154: =IF(U154="",0,AVERAGE(U$10:U154)) -> 0 | W154: =IF(U153="",0,VAR(U$10:U154)) -> 0 | AA154: =IF(Z154="",0,AVERAGE(Z$10:Z154)) -> 0 | AB154: =IF(Z153="",0,VAR(Z$10:Z154)) -> 0 | AF154: =IF(AE154="",0,AVERAGE(AE$10:AE154)) -> 0 | AG154: =IF(AE153="",0,VAR(AE$10:AE154)) -> 0 | AK154: =IF(AJ154="",0,AVERAGE(AJ$10:AJ154)) -> 0 | AL154: =IF(AJ153="",0,VAR(AJ$10:AJ154)) -> 0 | AP154: =IF(AO154="",0,AVERAGE(AO$10:AO154)) -> 0 | AQ154: =IF(AO153="",0,VAR(AO$10:AO154)) -> 0 | AU154: =IF(AT154="",0,AVERAGE(AT$10:AT154)) -> 0 | AV154: =IF(AT153="",0,VAR(AT$10:AT154)) -> 0 | AZ154: =IF(AY154="",0,AVERAGE(AY$10:AY154)) -> 0 | BA154: =IF(AY153="",0,VAR(AY$10:AY154)) -> 0
G155: =IF(F155="",0,AVERAGE($F$10:F155)) -> 0 | H155: =IF(F154="",0,VAR($F$10:F155)) -> 0 | L155: =IF(K155="",0,AVERAGE($K$10:K155)) -> 0 | M155: =IF(K154="",0,VAR($K$10:K155)) -> 0 | Q155: =IF(P155="",0,AVERAGE(P$10:P155)) -> 0 | R155: =IF(P154="",0,VAR(P$10:P155)) -> 0 | V155: =IF(U155="",0,AVERAGE(U$10:U155)) -> 0 | W155: =IF(U154="",0,VAR(U$10:U155)) -> 0 | AA155: =IF(Z155="",0,AVERAGE(Z$10:Z155)) -> 0 | AB155: =IF(Z154="",0,VAR(Z$10:Z155)) -> 0 | AF155: =IF(AE155="",0,AVERAGE(AE$10:AE155)) -> 0 | AG155: =IF(AE154="",0,VAR(AE$10:AE155)) -> 0 | AK155: =IF(AJ155="",0,AVERAGE(AJ$10:AJ155)) -> 0 | AL155: =IF(AJ154="",0,VAR(AJ$10:AJ155)) -> 0 | AP155: =IF(AO155="",0,AVERAGE(AO$10:AO155)) -> 0 | AQ155: =IF(AO154="",0,VAR(AO$10:AO155)) -> 0 | AU155: =IF(AT155="",0,AVERAGE(AT$10:AT155)) -> 0 | AV155: =IF(AT154="",0,VAR(AT$10:AT155)) -> 0 | AZ155: =IF(AY155="",0,AVERAGE(AY$10:AY155)) -> 0 | BA155: =IF(AY154="",0,VAR(AY$10:AY155)) -> 0
G156: =IF(F156="",0,AVERAGE($F$10:F156)) -> 0 | H156: =IF(F155="",0,VAR($F$10:F156)) -> 0 | L156: =IF(K156="",0,AVERAGE($K$10:K156)) -> 0 | M156: =IF(K155="",0,VAR($K$10:K156)) -> 0 | Q156: =IF(P156="",0,AVERAGE(P$10:P156)) -> 0 | R156: =IF(P155="",0,VAR(P$10:P156)) -> 0 | V156: =IF(U156="",0,AVERAGE(U$10:U156)) -> 0 | W156: =IF(U155="",0,VAR(U$10:U156)) -> 0 | AA156: =IF(Z156="",0,AVERAGE(Z$10:Z156)) -> 0 | AB156: =IF(Z155="",0,VAR(Z$10:Z156)) -> 0 | AF156: =IF(AE156="",0,AVERAGE(AE$10:AE156)) -> 0 | AG156: =IF(AE155="",0,VAR(AE$10:AE156)) -> 0 | AK156: =IF(AJ156="",0,AVERAGE(AJ$10:AJ156)) -> 0 | AL156: =IF(AJ155="",0,VAR(AJ$10:AJ156)) -> 0 | AP156: =IF(AO156="",0,AVERAGE(AO$10:AO156)) -> 0 | AQ156: =IF(AO155="",0,VAR(AO$10:AO156)) -> 0 | AU156: =IF(AT156="",0,AVERAGE(AT$10:AT156)) -> 0 | AV156: =IF(AT155="",0,VAR(AT$10:AT156)) -> 0 | AZ156: =IF(AY156="",0,AVERAGE(AY$10:AY156)) -> 0 | BA156: =IF(AY155="",0,VAR(AY$10:AY156)) -> 0
F157: =IF(E157="","",+(E157-E156)/E156) ->  | G157: =IF(F157="",0,AVERAGE($F$10:F157)) -> 0 | H157: =IF(F156="",0,VAR($F$10:F157)) -> 0 | L157: =IF(K157="",0,AVERAGE($K$10:K157)) -> 0 | M157: =IF(K156="",0,VAR($K$10:K157)) -> 0 | Q157: =IF(P157="",0,AVERAGE(P$10:P157)) -> 0 | R157: =IF(P156="",0,VAR(P$10:P157)) -> 0 | V157: =IF(U157="",0,AVERAGE(U$10:U157)) -> 0 | W157: =IF(U156="",0,VAR(U$10:U157)) -> 0 | AA157: =IF(Z157="",0,AVERAGE(Z$10:Z157)) -> 0 | AB157: =IF(Z156="",0,VAR(Z$10:Z157)) -> 0 | AF157: =IF(AE157="",0,AVERAGE(AE$10:AE157)) -> 0 | AG157: =IF(AE156="",0,VAR(AE$10:AE157)) -> 0 | AK157: =IF(AJ157="",0,AVERAGE(AJ$10:AJ157)) -> 0 | AL157: =IF(AJ156="",0,VAR(AJ$10:AJ157)) -> 0 | AP157: =IF(AO157="",0,AVERAGE(AO$10:AO157)) -> 0 | AQ157: =IF(AO156="",0,VAR(AO$10:AO157)) -> 0 | AU157: =IF(AT157="",0,AVERAGE(AT$10:AT157)) -> 0 | AV157: =IF(AT156="",0,VAR(AT$10:AT157)) -> 0 | AZ157: =IF(AY157="",0,AVERAGE(AY$10:AY157)) -> 0 | BA157: =IF(AY156="",0,VAR(AY$10:AY157)) -> 0
G158: =IF(F158="",0,AVERAGE($F$10:F158)) -> 0 | H158: =IF(F157="",0,VAR($F$10:F158)) -> 0 | L158: =IF(K158="",0,AVERAGE($K$10:K158)) -> 0 | M158: =IF(K157="",0,VAR($K$10:K158)) -> 0 | Q158: =IF(P158="",0,AVERAGE(P$10:P158)) -> 0 | R158: =IF(P157="",0,VAR(P$10:P158)) -> 0 | V158: =IF(U158="",0,AVERAGE(U$10:U158)) -> 0 | W158: =IF(U157="",0,VAR(U$10:U158)) -> 0 | AA158: =IF(Z158="",0,AVERAGE(Z$10:Z158)) -> 0 | AB158: =IF(Z157="",0,VAR(Z$10:Z158)) -> 0 | AF158: =IF(AE158="",0,AVERAGE(AE$10:AE158)) -> 0 | AG158: =IF(AE157="",0,VAR(AE$10:AE158)) -> 0 | AK158: =IF(AJ158="",0,AVERAGE(AJ$10:AJ158)) -> 0 | AL158: =IF(AJ157="",0,VAR(AJ$10:AJ158)) -> 0 | AP158: =IF(AO158="",0,AVERAGE(AO$10:AO158)) -> 0 | AQ158: =IF(AO157="",0,VAR(AO$10:AO158)) -> 0 | AU158: =IF(AT158="",0,AVERAGE(AT$10:AT158)) -> 0 | AV158: =IF(AT157="",0,VAR(AT$10:AT158)) -> 0 | AZ158: =IF(AY158="",0,AVERAGE(AY$10:AY158)) -> 0 | BA158: =IF(AY157="",0,VAR(AY$10:AY158)) -> 0
G159: =IF(F159="",0,AVERAGE($F$10:F159)) -> 0 | H159: =IF(F158="",0,VAR($F$10:F159)) -> 0 | L159: =IF(K159="",0,AVERAGE($K$10:K159)) -> 0 | M159: =IF(K158="",0,VAR($K$10:K159)) -> 0 | Q159: =IF(P159="",0,AVERAGE(P$10:P159)) -> 0 | R159: =IF(P158="",0,VAR(P$10:P159)) -> 0 | V159: =IF(U159="",0,AVERAGE(U$10:U159)) -> 0 | W159: =IF(U158="",0,VAR(U$10:U159)) -> 0 | AA159: =IF(Z159="",0,AVERAGE(Z$10:Z159)) -> 0 | AB159: =IF(Z158="",0,VAR(Z$10:Z159)) -> 0 | AF159: =IF(AE159="",0,AVERAGE(AE$10:AE159)) -> 0 | AG159: =IF(AE158="",0,VAR(AE$10:AE159)) -> 0 | AK159: =IF(AJ159="",0,AVERAGE(AJ$10:AJ159)) -> 0 | AL159: =IF(AJ158="",0,VAR(AJ$10:AJ159)) -> 0 | AP159: =IF(AO159="",0,AVERAGE(AO$10:AO159)) -> 0 | AQ159: =IF(AO158="",0,VAR(AO$10:AO159)) -> 0 | AU159: =IF(AT159="",0,AVERAGE(AT$10:AT159)) -> 0 | AV159: =IF(AT158="",0,VAR(AT$10:AT159)) -> 0 | AZ159: =IF(AY159="",0,AVERAGE(AY$10:AY159)) -> 0 | BA159: =IF(AY158="",0,VAR(AY$10:AY159)) -> 0
F160: =IF(E160="","",+(E160-E159)/E159) ->  | G160: =IF(F160="",0,AVERAGE($F$10:F160)) -> 0 | H160: =IF(F159="",0,VAR($F$10:F160)) -> 0 | L160: =IF(K160="",0,AVERAGE($K$10:K160)) -> 0 | M160: =IF(K159="",0,VAR($K$10:K160)) -> 0 | Q160: =IF(P160="",0,AVERAGE(P$10:P160)) -> 0 | R160: =IF(P159="",0,VAR(P$10:P160)) -> 0 | V160: =IF(U160="",0,AVERAGE(U$10:U160)) -> 0 | W160: =IF(U159="",0,VAR(U$10:U160)) -> 0 | AA160: =IF(Z160="",0,AVERAGE(Z$10:Z160)) -> 0 | AB160: =IF(Z159="",0,VAR(Z$10:Z160)) -> 0 | AF160: =IF(AE160="",0,AVERAGE(AE$10:AE160)) -> 0 | AG160: =IF(AE159="",0,VAR(AE$10:AE160)) -> 0 | AK160: =IF(AJ160="",0,AVERAGE(AJ$10:AJ160)) -> 0 | AL160: =IF(AJ159="",0,VAR(AJ$10:AJ160)) -> 0 | AP160: =IF(AO160="",0,AVERAGE(AO$10:AO160)) -> 0 | AQ160: =IF(AO159="",0,VAR(AO$10:AO160)) -> 0 | AU160: =IF(AT160="",0,AVERAGE(AT$10:AT160)) -> 0 | AV160: =IF(AT159="",0,VAR(AT$10:AT160)) -> 0 | AZ160: =IF(AY160="",0,AVERAGE(AY$10:AY160)) -> 0 | BA160: =IF(AY159="",0,VAR(AY$10:AY160)) -> 0
G161: =IF(F161="",0,AVERAGE($F$10:F161)) -> 0 | H161: =IF(F160="",0,VAR($F$10:F161)) -> 0 | L161: =IF(K161="",0,AVERAGE($K$10:K161)) -> 0 | M161: =IF(K160="",0,VAR($K$10:K161)) -> 0 | Q161: =IF(P161="",0,AVERAGE(P$10:P161)) -> 0 | R161: =IF(P160="",0,VAR(P$10:P161)) -> 0 | V161: =IF(U161="",0,AVERAGE(U$10:U161)) -> 0 | W161: =IF(U160="",0,VAR(U$10:U161)) -> 0 | AA161: =IF(Z161="",0,AVERAGE(Z$10:Z161)) -> 0 | AB161: =IF(Z160="",0,VAR(Z$10:Z161)) -> 0 | AF161: =IF(AE161="",0,AVERAGE(AE$10:AE161)) -> 0 | AG161: =IF(AE160="",0,VAR(AE$10:AE161)) -> 0 | AK161: =IF(AJ161="",0,AVERAGE(AJ$10:AJ161)) -> 0 | AL161: =IF(AJ160="",0,VAR(AJ$10:AJ161)) -> 0 | AP161: =IF(AO161="",0,AVERAGE(AO$10:AO161)) -> 0 | AQ161: =IF(AO160="",0,VAR(AO$10:AO161)) -> 0 | AU161: =IF(AT161="",0,AVERAGE(AT$10:AT161)) -> 0 | AV161: =IF(AT160="",0,VAR(AT$10:AT161)) -> 0 | AZ161: =IF(AY161="",0,AVERAGE(AY$10:AY161)) -> 0 | BA161: =IF(AY160="",0,VAR(AY$10:AY161)) -> 0
G162: =IF(F162="",0,AVERAGE($F$10:F162)) -> 0 | H162: =IF(F161="",0,VAR($F$10:F162)) -> 0 | L162: =IF(K162="",0,AVERAGE($K$10:K162)) -> 0 | M162: =IF(K161="",0,VAR($K$10:K162)) -> 0 | Q162: =IF(P162="",0,AVERAGE(P$10:P162)) -> 0 | R162: =IF(P161="",0,VAR(P$10:P162)) -> 0 | V162: =IF(U162="",0,AVERAGE(U$10:U162)) -> 0 | W162: =IF(U161="",0,VAR(U$10:U162)) -> 0 | AA162: =IF(Z162="",0,AVERAGE(Z$10:Z162)) -> 0 | AB162: =IF(Z161="",0,VAR(Z$10:Z162)) -> 0 | AF162: =IF(AE162="",0,AVERAGE(AE$10:AE162)) -> 0 | AG162: =IF(AE161="",0,VAR(AE$10:AE162)) -> 0 | AK162: =IF(AJ162="",0,AVERAGE(AJ$10:AJ162)) -> 0 | AL162: =IF(AJ161="",0,VAR(AJ$10:AJ162)) -> 0 | AP162: =IF(AO162="",0,AVERAGE(AO$10:AO162)) -> 0 | AQ162: =IF(AO161="",0,VAR(AO$10:AO162)) -> 0 | AU162: =IF(AT162="",0,AVERAGE(AT$10:AT162)) -> 0 | AV162: =IF(AT161="",0,VAR(AT$10:AT162)) -> 0 | AZ162: =IF(AY162="",0,AVERAGE(AY$10:AY162)) -> 0 | BA162: =IF(AY161="",0,VAR(AY$10:AY162)) -> 0
F163: =IF(E163="","",+(E163-E162)/E162) ->  | G163: =IF(F163="",0,AVERAGE($F$10:F163)) -> 0 | H163: =IF(F162="",0,VAR($F$10:F163)) -> 0 | L163: =IF(K163="",0,AVERAGE($K$10:K163)) -> 0 | M163: =IF(K162="",0,VAR($K$10:K163)) -> 0 | Q163: =IF(P163="",0,AVERAGE(P$10:P163)) -> 0 | R163: =IF(P162="",0,VAR(P$10:P163)) -> 0 | V163: =IF(U163="",0,AVERAGE(U$10:U163)) -> 0 | W163: =IF(U162="",0,VAR(U$10:U163)) -> 0 | AA163: =IF(Z163="",0,AVERAGE(Z$10:Z163)) -> 0 | AB163: =IF(Z162="",0,VAR(Z$10:Z163)) -> 0 | AF163: =IF(AE163="",0,AVERAGE(AE$10:AE163)) -> 0 | AG163: =IF(AE162="",0,VAR(AE$10:AE163)) -> 0 | AK163: =IF(AJ163="",0,AVERAGE(AJ$10:AJ163)) -> 0 | AL163: =IF(AJ162="",0,VAR(AJ$10:AJ163)) -> 0 | AP163: =IF(AO163="",0,AVERAGE(AO$10:AO163)) -> 0 | AQ163: =IF(AO162="",0,VAR(AO$10:AO163)) -> 0 | AU163: =IF(AT163="",0,AVERAGE(AT$10:AT163)) -> 0 | AV163: =IF(AT162="",0,VAR(AT$10:AT163)) -> 0 | AZ163: =IF(AY163="",0,AVERAGE(AY$10:AY163)) -> 0 | BA163: =IF(AY162="",0,VAR(AY$10:AY163)) -> 0
G164: =IF(F164="",0,AVERAGE($F$10:F164)) -> 0 | H164: =IF(F163="",0,VAR($F$10:F164)) -> 0 | L164: =IF(K164="",0,AVERAGE($K$10:K164)) -> 0 | M164: =IF(K163="",0,VAR($K$10:K164)) -> 0 | Q164: =IF(P164="",0,AVERAGE(P$10:P164)) -> 0 | R164: =IF(P163="",0,VAR(P$10:P164)) -> 0 | V164: =IF(U164="",0,AVERAGE(U$10:U164)) -> 0 | W164: =IF(U163="",0,VAR(U$10:U164)) -> 0 | AA164: =IF(Z164="",0,AVERAGE(Z$10:Z164)) -> 0 | AB164: =IF(Z163="",0,VAR(Z$10:Z164)) -> 0 | AF164: =IF(AE164="",0,AVERAGE(AE$10:AE164)) -> 0 | AG164: =IF(AE163="",0,VAR(AE$10:AE164)) -> 0 | AK164: =IF(AJ164="",0,AVERAGE(AJ$10:AJ164)) -> 0 | AL164: =IF(AJ163="",0,VAR(AJ$10:AJ164)) -> 0 | AP164: =IF(AO164="",0,AVERAGE(AO$10:AO164)) -> 0 | AQ164: =IF(AO163="",0,VAR(AO$10:AO164)) -> 0 | AU164: =IF(AT164="",0,AVERAGE(AT$10:AT164)) -> 0 | AV164: =IF(AT163="",0,VAR(AT$10:AT164)) -> 0 | AZ164: =IF(AY164="",0,AVERAGE(AY$10:AY164)) -> 0 | BA164: =IF(AY163="",0,VAR(AY$10:AY164)) -> 0
G165: =IF(F165="",0,AVERAGE($F$10:F165)) -> 0 | H165: =IF(F164="",0,VAR($F$10:F165)) -> 0 | L165: =IF(K165="",0,AVERAGE($K$10:K165)) -> 0 | M165: =IF(K164="",0,VAR($K$10:K165)) -> 0 | Q165: =IF(P165="",0,AVERAGE(P$10:P165)) -> 0 | R165: =IF(P164="",0,VAR(P$10:P165)) -> 0 | V165: =IF(U165="",0,AVERAGE(U$10:U165)) -> 0 | W165: =IF(U164="",0,VAR(U$10:U165)) -> 0 | AA165: =IF(Z165="",0,AVERAGE(Z$10:Z165)) -> 0 | AB165: =IF(Z164="",0,VAR(Z$10:Z165)) -> 0 | AF165: =IF(AE165="",0,AVERAGE(AE$10:AE165)) -> 0 | AG165: =IF(AE164="",0,VAR(AE$10:AE165)) -> 0 | AK165: =IF(AJ165="",0,AVERAGE(AJ$10:AJ165)) -> 0 | AL165: =IF(AJ164="",0,VAR(AJ$10:AJ165)) -> 0 | AP165: =IF(AO165="",0,AVERAGE(AO$10:AO165)) -> 0 | AQ165: =IF(AO164="",0,VAR(AO$10:AO165)) -> 0 | AU165: =IF(AT165="",0,AVERAGE(AT$10:AT165)) -> 0 | AV165: =IF(AT164="",0,VAR(AT$10:AT165)) -> 0 | AZ165: =IF(AY165="",0,AVERAGE(AY$10:AY165)) -> 0 | BA165: =IF(AY164="",0,VAR(AY$10:AY165)) -> 0
F166: =IF(E166="","",+(E166-E165)/E165) ->  | G166: =IF(F166="",0,AVERAGE($F$10:F166)) -> 0 | H166: =IF(F165="",0,VAR($F$10:F166)) -> 0 | L166: =IF(K166="",0,AVERAGE($K$10:K166)) -> 0 | M166: =IF(K165="",0,VAR($K$10:K166)) -> 0 | Q166: =IF(P166="",0,AVERAGE(P$10:P166)) -> 0 | R166: =IF(P165="",0,VAR(P$10:P166)) -> 0 | V166: =IF(U166="",0,AVERAGE(U$10:U166)) -> 0 | W166: =IF(U165="",0,VAR(U$10:U166)) -> 0 | AA166: =IF(Z166="",0,AVERAGE(Z$10:Z166)) -> 0 | AB166: =IF(Z165="",0,VAR(Z$10:Z166)) -> 0 | AF166: =IF(AE166="",0,AVERAGE(AE$10:AE166)) -> 0 | AG166: =IF(AE165="",0,VAR(AE$10:AE166)) -> 0 | AK166: =IF(AJ166="",0,AVERAGE(AJ$10:AJ166)) -> 0 | AL166: =IF(AJ165="",0,VAR(AJ$10:AJ166)) -> 0 | AP166: =IF(AO166="",0,AVERAGE(AO$10:AO166)) -> 0 | AQ166: =IF(AO165="",0,VAR(AO$10:AO166)) -> 0 | AU166: =IF(AT166="",0,AVERAGE(AT$10:AT166)) -> 0 | AV166: =IF(AT165="",0,VAR(AT$10:AT166)) -> 0 | AZ166: =IF(AY166="",0,AVERAGE(AY$10:AY166)) -> 0 | BA166: =IF(AY165="",0,VAR(AY$10:AY166)) -> 0
G167: =IF(F167="",0,AVERAGE($F$10:F167)) -> 0 | H167: =IF(F166="",0,VAR($F$10:F167)) -> 0 | L167: =IF(K167="",0,AVERAGE($K$10:K167)) -> 0 | M167: =IF(K166="",0,VAR($K$10:K167)) -> 0 | Q167: =IF(P167="",0,AVERAGE(P$10:P167)) -> 0 | R167: =IF(P166="",0,VAR(P$10:P167)) -> 0 | V167: =IF(U167="",0,AVERAGE(U$10:U167)) -> 0 | W167: =IF(U166="",0,VAR(U$10:U167)) -> 0 | AA167: =IF(Z167="",0,AVERAGE(Z$10:Z167)) -> 0 | AB167: =IF(Z166="",0,VAR(Z$10:Z167)) -> 0 | AF167: =IF(AE167="",0,AVERAGE(AE$10:AE167)) -> 0 | AG167: =IF(AE166="",0,VAR(AE$10:AE167)) -> 0 | AK167: =IF(AJ167="",0,AVERAGE(AJ$10:AJ167)) -> 0 | AL167: =IF(AJ166="",0,VAR(AJ$10:AJ167)) -> 0 | AP167: =IF(AO167="",0,AVERAGE(AO$10:AO167)) -> 0 | AQ167: =IF(AO166="",0,VAR(AO$10:AO167)) -> 0 | AU167: =IF(AT167="",0,AVERAGE(AT$10:AT167)) -> 0 | AV167: =IF(AT166="",0,VAR(AT$10:AT167)) -> 0 | AZ167: =IF(AY167="",0,AVERAGE(AY$10:AY167)) -> 0 | BA167: =IF(AY166="",0,VAR(AY$10:AY167)) -> 0
G168: =IF(F168="",0,AVERAGE($F$10:F168)) -> 0 | H168: =IF(F167="",0,VAR($F$10:F168)) -> 0 | L168: =IF(K168="",0,AVERAGE($K$10:K168)) -> 0 | M168: =IF(K167="",0,VAR($K$10:K168)) -> 0 | Q168: =IF(P168="",0,AVERAGE(P$10:P168)) -> 0 | R168: =IF(P167="",0,VAR(P$10:P168)) -> 0 | V168: =IF(U168="",0,AVERAGE(U$10:U168)) -> 0 | W168: =IF(U167="",0,VAR(U$10:U168)) -> 0 | AA168: =IF(Z168="",0,AVERAGE(Z$10:Z168)) -> 0 | AB168: =IF(Z167="",0,VAR(Z$10:Z168)) -> 0 | AF168: =IF(AE168="",0,AVERAGE(AE$10:AE168)) -> 0 | AG168: =IF(AE167="",0,VAR(AE$10:AE168)) -> 0 | AK168: =IF(AJ168="",0,AVERAGE(AJ$10:AJ168)) -> 0 | AL168: =IF(AJ167="",0,VAR(AJ$10:AJ168)) -> 0 | AP168: =IF(AO168="",0,AVERAGE(AO$10:AO168)) -> 0 | AQ168: =IF(AO167="",0,VAR(AO$10:AO168)) -> 0 | AU168: =IF(AT168="",0,AVERAGE(AT$10:AT168)) -> 0 | AV168: =IF(AT167="",0,VAR(AT$10:AT168)) -> 0 | AZ168: =IF(AY168="",0,AVERAGE(AY$10:AY168)) -> 0 | BA168: =IF(AY167="",0,VAR(AY$10:AY168)) -> 0
F169: =IF(E169="","",+(E169-E168)/E168) ->  | G169: =IF(F169="",0,AVERAGE($F$10:F169)) -> 0 | H169: =IF(F168="",0,VAR($F$10:F169)) -> 0 | L169: =IF(K169="",0,AVERAGE($K$10:K169)) -> 0 | M169: =IF(K168="",0,VAR($K$10:K169)) -> 0 | Q169: =IF(P169="",0,AVERAGE(P$10:P169)) -> 0 | R169: =IF(P168="",0,VAR(P$10:P169)) -> 0 | V169: =IF(U169="",0,AVERAGE(U$10:U169)) -> 0 | W169: =IF(U168="",0,VAR(U$10:U169)) -> 0 | AA169: =IF(Z169="",0,AVERAGE(Z$10:Z169)) -> 0 | AB169: =IF(Z168="",0,VAR(Z$10:Z169)) -> 0 | AF169: =IF(AE169="",0,AVERAGE(AE$10:AE169)) -> 0 | AG169: =IF(AE168="",0,VAR(AE$10:AE169)) -> 0 | AK169: =IF(AJ169="",0,AVERAGE(AJ$10:AJ169)) -> 0 | AL169: =IF(AJ168="",0,VAR(AJ$10:AJ169)) -> 0 | AP169: =IF(AO169="",0,AVERAGE(AO$10:AO169)) -> 0 | AQ169: =IF(AO168="",0,VAR(AO$10:AO169)) -> 0 | AU169: =IF(AT169="",0,AVERAGE(AT$10:AT169)) -> 0 | AV169: =IF(AT168="",0,VAR(AT$10:AT169)) -> 0 | AZ169: =IF(AY169="",0,AVERAGE(AY$10:AY169)) -> 0 | BA169: =IF(AY168="",0,VAR(AY$10:AY169)) -> 0
G170: =IF(F170="",0,AVERAGE($F$10:F170)) -> 0 | H170: =IF(F169="",0,VAR($F$10:F170)) -> 0 | L170: =IF(K170="",0,AVERAGE($K$10:K170)) -> 0 | M170: =IF(K169="",0,VAR($K$10:K170)) -> 0 | Q170: =IF(P170="",0,AVERAGE(P$10:P170)) -> 0 | R170: =IF(P169="",0,VAR(P$10:P170)) -> 0 | V170: =IF(U170="",0,AVERAGE(U$10:U170)) -> 0 | W170: =IF(U169="",0,VAR(U$10:U170)) -> 0 | AA170: =IF(Z170="",0,AVERAGE(Z$10:Z170)) -> 0 | AB170: =IF(Z169="",0,VAR(Z$10:Z170)) -> 0 | AF170: =IF(AE170="",0,AVERAGE(AE$10:AE170)) -> 0 | AG170: =IF(AE169="",0,VAR(AE$10:AE170)) -> 0 | AK170: =IF(AJ170="",0,AVERAGE(AJ$10:AJ170)) -> 0 | AL170: =IF(AJ169="",0,VAR(AJ$10:AJ170)) -> 0 | AP170: =IF(AO170="",0,AVERAGE(AO$10:AO170)) -> 0 | AQ170: =IF(AO169="",0,VAR(AO$10:AO170)) -> 0 | AU170: =IF(AT170="",0,AVERAGE(AT$10:AT170)) -> 0 | AV170: =IF(AT169="",0,VAR(AT$10:AT170)) -> 0 | AZ170: =IF(AY170="",0,AVERAGE(AY$10:AY170)) -> 0 | BA170: =IF(AY169="",0,VAR(AY$10:AY170)) -> 0
G171: =IF(F171="",0,AVERAGE($F$10:F171)) -> 0 | H171: =IF(F170="",0,VAR($F$10:F171)) -> 0 | L171: =IF(K171="",0,AVERAGE($K$10:K171)) -> 0 | M171: =IF(K170="",0,VAR($K$10:K171)) -> 0 | Q171: =IF(P171="",0,AVERAGE(P$10:P171)) -> 0 | R171: =IF(P170="",0,VAR(P$10:P171)) -> 0 | V171: =IF(U171="",0,AVERAGE(U$10:U171)) -> 0 | W171: =IF(U170="",0,VAR(U$10:U171)) -> 0 | AA171: =IF(Z171="",0,AVERAGE(Z$10:Z171)) -> 0 | AB171: =IF(Z170="",0,VAR(Z$10:Z171)) -> 0 | AF171: =IF(AE171="",0,AVERAGE(AE$10:AE171)) -> 0 | AG171: =IF(AE170="",0,VAR(AE$10:AE171)) -> 0 | AK171: =IF(AJ171="",0,AVERAGE(AJ$10:AJ171)) -> 0 | AL171: =IF(AJ170="",0,VAR(AJ$10:AJ171)) -> 0 | AP171: =IF(AO171="",0,AVERAGE(AO$10:AO171)) -> 0 | AQ171: =IF(AO170="",0,VAR(AO$10:AO171)) -> 0 | AU171: =IF(AT171="",0,AVERAGE(AT$10:AT171)) -> 0 | AV171: =IF(AT170="",0,VAR(AT$10:AT171)) -> 0 | AZ171: =IF(AY171="",0,AVERAGE(AY$10:AY171)) -> 0 | BA171: =IF(AY170="",0,VAR(AY$10:AY171)) -> 0
F172: =IF(E172="","",+(E172-E171)/E171) ->  | G172: =IF(F172="",0,AVERAGE($F$10:F172)) -> 0 | H172: =IF(F171="",0,VAR($F$10:F172)) -> 0 | L172: =IF(K172="",0,AVERAGE($K$10:K172)) -> 0 | M172: =IF(K171="",0,VAR($K$10:K172)) -> 0 | Q172: =IF(P172="",0,AVERAGE(P$10:P172)) -> 0 | R172: =IF(P171="",0,VAR(P$10:P172)) -> 0 | V172: =IF(U172="",0,AVERAGE(U$10:U172)) -> 0 | W172: =IF(U171="",0,VAR(U$10:U172)) -> 0 | AA172: =IF(Z172="",0,AVERAGE(Z$10:Z172)) -> 0 | AB172: =IF(Z171="",0,VAR(Z$10:Z172)) -> 0 | AF172: =IF(AE172="",0,AVERAGE(AE$10:AE172)) -> 0 | AG172: =IF(AE171="",0,VAR(AE$10:AE172)) -> 0 | AK172: =IF(AJ172="",0,AVERAGE(AJ$10:AJ172)) -> 0 | AL172: =IF(AJ171="",0,VAR(AJ$10:AJ172)) -> 0 | AP172: =IF(AO172="",0,AVERAGE(AO$10:AO172)) -> 0 | AQ172: =IF(AO171="",0,VAR(AO$10:AO172)) -> 0 | AU172: =IF(AT172="",0,AVERAGE(AT$10:AT172)) -> 0 | AV172: =IF(AT171="",0,VAR(AT$10:AT172)) -> 0 | AZ172: =IF(AY172="",0,AVERAGE(AY$10:AY172)) -> 0 | BA172: =IF(AY171="",0,VAR(AY$10:AY172)) -> 0
G173: =IF(F173="",0,AVERAGE($F$10:F173)) -> 0 | H173: =IF(F172="",0,VAR($F$10:F173)) -> 0 | L173: =IF(K173="",0,AVERAGE($K$10:K173)) -> 0 | M173: =IF(K172="",0,VAR($K$10:K173)) -> 0 | Q173: =IF(P173="",0,AVERAGE(P$10:P173)) -> 0 | R173: =IF(P172="",0,VAR(P$10:P173)) -> 0 | V173: =IF(U173="",0,AVERAGE(U$10:U173)) -> 0 | W173: =IF(U172="",0,VAR(U$10:U173)) -> 0 | AA173: =IF(Z173="",0,AVERAGE(Z$10:Z173)) -> 0 | AB173: =IF(Z172="",0,VAR(Z$10:Z173)) -> 0 | AF173: =IF(AE173="",0,AVERAGE(AE$10:AE173)) -> 0 | AG173: =IF(AE172="",0,VAR(AE$10:AE173)) -> 0 | AK173: =IF(AJ173="",0,AVERAGE(AJ$10:AJ173)) -> 0 | AL173: =IF(AJ172="",0,VAR(AJ$10:AJ173)) -> 0 | AP173: =IF(AO173="",0,AVERAGE(AO$10:AO173)) -> 0 | AQ173: =IF(AO172="",0,VAR(AO$10:AO173)) -> 0 | AU173: =IF(AT173="",0,AVERAGE(AT$10:AT173)) -> 0 | AV173: =IF(AT172="",0,VAR(AT$10:AT173)) -> 0 | AZ173: =IF(AY173="",0,AVERAGE(AY$10:AY173)) -> 0 | BA173: =IF(AY172="",0,VAR(AY$10:AY173)) -> 0
G174: =IF(F174="",0,AVERAGE($F$10:F174)) -> 0 | H174: =IF(F173="",0,VAR($F$10:F174)) -> 0 | L174: =IF(K174="",0,AVERAGE($K$10:K174)) -> 0 | M174: =IF(K173="",0,VAR($K$10:K174)) -> 0 | Q174: =IF(P174="",0,AVERAGE(P$10:P174)) -> 0 | R174: =IF(P173="",0,VAR(P$10:P174)) -> 0 | V174: =IF(U174="",0,AVERAGE(U$10:U174)) -> 0 | W174: =IF(U173="",0,VAR(U$10:U174)) -> 0 | AA174: =IF(Z174="",0,AVERAGE(Z$10:Z174)) -> 0 | AB174: =IF(Z173="",0,VAR(Z$10:Z174)) -> 0 | AF174: =IF(AE174="",0,AVERAGE(AE$10:AE174)) -> 0 | AG174: =IF(AE173="",0,VAR(AE$10:AE174)) -> 0 | AK174: =IF(AJ174="",0,AVERAGE(AJ$10:AJ174)) -> 0 | AL174: =IF(AJ173="",0,VAR(AJ$10:AJ174)) -> 0 | AP174: =IF(AO174="",0,AVERAGE(AO$10:AO174)) -> 0 | AQ174: =IF(AO173="",0,VAR(AO$10:AO174)) -> 0 | AU174: =IF(AT174="",0,AVERAGE(AT$10:AT174)) -> 0 | AV174: =IF(AT173="",0,VAR(AT$10:AT174)) -> 0 | AZ174: =IF(AY174="",0,AVERAGE(AY$10:AY174)) -> 0 | BA174: =IF(AY173="",0,VAR(AY$10:AY174)) -> 0
F175: =IF(E175="","",+(E175-E174)/E174) ->  | G175: =IF(F175="",0,AVERAGE($F$10:F175)) -> 0 | H175: =IF(F174="",0,VAR($F$10:F175)) -> 0 | L175: =IF(K175="",0,AVERAGE($K$10:K175)) -> 0 | M175: =IF(K174="",0,VAR($K$10:K175)) -> 0 | Q175: =IF(P175="",0,AVERAGE(P$10:P175)) -> 0 | R175: =IF(P174="",0,VAR(P$10:P175)) -> 0 | V175: =IF(U175="",0,AVERAGE(U$10:U175)) -> 0 | W175: =IF(U174="",0,VAR(U$10:U175)) -> 0 | AA175: =IF(Z175="",0,AVERAGE(Z$10:Z175)) -> 0 | AB175: =IF(Z174="",0,VAR(Z$10:Z175)) -> 0 | AF175: =IF(AE175="",0,AVERAGE(AE$10:AE175)) -> 0 | AG175: =IF(AE174="",0,VAR(AE$10:AE175)) -> 0 | AK175: =IF(AJ175="",0,AVERAGE(AJ$10:AJ175)) -> 0 | AL175: =IF(AJ174="",0,VAR(AJ$10:AJ175)) -> 0 | AP175: =IF(AO175="",0,AVERAGE(AO$10:AO175)) -> 0 | AQ175: =IF(AO174="",0,VAR(AO$10:AO175)) -> 0 | AU175: =IF(AT175="",0,AVERAGE(AT$10:AT175)) -> 0 | AV175: =IF(AT174="",0,VAR(AT$10:AT175)) -> 0 | AZ175: =IF(AY175="",0,AVERAGE(AY$10:AY175)) -> 0 | BA175: =IF(AY174="",0,VAR(AY$10:AY175)) -> 0
G176: =IF(F176="",0,AVERAGE($F$10:F176)) -> 0 | H176: =IF(F175="",0,VAR($F$10:F176)) -> 0 | L176: =IF(K176="",0,AVERAGE($K$10:K176)) -> 0 | M176: =IF(K175="",0,VAR($K$10:K176)) -> 0 | Q176: =IF(P176="",0,AVERAGE(P$10:P176)) -> 0 | R176: =IF(P175="",0,VAR(P$10:P176)) -> 0 | V176: =IF(U176="",0,AVERAGE(U$10:U176)) -> 0 | W176: =IF(U175="",0,VAR(U$10:U176)) -> 0 | AA176: =IF(Z176="",0,AVERAGE(Z$10:Z176)) -> 0 | AB176: =IF(Z175="",0,VAR(Z$10:Z176)) -> 0 | AF176: =IF(AE176="",0,AVERAGE(AE$10:AE176)) -> 0 | AG176: =IF(AE175="",0,VAR(AE$10:AE176)) -> 0 | AK176: =IF(AJ176="",0,AVERAGE(AJ$10:AJ176)) -> 0 | AL176: =IF(AJ175="",0,VAR(AJ$10:AJ176)) -> 0 | AP176: =IF(AO176="",0,AVERAGE(AO$10:AO176)) -> 0 | AQ176: =IF(AO175="",0,VAR(AO$10:AO176)) -> 0 | AU176: =IF(AT176="",0,AVERAGE(AT$10:AT176)) -> 0 | AV176: =IF(AT175="",0,VAR(AT$10:AT176)) -> 0 | AZ176: =IF(AY176="",0,AVERAGE(AY$10:AY176)) -> 0 | BA176: =IF(AY175="",0,VAR(AY$10:AY176)) -> 0
G177: =IF(F177="",0,AVERAGE($F$10:F177)) -> 0 | H177: =IF(F176="",0,VAR($F$10:F177)) -> 0 | L177: =IF(K177="",0,AVERAGE($K$10:K177)) -> 0 | M177: =IF(K176="",0,VAR($K$10:K177)) -> 0 | Q177: =IF(P177="",0,AVERAGE(P$10:P177)) -> 0 | R177: =IF(P176="",0,VAR(P$10:P177)) -> 0 | V177: =IF(U177="",0,AVERAGE(U$10:U177)) -> 0 | W177: =IF(U176="",0,VAR(U$10:U177)) -> 0 | AA177: =IF(Z177="",0,AVERAGE(Z$10:Z177)) -> 0 | AB177: =IF(Z176="",0,VAR(Z$10:Z177)) -> 0 | AF177: =IF(AE177="",0,AVERAGE(AE$10:AE177)) -> 0 | AG177: =IF(AE176="",0,VAR(AE$10:AE177)) -> 0 | AK177: =IF(AJ177="",0,AVERAGE(AJ$10:AJ177)) -> 0 | AL177: =IF(AJ176="",0,VAR(AJ$10:AJ177)) -> 0 | AP177: =IF(AO177="",0,AVERAGE(AO$10:AO177)) -> 0 | AQ177: =IF(AO176="",0,VAR(AO$10:AO177)) -> 0 | AU177: =IF(AT177="",0,AVERAGE(AT$10:AT177)) -> 0 | AV177: =IF(AT176="",0,VAR(AT$10:AT177)) -> 0 | AZ177: =IF(AY177="",0,AVERAGE(AY$10:AY177)) -> 0 | BA177: =IF(AY176="",0,VAR(AY$10:AY177)) -> 0
F178: =IF(E178="","",+(E178-E177)/E177) ->  | G178: =IF(F178="",0,AVERAGE($F$10:F178)) -> 0 | H178: =IF(F177="",0,VAR($F$10:F178)) -> 0 | L178: =IF(K178="",0,AVERAGE($K$10:K178)) -> 0 | M178: =IF(K177="",0,VAR($K$10:K178)) -> 0 | Q178: =IF(P178="",0,AVERAGE(P$10:P178)) -> 0 | R178: =IF(P177="",0,VAR(P$10:P178)) -> 0 | V178: =IF(U178="",0,AVERAGE(U$10:U178)) -> 0 | W178: =IF(U177="",0,VAR(U$10:U178)) -> 0 | AA178: =IF(Z178="",0,AVERAGE(Z$10:Z178)) -> 0 | AB178: =IF(Z177="",0,VAR(Z$10:Z178)) -> 0 | AF178: =IF(AE178="",0,AVERAGE(AE$10:AE178)) -> 0 | AG178: =IF(AE177="",0,VAR(AE$10:AE178)) -> 0 | AK178: =IF(AJ178="",0,AVERAGE(AJ$10:AJ178)) -> 0 | AL178: =IF(AJ177="",0,VAR(AJ$10:AJ178)) -> 0 | AP178: =IF(AO178="",0,AVERAGE(AO$10:AO178)) -> 0 | AQ178: =IF(AO177="",0,VAR(AO$10:AO178)) -> 0 | AU178: =IF(AT178="",0,AVERAGE(AT$10:AT178)) -> 0 | AV178: =IF(AT177="",0,VAR(AT$10:AT178)) -> 0 | AZ178: =IF(AY178="",0,AVERAGE(AY$10:AY178)) -> 0 | BA178: =IF(AY177="",0,VAR(AY$10:AY178)) -> 0
G179: =IF(F179="",0,AVERAGE($F$10:F179)) -> 0 | H179: =IF(F178="",0,VAR($F$10:F179)) -> 0 | L179: =IF(K179="",0,AVERAGE($K$10:K179)) -> 0 | M179: =IF(K178="",0,VAR($K$10:K179)) -> 0 | Q179: =IF(P179="",0,AVERAGE(P$10:P179)) -> 0 | R179: =IF(P178="",0,VAR(P$10:P179)) -> 0 | V179: =IF(U179="",0,AVERAGE(U$10:U179)) -> 0 | W179: =IF(U178="",0,VAR(U$10:U179)) -> 0 | AA179: =IF(Z179="",0,AVERAGE(Z$10:Z179)) -> 0 | AB179: =IF(Z178="",0,VAR(Z$10:Z179)) -> 0 | AF179: =IF(AE179="",0,AVERAGE(AE$10:AE179)) -> 0 | AG179: =IF(AE178="",0,VAR(AE$10:AE179)) -> 0 | AK179: =IF(AJ179="",0,AVERAGE(AJ$10:AJ179)) -> 0 | AL179: =IF(AJ178="",0,VAR(AJ$10:AJ179)) -> 0 | AP179: =IF(AO179="",0,AVERAGE(AO$10:AO179)) -> 0 | AQ179: =IF(AO178="",0,VAR(AO$10:AO179)) -> 0 | AU179: =IF(AT179="",0,AVERAGE(AT$10:AT179)) -> 0 | AV179: =IF(AT178="",0,VAR(AT$10:AT179)) -> 0 | AZ179: =IF(AY179="",0,AVERAGE(AY$10:AY179)) -> 0 | BA179: =IF(AY178="",0,VAR(AY$10:AY179)) -> 0
G180: =IF(F180="",0,AVERAGE($F$10:F180)) -> 0 | H180: =IF(F179="",0,VAR($F$10:F180)) -> 0 | L180: =IF(K180="",0,AVERAGE($K$10:K180)) -> 0 | M180: =IF(K179="",0,VAR($K$10:K180)) -> 0 | Q180: =IF(P180="",0,AVERAGE(P$10:P180)) -> 0 | R180: =IF(P179="",0,VAR(P$10:P180)) -> 0 | V180: =IF(U180="",0,AVERAGE(U$10:U180)) -> 0 | W180: =IF(U179="",0,VAR(U$10:U180)) -> 0 | AA180: =IF(Z180="",0,AVERAGE(Z$10:Z180)) -> 0 | AB180: =IF(Z179="",0,VAR(Z$10:Z180)) -> 0 | AF180: =IF(AE180="",0,AVERAGE(AE$10:AE180)) -> 0 | AG180: =IF(AE179="",0,VAR(AE$10:AE180)) -> 0 | AK180: =IF(AJ180="",0,AVERAGE(AJ$10:AJ180)) -> 0 | AL180: =IF(AJ179="",0,VAR(AJ$10:AJ180)) -> 0 | AP180: =IF(AO180="",0,AVERAGE(AO$10:AO180)) -> 0 | AQ180: =IF(AO179="",0,VAR(AO$10:AO180)) -> 0 | AU180: =IF(AT180="",0,AVERAGE(AT$10:AT180)) -> 0 | AV180: =IF(AT179="",0,VAR(AT$10:AT180)) -> 0 | AZ180: =IF(AY180="",0,AVERAGE(AY$10:AY180)) -> 0 | BA180: =IF(AY179="",0,VAR(AY$10:AY180)) -> 0
F181: =IF(E181="","",+(E181-E180)/E180) ->  | G181: =IF(F181="",0,AVERAGE($F$10:F181)) -> 0 | H181: =IF(F180="",0,VAR($F$10:F181)) -> 0 | L181: =IF(K181="",0,AVERAGE($K$10:K181)) -> 0 | M181: =IF(K180="",0,VAR($K$10:K181)) -> 0 | Q181: =IF(P181="",0,AVERAGE(P$10:P181)) -> 0 | R181: =IF(P180="",0,VAR(P$10:P181)) -> 0 | V181: =IF(U181="",0,AVERAGE(U$10:U181)) -> 0 | W181: =IF(U180="",0,VAR(U$10:U181)) -> 0 | AA181: =IF(Z181="",0,AVERAGE(Z$10:Z181)) -> 0 | AB181: =IF(Z180="",0,VAR(Z$10:Z181)) -> 0 | AF181: =IF(AE181="",0,AVERAGE(AE$10:AE181)) -> 0 | AG181: =IF(AE180="",0,VAR(AE$10:AE181)) -> 0 | AK181: =IF(AJ181="",0,AVERAGE(AJ$10:AJ181)) -> 0 | AL181: =IF(AJ180="",0,VAR(AJ$10:AJ181)) -> 0 | AP181: =IF(AO181="",0,AVERAGE(AO$10:AO181)) -> 0 | AQ181: =IF(AO180="",0,VAR(AO$10:AO181)) -> 0 | AU181: =IF(AT181="",0,AVERAGE(AT$10:AT181)) -> 0 | AV181: =IF(AT180="",0,VAR(AT$10:AT181)) -> 0 | AZ181: =IF(AY181="",0,AVERAGE(AY$10:AY181)) -> 0 | BA181: =IF(AY180="",0,VAR(AY$10:AY181)) -> 0
G182: =IF(F182="",0,AVERAGE($F$10:F182)) -> 0 | H182: =IF(F181="",0,VAR($F$10:F182)) -> 0 | L182: =IF(K182="",0,AVERAGE($K$10:K182)) -> 0 | M182: =IF(K181="",0,VAR($K$10:K182)) -> 0 | Q182: =IF(P182="",0,AVERAGE(P$10:P182)) -> 0 | R182: =IF(P181="",0,VAR(P$10:P182)) -> 0 | V182: =IF(U182="",0,AVERAGE(U$10:U182)) -> 0 | W182: =IF(U181="",0,VAR(U$10:U182)) -> 0 | AA182: =IF(Z182="",0,AVERAGE(Z$10:Z182)) -> 0 | AB182: =IF(Z181="",0,VAR(Z$10:Z182)) -> 0 | AF182: =IF(AE182="",0,AVERAGE(AE$10:AE182)) -> 0 | AG182: =IF(AE181="",0,VAR(AE$10:AE182)) -> 0 | AK182: =IF(AJ182="",0,AVERAGE(AJ$10:AJ182)) -> 0 | AL182: =IF(AJ181="",0,VAR(AJ$10:AJ182)) -> 0 | AP182: =IF(AO182="",0,AVERAGE(AO$10:AO182)) -> 0 | AQ182: =IF(AO181="",0,VAR(AO$10:AO182)) -> 0 | AU182: =IF(AT182="",0,AVERAGE(AT$10:AT182)) -> 0 | AV182: =IF(AT181="",0,VAR(AT$10:AT182)) -> 0 | AZ182: =IF(AY182="",0,AVERAGE(AY$10:AY182)) -> 0 | BA182: =IF(AY181="",0,VAR(AY$10:AY182)) -> 0
G183: =IF(F183="",0,AVERAGE($F$10:F183)) -> 0 | H183: =IF(F182="",0,VAR($F$10:F183)) -> 0 | L183: =IF(K183="",0,AVERAGE($K$10:K183)) -> 0 | M183: =IF(K182="",0,VAR($K$10:K183)) -> 0 | Q183: =IF(P183="",0,AVERAGE(P$10:P183)) -> 0 | R183: =IF(P182="",0,VAR(P$10:P183)) -> 0 | V183: =IF(U183="",0,AVERAGE(U$10:U183)) -> 0 | W183: =IF(U182="",0,VAR(U$10:U183)) -> 0 | AA183: =IF(Z183="",0,AVERAGE(Z$10:Z183)) -> 0 | AB183: =IF(Z182="",0,VAR(Z$10:Z183)) -> 0 | AF183: =IF(AE183="",0,AVERAGE(AE$10:AE183)) -> 0 | AG183: =IF(AE182="",0,VAR(AE$10:AE183)) -> 0 | AK183: =IF(AJ183="",0,AVERAGE(AJ$10:AJ183)) -> 0 | AL183: =IF(AJ182="",0,VAR(AJ$10:AJ183)) -> 0 | AP183: =IF(AO183="",0,AVERAGE(AO$10:AO183)) -> 0 | AQ183: =IF(AO182="",0,VAR(AO$10:AO183)) -> 0 | AU183: =IF(AT183="",0,AVERAGE(AT$10:AT183)) -> 0 | AV183: =IF(AT182="",0,VAR(AT$10:AT183)) -> 0 | AZ183: =IF(AY183="",0,AVERAGE(AY$10:AY183)) -> 0 | BA183: =IF(AY182="",0,VAR(AY$10:AY183)) -> 0
F184: =IF(E184="","",+(E184-E183)/E183) ->  | G184: =IF(F184="",0,AVERAGE($F$10:F184)) -> 0 | H184: =IF(F183="",0,VAR($F$10:F184)) -> 0 | L184: =IF(K184="",0,AVERAGE($K$10:K184)) -> 0 | M184: =IF(K183="",0,VAR($K$10:K184)) -> 0 | Q184: =IF(P184="",0,AVERAGE(P$10:P184)) -> 0 | R184: =IF(P183="",0,VAR(P$10:P184)) -> 0 | V184: =IF(U184="",0,AVERAGE(U$10:U184)) -> 0 | W184: =IF(U183="",0,VAR(U$10:U184)) -> 0 | AA184: =IF(Z184="",0,AVERAGE(Z$10:Z184)) -> 0 | AB184: =IF(Z183="",0,VAR(Z$10:Z184)) -> 0 | AF184: =IF(AE184="",0,AVERAGE(AE$10:AE184)) -> 0 | AG184: =IF(AE183="",0,VAR(AE$10:AE184)) -> 0 | AK184: =IF(AJ184="",0,AVERAGE(AJ$10:AJ184)) -> 0 | AL184: =IF(AJ183="",0,VAR(AJ$10:AJ184)) -> 0 | AP184: =IF(AO184="",0,AVERAGE(AO$10:AO184)) -> 0 | AQ184: =IF(AO183="",0,VAR(AO$10:AO184)) -> 0 | AU184: =IF(AT184="",0,AVERAGE(AT$10:AT184)) -> 0 | AV184: =IF(AT183="",0,VAR(AT$10:AT184)) -> 0 | AZ184: =IF(AY184="",0,AVERAGE(AY$10:AY184)) -> 0 | BA184: =IF(AY183="",0,VAR(AY$10:AY184)) -> 0
G185: =IF(F185="",0,AVERAGE($F$10:F185)) -> 0 | H185: =IF(F184="",0,VAR($F$10:F185)) -> 0 | L185: =IF(K185="",0,AVERAGE($K$10:K185)) -> 0 | M185: =IF(K184="",0,VAR($K$10:K185)) -> 0 | Q185: =IF(P185="",0,AVERAGE(P$10:P185)) -> 0 | R185: =IF(P184="",0,VAR(P$10:P185)) -> 0 | V185: =IF(U185="",0,AVERAGE(U$10:U185)) -> 0 | W185: =IF(U184="",0,VAR(U$10:U185)) -> 0 | AA185: =IF(Z185="",0,AVERAGE(Z$10:Z185)) -> 0 | AB185: =IF(Z184="",0,VAR(Z$10:Z185)) -> 0 | AF185: =IF(AE185="",0,AVERAGE(AE$10:AE185)) -> 0 | AG185: =IF(AE184="",0,VAR(AE$10:AE185)) -> 0 | AK185: =IF(AJ185="",0,AVERAGE(AJ$10:AJ185)) -> 0 | AL185: =IF(AJ184="",0,VAR(AJ$10:AJ185)) -> 0 | AP185: =IF(AO185="",0,AVERAGE(AO$10:AO185)) -> 0 | AQ185: =IF(AO184="",0,VAR(AO$10:AO185)) -> 0 | AU185: =IF(AT185="",0,AVERAGE(AT$10:AT185)) -> 0 | AV185: =IF(AT184="",0,VAR(AT$10:AT185)) -> 0 | AZ185: =IF(AY185="",0,AVERAGE(AY$10:AY185)) -> 0 | BA185: =IF(AY184="",0,VAR(AY$10:AY185)) -> 0
G186: =IF(F186="",0,AVERAGE($F$10:F186)) -> 0 | H186: =IF(F185="",0,VAR($F$10:F186)) -> 0 | L186: =IF(K186="",0,AVERAGE($K$10:K186)) -> 0 | M186: =IF(K185="",0,VAR($K$10:K186)) -> 0 | Q186: =IF(P186="",0,AVERAGE(P$10:P186)) -> 0 | R186: =IF(P185="",0,VAR(P$10:P186)) -> 0 | V186: =IF(U186="",0,AVERAGE(U$10:U186)) -> 0 | W186: =IF(U185="",0,VAR(U$10:U186)) -> 0 | AA186: =IF(Z186="",0,AVERAGE(Z$10:Z186)) -> 0 | AB186: =IF(Z185="",0,VAR(Z$10:Z186)) -> 0 | AF186: =IF(AE186="",0,AVERAGE(AE$10:AE186)) -> 0 | AG186: =IF(AE185="",0,VAR(AE$10:AE186)) -> 0 | AK186: =IF(AJ186="",0,AVERAGE(AJ$10:AJ186)) -> 0 | AL186: =IF(AJ185="",0,VAR(AJ$10:AJ186)) -> 0 | AP186: =IF(AO186="",0,AVERAGE(AO$10:AO186)) -> 0 | AQ186: =IF(AO185="",0,VAR(AO$10:AO186)) -> 0 | AU186: =IF(AT186="",0,AVERAGE(AT$10:AT186)) -> 0 | AV186: =IF(AT185="",0,VAR(AT$10:AT186)) -> 0 | AZ186: =IF(AY186="",0,AVERAGE(AY$10:AY186)) -> 0 | BA186: =IF(AY185="",0,VAR(AY$10:AY186)) -> 0
F187: =IF(E187="","",+(E187-E186)/E186) ->  | G187: =IF(F187="",0,AVERAGE($F$10:F187)) -> 0 | H187: =IF(F186="",0,VAR($F$10:F187)) -> 0 | L187: =IF(K187="",0,AVERAGE($K$10:K187)) -> 0 | M187: =IF(K186="",0,VAR($K$10:K187)) -> 0 | Q187: =IF(P187="",0,AVERAGE(P$10:P187)) -> 0 | R187: =IF(P186="",0,VAR(P$10:P187)) -> 0 | V187: =IF(U187="",0,AVERAGE(U$10:U187)) -> 0 | W187: =IF(U186="",0,VAR(U$10:U187)) -> 0 | AA187: =IF(Z187="",0,AVERAGE(Z$10:Z187)) -> 0 | AB187: =IF(Z186="",0,VAR(Z$10:Z187)) -> 0 | AF187: =IF(AE187="",0,AVERAGE(AE$10:AE187)) -> 0 | AG187: =IF(AE186="",0,VAR(AE$10:AE187)) -> 0 | AK187: =IF(AJ187="",0,AVERAGE(AJ$10:AJ187)) -> 0 | AL187: =IF(AJ186="",0,VAR(AJ$10:AJ187)) -> 0 | AP187: =IF(AO187="",0,AVERAGE(AO$10:AO187)) -> 0 | AQ187: =IF(AO186="",0,VAR(AO$10:AO187)) -> 0 | AU187: =IF(AT187="",0,AVERAGE(AT$10:AT187)) -> 0 | AV187: =IF(AT186="",0,VAR(AT$10:AT187)) -> 0 | AZ187: =IF(AY187="",0,AVERAGE(AY$10:AY187)) -> 0 | BA187: =IF(AY186="",0,VAR(AY$10:AY187)) -> 0
G188: =IF(F188="",0,AVERAGE($F$10:F188)) -> 0 | H188: =IF(F187="",0,VAR($F$10:F188)) -> 0 | L188: =IF(K188="",0,AVERAGE($K$10:K188)) -> 0 | M188: =IF(K187="",0,VAR($K$10:K188)) -> 0 | Q188: =IF(P188="",0,AVERAGE(P$10:P188)) -> 0 | R188: =IF(P187="",0,VAR(P$10:P188)) -> 0 | V188: =IF(U188="",0,AVERAGE(U$10:U188)) -> 0 | W188: =IF(U187="",0,VAR(U$10:U188)) -> 0 | AA188: =IF(Z188="",0,AVERAGE(Z$10:Z188)) -> 0 | AB188: =IF(Z187="",0,VAR(Z$10:Z188)) -> 0 | AF188: =IF(AE188="",0,AVERAGE(AE$10:AE188)) -> 0 | AG188: =IF(AE187="",0,VAR(AE$10:AE188)) -> 0 | AK188: =IF(AJ188="",0,AVERAGE(AJ$10:AJ188)) -> 0 | AL188: =IF(AJ187="",0,VAR(AJ$10:AJ188)) -> 0 | AP188: =IF(AO188="",0,AVERAGE(AO$10:AO188)) -> 0 | AQ188: =IF(AO187="",0,VAR(AO$10:AO188)) -> 0 | AU188: =IF(AT188="",0,AVERAGE(AT$10:AT188)) -> 0 | AV188: =IF(AT187="",0,VAR(AT$10:AT188)) -> 0 | AZ188: =IF(AY188="",0,AVERAGE(AY$10:AY188)) -> 0 | BA188: =IF(AY187="",0,VAR(AY$10:AY188)) -> 0
G189: =IF(F189="",0,AVERAGE($F$10:F189)) -> 0 | H189: =IF(F188="",0,VAR($F$10:F189)) -> 0 | L189: =IF(K189="",0,AVERAGE($K$10:K189)) -> 0 | M189: =IF(K188="",0,VAR($K$10:K189)) -> 0 | Q189: =IF(P189="",0,AVERAGE(P$10:P189)) -> 0 | R189: =IF(P188="",0,VAR(P$10:P189)) -> 0 | V189: =IF(U189="",0,AVERAGE(U$10:U189)) -> 0 | W189: =IF(U188="",0,VAR(U$10:U189)) -> 0 | AA189: =IF(Z189="",0,AVERAGE(Z$10:Z189)) -> 0 | AB189: =IF(Z188="",0,VAR(Z$10:Z189)) -> 0 | AF189: =IF(AE189="",0,AVERAGE(AE$10:AE189)) -> 0 | AG189: =IF(AE188="",0,VAR(AE$10:AE189)) -> 0 | AK189: =IF(AJ189="",0,AVERAGE(AJ$10:AJ189)) -> 0 | AL189: =IF(AJ188="",0,VAR(AJ$10:AJ189)) -> 0 | AP189: =IF(AO189="",0,AVERAGE(AO$10:AO189)) -> 0 | AQ189: =IF(AO188="",0,VAR(AO$10:AO189)) -> 0 | AU189: =IF(AT189="",0,AVERAGE(AT$10:AT189)) -> 0 | AV189: =IF(AT188="",0,VAR(AT$10:AT189)) -> 0 | AZ189: =IF(AY189="",0,AVERAGE(AY$10:AY189)) -> 0 | BA189: =IF(AY188="",0,VAR(AY$10:AY189)) -> 0
F190: =IF(E190="","",+(E190-E189)/E189) ->  | G190: =IF(F190="",0,AVERAGE($F$10:F190)) -> 0 | H190: =IF(F189="",0,VAR($F$10:F190)) -> 0 | L190: =IF(K190="",0,AVERAGE($K$10:K190)) -> 0 | M190: =IF(K189="",0,VAR($K$10:K190)) -> 0 | Q190: =IF(P190="",0,AVERAGE(P$10:P190)) -> 0 | R190: =IF(P189="",0,VAR(P$10:P190)) -> 0 | V190: =IF(U190="",0,AVERAGE(U$10:U190)) -> 0 | W190: =IF(U189="",0,VAR(U$10:U190)) -> 0 | AA190: =IF(Z190="",0,AVERAGE(Z$10:Z190)) -> 0 | AB190: =IF(Z189="",0,VAR(Z$10:Z190)) -> 0 | AF190: =IF(AE190="",0,AVERAGE(AE$10:AE190)) -> 0 | AG190: =IF(AE189="",0,VAR(AE$10:AE190)) -> 0 | AK190: =IF(AJ190="",0,AVERAGE(AJ$10:AJ190)) -> 0 | AL190: =IF(AJ189="",0,VAR(AJ$10:AJ190)) -> 0 | AP190: =IF(AO190="",0,AVERAGE(AO$10:AO190)) -> 0 | AQ190: =IF(AO189="",0,VAR(AO$10:AO190)) -> 0 | AU190: =IF(AT190="",0,AVERAGE(AT$10:AT190)) -> 0 | AV190: =IF(AT189="",0,VAR(AT$10:AT190)) -> 0 | AZ190: =IF(AY190="",0,AVERAGE(AY$10:AY190)) -> 0 | BA190: =IF(AY189="",0,VAR(AY$10:AY190)) -> 0
G191: =IF(F191="",0,AVERAGE($F$10:F191)) -> 0 | H191: =IF(F190="",0,VAR($F$10:F191)) -> 0 | L191: =IF(K191="",0,AVERAGE($K$10:K191)) -> 0 | M191: =IF(K190="",0,VAR($K$10:K191)) -> 0 | Q191: =IF(P191="",0,AVERAGE(P$10:P191)) -> 0 | R191: =IF(P190="",0,VAR(P$10:P191)) -> 0 | V191: =IF(U191="",0,AVERAGE(U$10:U191)) -> 0 | W191: =IF(U190="",0,VAR(U$10:U191)) -> 0 | AA191: =IF(Z191="",0,AVERAGE(Z$10:Z191)) -> 0 | AB191: =IF(Z190="",0,VAR(Z$10:Z191)) -> 0 | AF191: =IF(AE191="",0,AVERAGE(AE$10:AE191)) -> 0 | AG191: =IF(AE190="",0,VAR(AE$10:AE191)) -> 0 | AK191: =IF(AJ191="",0,AVERAGE(AJ$10:AJ191)) -> 0 | AL191: =IF(AJ190="",0,VAR(AJ$10:AJ191)) -> 0 | AP191: =IF(AO191="",0,AVERAGE(AO$10:AO191)) -> 0 | AQ191: =IF(AO190="",0,VAR(AO$10:AO191)) -> 0 | AU191: =IF(AT191="",0,AVERAGE(AT$10:AT191)) -> 0 | AV191: =IF(AT190="",0,VAR(AT$10:AT191)) -> 0 | AZ191: =IF(AY191="",0,AVERAGE(AY$10:AY191)) -> 0 | BA191: =IF(AY190="",0,VAR(AY$10:AY191)) -> 0
G192: =IF(F192="",0,AVERAGE($F$10:F192)) -> 0 | H192: =IF(F191="",0,VAR($F$10:F192)) -> 0 | L192: =IF(K192="",0,AVERAGE($K$10:K192)) -> 0 | M192: =IF(K191="",0,VAR($K$10:K192)) -> 0 | Q192: =IF(P192="",0,AVERAGE(P$10:P192)) -> 0 | R192: =IF(P191="",0,VAR(P$10:P192)) -> 0 | V192: =IF(U192="",0,AVERAGE(U$10:U192)) -> 0 | W192: =IF(U191="",0,VAR(U$10:U192)) -> 0 | AA192: =IF(Z192="",0,AVERAGE(Z$10:Z192)) -> 0 | AB192: =IF(Z191="",0,VAR(Z$10:Z192)) -> 0 | AF192: =IF(AE192="",0,AVERAGE(AE$10:AE192)) -> 0 | AG192: =IF(AE191="",0,VAR(AE$10:AE192)) -> 0 | AK192: =IF(AJ192="",0,AVERAGE(AJ$10:AJ192)) -> 0 | AL192: =IF(AJ191="",0,VAR(AJ$10:AJ192)) -> 0 | AP192: =IF(AO192="",0,AVERAGE(AO$10:AO192)) -> 0 | AQ192: =IF(AO191="",0,VAR(AO$10:AO192)) -> 0 | AU192: =IF(AT192="",0,AVERAGE(AT$10:AT192)) -> 0 | AV192: =IF(AT191="",0,VAR(AT$10:AT192)) -> 0 | AZ192: =IF(AY192="",0,AVERAGE(AY$10:AY192)) -> 0 | BA192: =IF(AY191="",0,VAR(AY$10:AY192)) -> 0
F193: =IF(E193="","",+(E193-E192)/E192) ->  | G193: =IF(F193="",0,AVERAGE($F$10:F193)) -> 0 | H193: =IF(F192="",0,VAR($F$10:F193)) -> 0 | L193: =IF(K193="",0,AVERAGE($K$10:K193)) -> 0 | M193: =IF(K192="",0,VAR($K$10:K193)) -> 0 | Q193: =IF(P193="",0,AVERAGE(P$10:P193)) -> 0 | R193: =IF(P192="",0,VAR(P$10:P193)) -> 0 | V193: =IF(U193="",0,AVERAGE(U$10:U193)) -> 0 | W193: =IF(U192="",0,VAR(U$10:U193)) -> 0 | AA193: =IF(Z193="",0,AVERAGE(Z$10:Z193)) -> 0 | AB193: =IF(Z192="",0,VAR(Z$10:Z193)) -> 0 | AF193: =IF(AE193="",0,AVERAGE(AE$10:AE193)) -> 0 | AG193: =IF(AE192="",0,VAR(AE$10:AE193)) -> 0 | AK193: =IF(AJ193="",0,AVERAGE(AJ$10:AJ193)) -> 0 | AL193: =IF(AJ192="",0,VAR(AJ$10:AJ193)) -> 0 | AP193: =IF(AO193="",0,AVERAGE(AO$10:AO193)) -> 0 | AQ193: =IF(AO192="",0,VAR(AO$10:AO193)) -> 0 | AU193: =IF(AT193="",0,AVERAGE(AT$10:AT193)) -> 0 | AV193: =IF(AT192="",0,VAR(AT$10:AT193)) -> 0 | AZ193: =IF(AY193="",0,AVERAGE(AY$10:AY193)) -> 0 | BA193: =IF(AY192="",0,VAR(AY$10:AY193)) -> 0
G194: =IF(F194="",0,AVERAGE($F$10:F194)) -> 0 | H194: =IF(F193="",0,VAR($F$10:F194)) -> 0 | L194: =IF(K194="",0,AVERAGE($K$10:K194)) -> 0 | M194: =IF(K193="",0,VAR($K$10:K194)) -> 0 | Q194: =IF(P194="",0,AVERAGE(P$10:P194)) -> 0 | R194: =IF(P193="",0,VAR(P$10:P194)) -> 0 | V194: =IF(U194="",0,AVERAGE(U$10:U194)) -> 0 | W194: =IF(U193="",0,VAR(U$10:U194)) -> 0 | AA194: =IF(Z194="",0,AVERAGE(Z$10:Z194)) -> 0 | AB194: =IF(Z193="",0,VAR(Z$10:Z194)) -> 0 | AF194: =IF(AE194="",0,AVERAGE(AE$10:AE194)) -> 0 | AG194: =IF(AE193="",0,VAR(AE$10:AE194)) -> 0 | AK194: =IF(AJ194="",0,AVERAGE(AJ$10:AJ194)) -> 0 | AL194: =IF(AJ193="",0,VAR(AJ$10:AJ194)) -> 0 | AP194: =IF(AO194="",0,AVERAGE(AO$10:AO194)) -> 0 | AQ194: =IF(AO193="",0,VAR(AO$10:AO194)) -> 0 | AU194: =IF(AT194="",0,AVERAGE(AT$10:AT194)) -> 0 | AV194: =IF(AT193="",0,VAR(AT$10:AT194)) -> 0 | AZ194: =IF(AY194="",0,AVERAGE(AY$10:AY194)) -> 0 | BA194: =IF(AY193="",0,VAR(AY$10:AY194)) -> 0
G195: =IF(F195="",0,AVERAGE($F$10:F195)) -> 0 | H195: =IF(F194="",0,VAR($F$10:F195)) -> 0 | L195: =IF(K195="",0,AVERAGE($K$10:K195)) -> 0 | M195: =IF(K194="",0,VAR($K$10:K195)) -> 0 | Q195: =IF(P195="",0,AVERAGE(P$10:P195)) -> 0 | R195: =IF(P194="",0,VAR(P$10:P195)) -> 0 | V195: =IF(U195="",0,AVERAGE(U$10:U195)) -> 0 | W195: =IF(U194="",0,VAR(U$10:U195)) -> 0 | AA195: =IF(Z195="",0,AVERAGE(Z$10:Z195)) -> 0 | AB195: =IF(Z194="",0,VAR(Z$10:Z195)) -> 0 | AF195: =IF(AE195="",0,AVERAGE(AE$10:AE195)) -> 0 | AG195: =IF(AE194="",0,VAR(AE$10:AE195)) -> 0 | AK195: =IF(AJ195="",0,AVERAGE(AJ$10:AJ195)) -> 0 | AL195: =IF(AJ194="",0,VAR(AJ$10:AJ195)) -> 0 | AP195: =IF(AO195="",0,AVERAGE(AO$10:AO195)) -> 0 | AQ195: =IF(AO194="",0,VAR(AO$10:AO195)) -> 0 | AU195: =IF(AT195="",0,AVERAGE(AT$10:AT195)) -> 0 | AV195: =IF(AT194="",0,VAR(AT$10:AT195)) -> 0 | AZ195: =IF(AY195="",0,AVERAGE(AY$10:AY195)) -> 0 | BA195: =IF(AY194="",0,VAR(AY$10:AY195)) -> 0
F196: =IF(E196="","",+(E196-E195)/E195) ->  | G196: =IF(F196="",0,AVERAGE($F$10:F196)) -> 0 | H196: =IF(F195="",0,VAR($F$10:F196)) -> 0 | L196: =IF(K196="",0,AVERAGE($K$10:K196)) -> 0 | M196: =IF(K195="",0,VAR($K$10:K196)) -> 0 | Q196: =IF(P196="",0,AVERAGE(P$10:P196)) -> 0 | R196: =IF(P195="",0,VAR(P$10:P196)) -> 0 | V196: =IF(U196="",0,AVERAGE(U$10:U196)) -> 0 | W196: =IF(U195="",0,VAR(U$10:U196)) -> 0 | AA196: =IF(Z196="",0,AVERAGE(Z$10:Z196)) -> 0 | AB196: =IF(Z195="",0,VAR(Z$10:Z196)) -> 0 | AF196: =IF(AE196="",0,AVERAGE(AE$10:AE196)) -> 0 | AG196: =IF(AE195="",0,VAR(AE$10:AE196)) -> 0 | AK196: =IF(AJ196="",0,AVERAGE(AJ$10:AJ196)) -> 0 | AL196: =IF(AJ195="",0,VAR(AJ$10:AJ196)) -> 0 | AP196: =IF(AO196="",0,AVERAGE(AO$10:AO196)) -> 0 | AQ196: =IF(AO195="",0,VAR(AO$10:AO196)) -> 0 | AU196: =IF(AT196="",0,AVERAGE(AT$10:AT196)) -> 0 | AV196: =IF(AT195="",0,VAR(AT$10:AT196)) -> 0 | AZ196: =IF(AY196="",0,AVERAGE(AY$10:AY196)) -> 0 | BA196: =IF(AY195="",0,VAR(AY$10:AY196)) -> 0
G197: =IF(F197="",0,AVERAGE($F$10:F197)) -> 0 | H197: =IF(F196="",0,VAR($F$10:F197)) -> 0 | L197: =IF(K197="",0,AVERAGE($K$10:K197)) -> 0 | M197: =IF(K196="",0,VAR($K$10:K197)) -> 0 | Q197: =IF(P197="",0,AVERAGE(P$10:P197)) -> 0 | R197: =IF(P196="",0,VAR(P$10:P197)) -> 0 | V197: =IF(U197="",0,AVERAGE(U$10:U197)) -> 0 | W197: =IF(U196="",0,VAR(U$10:U197)) -> 0 | AA197: =IF(Z197="",0,AVERAGE(Z$10:Z197)) -> 0 | AB197: =IF(Z196="",0,VAR(Z$10:Z197)) -> 0 | AF197: =IF(AE197="",0,AVERAGE(AE$10:AE197)) -> 0 | AG197: =IF(AE196="",0,VAR(AE$10:AE197)) -> 0 | AK197: =IF(AJ197="",0,AVERAGE(AJ$10:AJ197)) -> 0 | AL197: =IF(AJ196="",0,VAR(AJ$10:AJ197)) -> 0 | AP197: =IF(AO197="",0,AVERAGE(AO$10:AO197)) -> 0 | AQ197: =IF(AO196="",0,VAR(AO$10:AO197)) -> 0 | AU197: =IF(AT197="",0,AVERAGE(AT$10:AT197)) -> 0 | AV197: =IF(AT196="",0,VAR(AT$10:AT197)) -> 0 | AZ197: =IF(AY197="",0,AVERAGE(AY$10:AY197)) -> 0 | BA197: =IF(AY196="",0,VAR(AY$10:AY197)) -> 0
G198: =IF(F198="",0,AVERAGE($F$10:F198)) -> 0 | H198: =IF(F197="",0,VAR($F$10:F198)) -> 0 | L198: =IF(K198="",0,AVERAGE($K$10:K198)) -> 0 | M198: =IF(K197="",0,VAR($K$10:K198)) -> 0 | Q198: =IF(P198="",0,AVERAGE(P$10:P198)) -> 0 | R198: =IF(P197="",0,VAR(P$10:P198)) -> 0 | V198: =IF(U198="",0,AVERAGE(U$10:U198)) -> 0 | W198: =IF(U197="",0,VAR(U$10:U198)) -> 0 | AA198: =IF(Z198="",0,AVERAGE(Z$10:Z198)) -> 0 | AB198: =IF(Z197="",0,VAR(Z$10:Z198)) -> 0 | AF198: =IF(AE198="",0,AVERAGE(AE$10:AE198)) -> 0 | AG198: =IF(AE197="",0,VAR(AE$10:AE198)) -> 0 | AK198: =IF(AJ198="",0,AVERAGE(AJ$10:AJ198)) -> 0 | AL198: =IF(AJ197="",0,VAR(AJ$10:AJ198)) -> 0 | AP198: =IF(AO198="",0,AVERAGE(AO$10:AO198)) -> 0 | AQ198: =IF(AO197="",0,VAR(AO$10:AO198)) -> 0 | AU198: =IF(AT198="",0,AVERAGE(AT$10:AT198)) -> 0 | AV198: =IF(AT197="",0,VAR(AT$10:AT198)) -> 0 | AZ198: =IF(AY198="",0,AVERAGE(AY$10:AY198)) -> 0 | BA198: =IF(AY197="",0,VAR(AY$10:AY198)) -> 0
F199: =IF(E199="","",+(E199-E198)/E198) ->  | G199: =IF(F199="",0,AVERAGE($F$10:F199)) -> 0 | H199: =IF(F198="",0,VAR($F$10:F199)) -> 0 | L199: =IF(K199="",0,AVERAGE($K$10:K199)) -> 0 | M199: =IF(K198="",0,VAR($K$10:K199)) -> 0 | Q199: =IF(P199="",0,AVERAGE(P$10:P199)) -> 0 | R199: =IF(P198="",0,VAR(P$10:P199)) -> 0 | V199: =IF(U199="",0,AVERAGE(U$10:U199)) -> 0 | W199: =IF(U198="",0,VAR(U$10:U199)) -> 0 | AA199: =IF(Z199="",0,AVERAGE(Z$10:Z199)) -> 0 | AB199: =IF(Z198="",0,VAR(Z$10:Z199)) -> 0 | AF199: =IF(AE199="",0,AVERAGE(AE$10:AE199)) -> 0 | AG199: =IF(AE198="",0,VAR(AE$10:AE199)) -> 0 | AK199: =IF(AJ199="",0,AVERAGE(AJ$10:AJ199)) -> 0 | AL199: =IF(AJ198="",0,VAR(AJ$10:AJ199)) -> 0 | AP199: =IF(AO199="",0,AVERAGE(AO$10:AO199)) -> 0 | AQ199: =IF(AO198="",0,VAR(AO$10:AO199)) -> 0 | AU199: =IF(AT199="",0,AVERAGE(AT$10:AT199)) -> 0 | AV199: =IF(AT198="",0,VAR(AT$10:AT199)) -> 0 | AZ199: =IF(AY199="",0,AVERAGE(AY$10:AY199)) -> 0 | BA199: =IF(AY198="",0,VAR(AY$10:AY199)) -> 0
G200: =IF(F200="",0,AVERAGE($F$10:F200)) -> 0 | H200: =IF(F199="",0,VAR($F$10:F200)) -> 0 | L200: =IF(K200="",0,AVERAGE($K$10:K200)) -> 0 | M200: =IF(K199="",0,VAR($K$10:K200)) -> 0 | Q200: =IF(P200="",0,AVERAGE(P$10:P200)) -> 0 | R200: =IF(P199="",0,VAR(P$10:P200)) -> 0 | V200: =IF(U200="",0,AVERAGE(U$10:U200)) -> 0 | W200: =IF(U199="",0,VAR(U$10:U200)) -> 0 | AA200: =IF(Z200="",0,AVERAGE(Z$10:Z200)) -> 0 | AB200: =IF(Z199="",0,VAR(Z$10:Z200)) -> 0 | AF200: =IF(AE200="",0,AVERAGE(AE$10:AE200)) -> 0 | AG200: =IF(AE199="",0,VAR(AE$10:AE200)) -> 0 | AK200: =IF(AJ200="",0,AVERAGE(AJ$10:AJ200)) -> 0 | AL200: =IF(AJ199="",0,VAR(AJ$10:AJ200)) -> 0 | AP200: =IF(AO200="",0,AVERAGE(AO$10:AO200)) -> 0 | AQ200: =IF(AO199="",0,VAR(AO$10:AO200)) -> 0 | AU200: =IF(AT200="",0,AVERAGE(AT$10:AT200)) -> 0 | AV200: =IF(AT199="",0,VAR(AT$10:AT200)) -> 0 | AZ200: =IF(AY200="",0,AVERAGE(AY$10:AY200)) -> 0 | BA200: =IF(AY199="",0,VAR(AY$10:AY200)) -> 0
G201: =IF(F201="",0,AVERAGE($F$10:F201)) -> 0 | H201: =IF(F200="",0,VAR($F$10:F201)) -> 0 | L201: =IF(K201="",0,AVERAGE($K$10:K201)) -> 0 | M201: =IF(K200="",0,VAR($K$10:K201)) -> 0 | Q201: =IF(P201="",0,AVERAGE(P$10:P201)) -> 0 | R201: =IF(P200="",0,VAR(P$10:P201)) -> 0 | V201: =IF(U201="",0,AVERAGE(U$10:U201)) -> 0 | W201: =IF(U200="",0,VAR(U$10:U201)) -> 0 | AA201: =IF(Z201="",0,AVERAGE(Z$10:Z201)) -> 0 | AB201: =IF(Z200="",0,VAR(Z$10:Z201)) -> 0 | AF201: =IF(AE201="",0,AVERAGE(AE$10:AE201)) -> 0 | AG201: =IF(AE200="",0,VAR(AE$10:AE201)) -> 0 | AK201: =IF(AJ201="",0,AVERAGE(AJ$10:AJ201)) -> 0 | AL201: =IF(AJ200="",0,VAR(AJ$10:AJ201)) -> 0 | AP201: =IF(AO201="",0,AVERAGE(AO$10:AO201)) -> 0 | AQ201: =IF(AO200="",0,VAR(AO$10:AO201)) -> 0 | AU201: =IF(AT201="",0,AVERAGE(AT$10:AT201)) -> 0 | AV201: =IF(AT200="",0,VAR(AT$10:AT201)) -> 0 | AZ201: =IF(AY201="",0,AVERAGE(AY$10:AY201)) -> 0 | BA201: =IF(AY200="",0,VAR(AY$10:AY201)) -> 0
F202: =IF(E202="","",+(E202-E201)/E201) ->  | G202: =IF(F202="",0,AVERAGE($F$10:F202)) -> 0 | H202: =IF(F201="",0,VAR($F$10:F202)) -> 0 | L202: =IF(K202="",0,AVERAGE($K$10:K202)) -> 0 | M202: =IF(K201="",0,VAR($K$10:K202)) -> 0 | Q202: =IF(P202="",0,AVERAGE(P$10:P202)) -> 0 | R202: =IF(P201="",0,VAR(P$10:P202)) -> 0 | V202: =IF(U202="",0,AVERAGE(U$10:U202)) -> 0 | W202: =IF(U201="",0,VAR(U$10:U202)) -> 0 | AA202: =IF(Z202="",0,AVERAGE(Z$10:Z202)) -> 0 | AB202: =IF(Z201="",0,VAR(Z$10:Z202)) -> 0 | AF202: =IF(AE202="",0,AVERAGE(AE$10:AE202)) -> 0 | AG202: =IF(AE201="",0,VAR(AE$10:AE202)) -> 0 | AK202: =IF(AJ202="",0,AVERAGE(AJ$10:AJ202)) -> 0 | AL202: =IF(AJ201="",0,VAR(AJ$10:AJ202)) -> 0 | AP202: =IF(AO202="",0,AVERAGE(AO$10:AO202)) -> 0 | AQ202: =IF(AO201="",0,VAR(AO$10:AO202)) -> 0 | AU202: =IF(AT202="",0,AVERAGE(AT$10:AT202)) -> 0 | AV202: =IF(AT201="",0,VAR(AT$10:AT202)) -> 0 | AZ202: =IF(AY202="",0,AVERAGE(AY$10:AY202)) -> 0 | BA202: =IF(AY201="",0,VAR(AY$10:AY202)) -> 0
G203: =IF(F203="",0,AVERAGE($F$10:F203)) -> 0 | H203: =IF(F202="",0,VAR($F$10:F203)) -> 0 | L203: =IF(K203="",0,AVERAGE($K$10:K203)) -> 0 | M203: =IF(K202="",0,VAR($K$10:K203)) -> 0 | Q203: =IF(P203="",0,AVERAGE(P$10:P203)) -> 0 | R203: =IF(P202="",0,VAR(P$10:P203)) -> 0 | V203: =IF(U203="",0,AVERAGE(U$10:U203)) -> 0 | W203: =IF(U202="",0,VAR(U$10:U203)) -> 0 | AA203: =IF(Z203="",0,AVERAGE(Z$10:Z203)) -> 0 | AB203: =IF(Z202="",0,VAR(Z$10:Z203)) -> 0 | AF203: =IF(AE203="",0,AVERAGE(AE$10:AE203)) -> 0 | AG203: =IF(AE202="",0,VAR(AE$10:AE203)) -> 0 | AK203: =IF(AJ203="",0,AVERAGE(AJ$10:AJ203)) -> 0 | AL203: =IF(AJ202="",0,VAR(AJ$10:AJ203)) -> 0 | AP203: =IF(AO203="",0,AVERAGE(AO$10:AO203)) -> 0 | AQ203: =IF(AO202="",0,VAR(AO$10:AO203)) -> 0 | AU203: =IF(AT203="",0,AVERAGE(AT$10:AT203)) -> 0 | AV203: =IF(AT202="",0,VAR(AT$10:AT203)) -> 0 | AZ203: =IF(AY203="",0,AVERAGE(AY$10:AY203)) -> 0 | BA203: =IF(AY202="",0,VAR(AY$10:AY203)) -> 0
G204: =IF(F204="",0,AVERAGE($F$10:F204)) -> 0 | H204: =IF(F203="",0,VAR($F$10:F204)) -> 0 | K204: =IF(J204="","",+(J204-J203)/J203) ->  | L204: =IF(K204="",0,AVERAGE($K$10:K204)) -> 0 | M204: =IF(K203="",0,VAR($K$10:K204)) -> 0 | P204: =IF(O204="","",+(O204-O203)/O203) ->  | Q204: =IF(P204="",0,AVERAGE(P$10:P204)) -> 0 | R204: =IF(P203="",0,VAR(P$10:P204)) -> 0 | V204: =IF(U204="",0,AVERAGE(U$10:U204)) -> 0 | W204: =IF(U203="",0,VAR(U$10:U204)) -> 0 | Z204: =IF(Y204="","",+(Y204-Y203)/Y203) ->  | AA204: =IF(Z204="",0,AVERAGE(Z$10:Z204)) -> 0 | AB204: =IF(Z203="",0,VAR(Z$10:Z204)) -> 0 | AF204: =IF(AE204="",0,AVERAGE(AE$10:AE204)) -> 0 | AG204: =IF(AE203="",0,VAR(AE$10:AE204)) -> 0 | AK204: =IF(AJ204="",0,AVERAGE(AJ$10:AJ204)) -> 0 | AL204: =IF(AJ203="",0,VAR(AJ$10:AJ204)) -> 0 | AP204: =IF(AO204="",0,AVERAGE(AO$10:AO204)) -> 0 | AQ204: =IF(AO203="",0,VAR(AO$10:AO204)) -> 0 | AU204: =IF(AT204="",0,AVERAGE(AT$10:AT204)) -> 0 | AV204: =IF(AT203="",0,VAR(AT$10:AT204)) -> 0 | AZ204: =IF(AY204="",0,AVERAGE(AY$10:AY204)) -> 0 | BA204: =IF(AY203="",0,VAR(AY$10:AY204)) -> 0
F205: =IF(E205="","",+(E205-E204)/E204) ->  | G205: =IF(F205="",0,AVERAGE($F$10:F205)) -> 0 | H205: =IF(F204="",0,VAR($F$10:F205)) -> 0 | L205: =IF(K205="",0,AVERAGE($K$10:K205)) -> 0 | M205: =IF(K204="",0,VAR($K$10:K205)) -> 0 | Q205: =IF(P205="",0,AVERAGE(P$10:P205)) -> 0 | R205: =IF(P204="",0,VAR(P$10:P205)) -> 0 | V205: =IF(U205="",0,AVERAGE(U$10:U205)) -> 0 | W205: =IF(U204="",0,VAR(U$10:U205)) -> 0 | AA205: =IF(Z205="",0,AVERAGE(Z$10:Z205)) -> 0 | AB205: =IF(Z204="",0,VAR(Z$10:Z205)) -> 0 | AF205: =IF(AE205="",0,AVERAGE(AE$10:AE205)) -> 0 | AG205: =IF(AE204="",0,VAR(AE$10:AE205)) -> 0 | AJ205: =IF(AI205="","",+(AI205-AI204)/AI204) ->  | AK205: =IF(AJ205="",0,AVERAGE(AJ$10:AJ205)) -> 0 | AL205: =IF(AJ204="",0,VAR(AJ$10:AJ205)) -> 0 | AO205: =IF(AN205="","",+(AN205-AN204)/AN204) ->  | AP205: =IF(AO205="",0,AVERAGE(AO$10:AO205)) -> 0 | AQ205: =IF(AO204="",0,VAR(AO$10:AO205)) -> 0 | AT205: =IF(AS205="","",+(AS205-AS204)/AS204) ->  | AU205: =IF(AT205="",0,AVERAGE(AT$10:AT205)) -> 0 | AV205: =IF(AT204="",0,VAR(AT$10:AT205)) -> 0 | AY205: =IF(AX205="","",+(AX205-AX204)/AX204) ->  | AZ205: =IF(AY205="",0,AVERAGE(AY$10:AY205)) -> 0 | BA205: =IF(AY204="",0,VAR(AY$10:AY205)) -> 0
... 99 more rows

Sheet Riesgo Mínimo
C6: Cartera Actual | K6: Cartera Óptima Minimizando el riesgo
C7: Fecha de Cartera | D7: 2015-11-17 | K7: Fecha de Cartera | L7: =D7 -> 2015-11-17
E9: Participación en la cartera | F9: Rendimiento Promedio | M9: Participación en la cartera | N9: Rendimiento Promedio | P9: Porcentaje de Participación Mínimo | Q9: Porcentaje de Participación Máxima
G10: Riesgo | M10: en la | O10: Riesgo
M11: Cartera
D12: =L12 -> Tenaris | E12: 0.8 | F12: =IF(D7="",0,VLOOKUP($L$7,Cotizaciones,5,FALSE)) -> 0.009757258537 | G12: =IF($L$7="",0,VLOOKUP($L$7,Cotizaciones,6,FALSE)) -> 1.510622192e-08 | L12: ='Cantidad de Acciones'!D6 -> Tenaris | M12: 0.920001 | N12: =IF(L7="",0,VLOOKUP($L$7,Cotizaciones,5,FALSE)) -> 0.009757258537 | O12: =IF($L$7="",0,VLOOKUP($L$7,Cotizaciones,6,FALSE)) -> 1.510622192e-08 | P12: 0.9 | Q12: 1
D13: Galicia | E13: 0.2 | F13: =IF(D7="",0,VLOOKUP($L$7,Cotizaciones,10,FALSE)) -> 0.1578856826 | G13: =IF($L$7="",0,VLOOKUP($L$7,Cotizaciones,11,FALSE)) -> 0.1185235746 | L13: ='Cantidad de Acciones'!D7 -> Galicia | M13: 0.08 | N13: =IF(L7="",0,VLOOKUP($L$7,Cotizaciones,10,FALSE)) -> 0.1578856826 | O13: =IF($L$7="",0,VLOOKUP($L$7,Cotizaciones,11,FALSE)) -> 0.1185235746 | P13: 0.08 | Q13: 1
D14: YPF | E14: 0 | F14: =IF(D7="",0,VLOOKUP($L$7,Cotizaciones,15,FALSE)) -> 0 | G14: =IF($L$7="",0,VLOOKUP($L$7,Cotizaciones,16,FALSE)) -> 0 | L14: ='Cantidad de Acciones'!D8 -> YPF | M14: 0 | N14: =IF(L7="",0,VLOOKUP($L$7,Cotizaciones,15,FALSE)) -> 0 | O14: =IF($L$7="",0,VLOOKUP($L$7,Cotizaciones,16,FALSE)) -> 0 | P14: 0 | Q14: 0
D15: Edenor | E15: 0 | F15: =IF(D7="",0,VLOOKUP($L$7,Cotizaciones,20,FALSE)) -> 0 | G15: =IF($L$7="",0,VLOOKUP($L$7,Cotizaciones,21,FALSE)) -> 0 | L15: ='Cantidad de Acciones'!D9 -> Edenor | M15: 0 | N15: =IF(L7="",0,VLOOKUP($L$7,Cotizaciones,20,FALSE)) -> 0 | O15: =IF($L$7="",0,VLOOKUP($L$7,Cotizaciones,21,FALSE)) -> 0 | P15: 0 | Q15: 0
D16: PESA | E16: 0 | F16: =IF($L$7="",0,VLOOKUP($L$7,Cotizaciones,25,FALSE)) -> 0 | G16: =IF($L$7="",0,VLOOKUP($L$7,Cotizaciones,26,FALSE)) -> 0 | L16: ='Cantidad de Acciones'!D10 -> PESA | M16: 0 | N16: =IF($L$7="",0,VLOOKUP($L$7,Cotizaciones,25,FALSE)) -> 0 | O16: =IF($L$7="",0,VLOOKUP($L$7,Cotizaciones,26,FALSE)) -> 0 | P16: 0 | Q16: 0
D17: 6 | E17: 0 | F17: =IF($L$7="",0,VLOOKUP($L$7,Cotizaciones,30,FALSE)) -> 0 | G17: =IF($L$7="",0,VLOOKUP($L$7,Cotizaciones,31,FALSE)) -> 0 | L17: ='Cantidad de Acciones'!D11 -> 6 | M17: 0 | N17: =IF($L$7="",0,VLOOKUP($L$7,Cotizaciones,30,FALSE)) -> 0 | O17: =IF($L$7="",0,VLOOKUP($L$7,Cotizaciones,31,FALSE)) -> 0 | P17: 0 | Q17: 0
D18: 7 | E18: 0 | F18: =IF($L$7="",0,VLOOKUP($L$7,Cotizaciones,35,FALSE)) -> 0 | G18: =IF($L$7="",0,VLOOKUP($L$7,Cotizaciones,36,FALSE)) -> 0 | L18: ='Cantidad de Acciones'!D12 -> 7 | M18: 0 | N18: =IF($L$7="",0,VLOOKUP($L$7,Cotizaciones,35,FALSE)) -> 0 | O18: =IF($L$7="",0,VLOOKUP($L$7,Cotizaciones,36,FALSE)) -> 0 | P18: 0 | Q18: 0
D19: 8 | E19: 0 | F19: =IF($L$7="",0,VLOOKUP($L$7,Cotizaciones,40,FALSE)) -> 0 | G19: =IF($L$7="",0,VLOOKUP($L$7,Cotizaciones,41,FALSE)) -> 0 | L19: ='Cantidad de Acciones'!D13 -> 8 | M19: 0 | N19: =IF($L$7="",0,VLOOKUP($L$7,Cotizaciones,40,FALSE)) -> 0 | O19: =IF($L$7="",0,VLOOKUP($L$7,Cotizaciones,41,FALSE)) -> 0 | P19: 0 | Q19: 0
D20: 9 | E20: 0 | F20: =IF($L$7="",0,VLOOKUP($L$7,Cotizaciones,45,FALSE)) -> 0 | G20: =IF($L$7="",0,VLOOKUP($L$7,Cotizaciones,46,FALSE)) -> 0 | L20: ='Cantidad de Acciones'!D14 -> 9 | M20: 0 | N20: =IF($L$7="",0,VLOOKUP($L$7,Cotizaciones,45,FALSE)) -> 0 | O20: =IF($L$7="",0,VLOOKUP($L$7,Cotizaciones,46,FALSE)) -> 0 | P20: 0 | Q20: 0
D21: 10 | E21: 0 | F21: =IF($L$7="",0,VLOOKUP($L$7,Cotizaciones,50,FALSE)) -> 0 | G21: =IF($L$7="",0,VLOOKUP($L$7,Cotizaciones,51,FALSE)) -> 0 | L21: ='Cantidad de Acciones'!D15 -> 10 | M21: 0 | N21: =IF($L$7="",0,VLOOKUP($L$7,Cotizaciones,50,FALSE)) -> 0 | O21: =IF($L$7="",0,VLOOKUP($L$7,Cotizaciones,51,FALSE)) -> 0 | P21: 0 | Q21: 0
M22: =SUM(M12:M21) -> 1.000001 | N22: 1
C25: Rendimiento Actual de la Cartera | H25: Diferencias | N25: Rendimiento Óptimo de Cartera minimizando el Riesgo
C26: Rendimiento del Portafolio | E26: =IF(D7="","",SUMPRODUCT(E12:E21,F12:F21)) -> 0.03938294334 | H26: Rendimiento | I26: =P26-E26 -> -0.01777540113 | J26: =IF(I26>0,"La cartera optima tiene mayor rendimiento que la actual", "La cartera actual tiene mayor rendimiento que la óptïma") -> La cartera actual tiene mayor rendimiento que la óptïma | N26: Rendimiento de la cartera | P26: =IF(L7="","",SUMPRODUCT(M12:M21,N12:N21)) -> 0.02160754222
C27: Mínimo Riesgo | E27: =IF(D7="","",IF(ISERROR((E12^2)*G12+(E13^2)*G13+(E14^2)*G14+(E15^2)*G15+(E16^2)*G16+(E17^2)*G17+(E18^2)*G18+(E19^2)*G19+(E20^2)*G20+(E21^2)*G21),"",(E12^2)*G12+(E13^2)*G13+(E14^2)*G14+(E15^2)*G15+(E16^2)*G16+(E17^2)*G17+(E18^2)*G18+(E19^2)*G19+(E20^2)*G20+(E21^2)*G21)) -> 0.004740952653 | H27: Riesgo | I27: =P27-E27 -> -0.003982388989 | J27: =IF(I27>0,"La cartera optima tiene mayor menor riesgo que la actual", "La cartera actual tiene mayor riesgo que la óptïma") -> La cartera actual tiene mayor riesgo que la óptïma | N27: Mínimo Riesgo | P27: =IF(L7="","",IF(ISERROR((M12^2)*O12+(M13^2)*O13+(M14^2)*O14+(M15^2)*O15+(M16^2)*O16+(M17^2)*O17+(M18^2)*O18+(M19^2)*O19+(M20^2)*O20+(M21^2)*O21),"",(M12^2)*O12+(M13^2)*O13+(M14^2)*O14+(M15^2)*O15+(M16^2)*O16+(M17^2)*O17+(M18^2)*O18+(M19^2)*O19+(M20^2)*O20+(M21^2)*O21)) -> 0.0007585636635
N28: Rendimiento Mínimo Tolerable | P28: 0.01

Sheet Rendimiento Máximo
C6: Cartera Actual | K6: Cartera Óptima Maximizando el Rendimiento
C7: Fecha de Cartera | D7: 2015-11-17 | K7: Fecha de Cartera | L7: =D7 -> 2015-11-17
E9: Participación en la cartera | F9: Rendimiento Promedio | M9: Participación en la cartera | N9: Rendimiento Promedio | P9: Porcentaje de Participación Mínimo | Q9: Porcentaje de Participación Máxima
G10: Riesgo | M10: en la | O10: Riesgo
M11: Cartera
D12: =L12 -> Tenaris | E12: 0.5 | F12: =IF(D7="",0,VLOOKUP($L$7,Cotizaciones,5,FALSE)) -> 0.009757258537 | G12: =IF($L$7="",0,VLOOKUP($L$7,Cotizaciones,6,FALSE)) -> 1.510622192e-08 | L12: ='Cantidad de Acciones'!D6 -> Tenaris | M12: 0.3504902401 | N12: =IF(L7="",0,VLOOKUP($L$7,Cotizaciones,5,FALSE)) -> 0.009757258537 | O12: =IF($L$7="",0,VLOOKUP($L$7,Cotizaciones,6,FALSE)) -> 1.510622192e-08 | P12: 0.3 | Q12: 1
D13: Galicia | E13: 0.5 | F13: =IF(D7="",0,VLOOKUP($L$7,Cotizaciones,10,FALSE)) -> 0.1578856826 | G13: =IF($L$7="",0,VLOOKUP($L$7,Cotizaciones,11,FALSE)) -> 0.1185235746 | L13: ='Cantidad de Acciones'!D7 -> Galicia | M13: 0.6495097599 | N13: =IF(L7="",0,VLOOKUP($L$7,Cotizaciones,10,FALSE)) -> 0.1578856826 | O13: =IF($L$7="",0,VLOOKUP($L$7,Cotizaciones,11,FALSE)) -> 0.1185235746 | P13: 0.08 | Q13: 1
D14: YPF | E14: 0 | F14: =IF(D7="",0,VLOOKUP($L$7,Cotizaciones,15,FALSE)) -> 0 | G14: =IF($L$7="",0,VLOOKUP($L$7,Cotizaciones,16,FALSE)) -> 0 | L14: ='Cantidad de Acciones'!D8 -> YPF | M14: 0 | N14: =IF(L7="",0,VLOOKUP($L$7,Cotizaciones,15,FALSE)) -> 0 | O14: =IF($L$7="",0,VLOOKUP($L$7,Cotizaciones,16,FALSE)) -> 0 | P14: 0 | Q14: 0
D15: Edenor | E15: 0 | F15: =IF(D7="",0,VLOOKUP($L$7,Cotizaciones,20,FALSE)) -> 0 | G15: =IF($L$7="",0,VLOOKUP($L$7,Cotizaciones,21,FALSE)) -> 0 | L15: ='Cantidad de Acciones'!D9 -> Edenor | M15: 0 | N15: =IF(L7="",0,VLOOKUP($L$7,Cotizaciones,20,FALSE)) -> 0 | O15: =IF($L$7="",0,VLOOKUP($L$7,Cotizaciones,21,FALSE)) -> 0 | P15: 0 | Q15: 0
D16: PESA | E16: 0 | F16: =IF($L$7="",0,VLOOKUP($L$7,Cotizaciones,25,FALSE)) -> 0 | G16: =IF($L$7="",0,VLOOKUP($L$7,Cotizaciones,26,FALSE)) -> 0 | L16: ='Cantidad de Acciones'!D10 -> PESA | M16: 0 | N16: =IF($L$7="",0,VLOOKUP($L$7,Cotizaciones,25,FALSE)) -> 0 | O16: =IF($L$7="",0,VLOOKUP($L$7,Cotizaciones,26,FALSE)) -> 0 | P16: 0 | Q16: 0
D17: 6 | E17: 0 | F17: =IF($L$7="",0,VLOOKUP($L$7,Cotizaciones,30,FALSE)) -> 0 | G17: =IF($L$7="",0,VLOOKUP($L$7,Cotizaciones,31,FALSE)) -> 0 | L17: ='Cantidad de Acciones'!D11 -> 6 | M17: 0 | N17: =IF($L$7="",0,VLOOKUP($L$7,Cotizaciones,30,FALSE)) -> 0 | O17: =IF($L$7="",0,VLOOKUP($L$7,Cotizaciones,31,FALSE)) -> 0 | P17: 0 | Q17: 0
D18: 7 | E18: 0 | F18: =IF($L$7="",0,VLOOKUP($L$7,Cotizaciones,35,FALSE)) -> 0 | G18: =IF($L$7="",0,VLOOKUP($L$7,Cotizaciones,36,FALSE)) -> 0 | L18: ='Cantidad de Acciones'!D12 -> 7 | M18: 0 | N18: =IF($L$7="",0,VLOOKUP($L$7,Cotizaciones,35,FALSE)) -> 0 | O18: =IF($L$7="",0,VLOOKUP($L$7,Cotizaciones,36,FALSE)) -> 0 | P18: 0 | Q18: 0
D19: 8 | E19: 0 | F19: =IF($L$7="",0,VLOOKUP($L$7,Cotizaciones,40,FALSE)) -> 0 | G19: =IF($L$7="",0,VLOOKUP($L$7,Cotizaciones,41,FALSE)) -> 0 | L19: ='Cantidad de Acciones'!D13 -> 8 | M19: 0 | N19: =IF($L$7="",0,VLOOKUP($L$7,Cotizaciones,40,FALSE)) -> 0 | O19: =IF($L$7="",0,VLOOKUP($L$7,Cotizaciones,41,FALSE)) -> 0 | P19: 0 | Q19: 0
D20: 9 | E20: 0 | F20: =IF($L$7="",0,VLOOKUP($L$7,Cotizaciones,45,FALSE)) -> 0 | G20: =IF($L$7="",0,VLOOKUP($L$7,Cotizaciones,46,FALSE)) -> 0 | L20: ='Cantidad de Acciones'!D14 -> 9 | M20: 0 | N20: =IF($L$7="",0,VLOOKUP($L$7,Cotizaciones,45,FALSE)) -> 0 | O20: =IF($L$7="",0,VLOOKUP($L$7,Cotizaciones,46,FALSE)) -> 0 | P20: 0 | Q20: 0
D21: 10 | E21: 0 | F21: =IF($L$7="",0,VLOOKUP($L$7,Cotizaciones,50,FALSE)) -> 0 | G21: =IF($L$7="",0,VLOOKUP($L$7,Cotizaciones,51,FALSE)) -> 0 | L21: ='Cantidad de Acciones'!D15 -> 10 | M21: 0 | N21: =IF($L$7="",0,VLOOKUP($L$7,Cotizaciones,50,FALSE)) -> 0 | O21: =IF($L$7="",0,VLOOKUP($L$7,Cotizaciones,51,FALSE)) -> 0 | P21: 0 | Q21: 0
M22: =SUM(M12:M21) -> 1 | N22: 1
C25: Rendimiento Actual de la Cartera | H25: Diferencias | N25: Rendimiento Óptimo de Cartera Max. el rendimiento
C26: Rendimiento de la Cartera | E26: =IF(D7="","",SUMPRODUCT(E12:E21,F12:F21)) -> 0.08382147056 | H26: Rendimiento | I26: =P26-E26 -> 0.02214664511 | J26: =IF(I26>0,"La cartera optima tiene mayor rendimiento que la actual", "La cartera actual tiene mayor rendimiento que la óptïma") -> La cartera optima tiene mayor rendimiento que la actual | N26: Rendimiento Máximo de la Cartera | P26: =IF(L7="","",SUMPRODUCT(M12:M21,N12:N21)) -> 0.1059681157
C27: Riesgo | E27: =IF(D7="","",IF(ISERROR((E12^2)*G12+(E13^2)*G13+(E14^2)*G14+(E15^2)*G15+(E16^2)*G16+(E17^2)*G17+(E18^2)*G18+(E19^2)*G19+(E20^2)*G20+(E21^2)*G21),"",(E12^2)*G12+(E13^2)*G13+(E14^2)*G14+(E15^2)*G15+(E16^2)*G16+(E17^2)*G17+(E18^2)*G18+(E19^2)*G19+(E20^2)*G20+(E21^2)*G21)) -> 0.02963089743 | H27: Riesgo | I27: =P27-E27 -> 0.02036980667 | J27: =IF(I27>0,"La cartera optima tiene mayor menor riesgo que la actual", "La cartera actual tiene mayor riesgo que la óptïma") -> La cartera optima tiene mayor menor riesgo que la actual | N27: Riesgo de la Cartera | P27: =IF(L7="","",IF(ISERROR((M12^2)*O12+(M13^2)*O13+(M14^2)*O14+(M15^2)*O15+(M16^2)*O16+(M17^2)*O17+(M18^2)*O18+(M19^2)*O19+(M20^2)*O20+(M21^2)*O21),"",(M12^2)*O12+(M13^2)*O13+(M14^2)*O14+(M15^2)*O15+(M16^2)*O16+(M17^2)*O17+(M18^2)*O18+(M19^2)*O19+(M20^2)*O20+(M21^2)*O21)) -> 0.0500007041
N28: Riesgo Máximo Tolerado | P28: 0.05
